Workbook

Sheet Intro
B3: 2024 Field Crop Budget Spreadsheet
B4: Introduction
B6: This spreadsheet contains the 2024 University of Tennessee row crop budgets. There are no protected cells in the spreadsheet, so the user should make sure that any changes made do not affect formulas. Input prices can be modified on the "Inputs, Herbicides, Insecticides, and Fungicides Tabs". Any changes made on the "Inputs, Herbicides, Insecticides, and Fungicides Tabs" will be reflected in all budgets where the input is utilized. Quantities and processes can be modified on individual budgets. This spreadsheet should not be considered representative of all circumstances and is provided as a template or guide that can be used to estimate commodity, production process, and operation specific budgets. Inputs used and prices for inputs vary tremendously from farm-to-farm, as such producers are encouraged to use their own inputs, input prices, and cost structures for planning purposes.
B9: If you have questions regarding this spreadsheet, please contact your local UT Extension Office or Dr. Aaron Smith (aaron.smith@utk.edu).
H11: Table of Contents
B13: Tab | C13: Description
B14: Inputs | C14: Contains commodity, non-chemical input prices, and other input data for all budgets
B15: Herbicides | C15: Contains commonly used herbicides and estimated prices
B16: Insecticides | C16: Contains commonly used insecticides and estimated prices
B17: Fungicides | C17: Contains commonly used fungicides and estimated prices
B18: Corn NT Non-Irr | C18: Corn, No-Till, Non-Irrigated, 175 Bushels/Acre Yield
B19: Corn CT Non-Irr | C19: Corn, Conventional Tillage, Non-Irrigated, 175 Bushels/Acre Yield
B20: Corn Irr | C20: Corn, No-Till, Irrigated, 240 Bushels/Acre Yield
B21: Soybean NT Non-Irr | C21: Soybean, No-Till, Non-Irrigated, 50 Bushels/Acre Yield
B22: Soybean Irr | C22: Soybean, No-Till, Irrigated, 65 Bushels/Acre Yield
B23: SRW Wheat | C23: Wheat, Non-Irrigated, 80 Bushels/Acre Yield
B24: Wheat & Soybean DC | C24: Wheat/Soybean Double Cropped, Non-Irrigated, 80 Bushels/Acre Yield and 45 Bushel/Acre Yield
B25: Wheat | C25: Wheat, Conventional Tillage, Non-Irrigated, 70 Bushels/Acre Yield
B26: Cotton NT | C26: Cotton, No-Till, Non-Irrigated, 1,150 lbs./Acre Yield
B27: Cotton CT | C27: Cotton, Conventional Tillage, Non-Irrigated, 1,150 lbs./Acre Yield
B28: Cotton IRR | C28: Cotton, No-Till, Irrigated, 1,500 lbs./Acre Yield
B29: G. Sorghum NT | C29: Grain Sorghum, No-Till, Non-Irrigated, 110 Bushels/Acre Yield
B30: Canola | C30: Canola, Conventional Tillage, Non-Irrigated, 50 Bushels/Acre Yield
B31: Footnotes | C31: Footnotes for the budgets
B32: Field Operations | C32: This worksheet contains cost estimates for crop operations based on machinery data
B33: Budget Summary | C33: Provides a summary of revenues, expenses, and profit for each commodity and production process
B34: Enterprise Summary | C34: Allows users to estimate revenue, expenses, and profit for specific acreage in their operations using individual budgets
B37: Note: All budgets contain yield estimates. Users can enter specific yields on each individual budget in order to represent yields specific to their farm (commodity and input prices should be modified in the "Inputs, Herbicides, Insecticides, and Fungicides Tabs").
B39: Disclaimer: Significant variability in inputs, prices, and production methods exist in the production of row crops. The information contained in this spreadsheet relies on estimates and assumptions that are "typical" in Tennessee row crop production. These budgets should not be construed as a reflection of all circumstances across the state as significant regional variability will occur. To improve accuracy, users are encouraged to use inputs, prices, and processes that are utilized on their specific farms.
B41: The University of Tennessee is an EEO/AA/Title VI/Title IX/Section 504/ADA/ADEA institution in the provision of its education and employment programs and services. All qualified applicants will receive equal consideration for employment and admission without regard to race, color, national origin, religion, sex, pregnancy, marital status, sexual orientation, gender identity, age, physical or mental disability, genetic information, veteran status, and parental status.

Sheet Inputs
B2: Commodity Prices Received by Producers | F2: 2023 | G2: Change
B3: Corn | C3: 4.95 | D3: bu | F3: 5.99 | G3: =C3-F3 -> -1.04
B4: Soybeans | C4: 12.5 | D4: bu | F4: 13.77 | G4: =C4-F4 -> -1.27
B5: Wheat | C5: 6.5 | D5: bu | F5: 7.57 | G5: -1.07
B6: Grain Sorghum | C6: 5.05 | D6: bu | F6: 6.1 | G6: -1.05
B7: Cotton | C7: 0.82 | D7: lb. | F7: 0.83 | G7: -0.01
B9: Fuel, Interest Rates and Labor Costs
B10: Diesel Fuel ($/gal) | C10: 3.4 | D10: $/gal | F10: 2 | G10: =C10-F10 -> 1.4 | H10: Prevailing Diesel Price - $0.45 | K10: =+(2.943+3.09)/2-0.45 -> 2.5665
B11: Electricity ($/kwh) | C11: 0.12 | D11: $kwh | F11: 0.0708 | G11: 0.0492 | H11: https://www.electricitylocal.com/states/tennessee/ | N11: =+(7.08+10.31)/2 -> 8.695
B12: Operator Labor ($/hr.) | C12: 20 | D12: $/hr. | F12: 16 | G12: 4 | H12: https://downloads.usda.library.cornell.edu/usda-esmis/files/x920fw89s/v405tw18s/dn39zk84n/fmla1123.pdf
B13: Management Labor ($/hr.) | C13: 25 | D13: $/hr. | F13: 18 | G13: 7 | H13: https://downloads.usda.library.cornell.edu/usda-esmis/files/x920fw89s/v405tw18s/dn39zk84n/fmla1123.pdf
B14: Operating Interest (%) | C14: 0.085 | D14: % | F14: 0.0465 | G14: 0.0385 | H14: https://www.chicagofed.org/research/data/ag-conditions/index
B15: Fixed Capital Interest (%) | C15: 0.075 | D15: % | F15: 0.0425 | G15: 0.0325
B17: Crop Scout, Consulting, Cash Rent and Crop Insurance
B18: Crop Scout / Consulting Fee | C18: 10 | D18: acre | F18: 10 | G18: =C18-F18 -> 0
B19: Crop Scouting-Cotton | C19: 12 | D19: acre | F19: 11 | G19: =C19-F19 -> 1
B20: Drying ($/bu) | C20: 0.6 | D20: bu | F20: 0 | G20: 0.6
B21: Cotton Wrap ($/lb.) | C21: 0.02 | D21: lb.
B22: Irrigated Cropland Cash Rent | C22: 197 | D22: acre | F22: 180 | G22: 17 | H22: NASS
B23: Non-Irrigated Cropland Cash Rent | C23: 113 | D23: acre | F23: 104 | G23: 9 | H23: NASS
B24: Crop Insurance-Corn | C24: 20.4 | D24: acre | F24: 11.21 | G24: 9.19 | O24: =+(42508620-29204127)/836045 -> 15.91360872
B25: Crop Insurance-Soybean | C25: 11.22 | D25: acre | F25: 6.77 | G25: 4.45 | H25: Crop insurance average for the state - RMA Summary of Business 10/18 | O25: =+(43390787-30165020)/1281559 -> 10.32006096
B26: Crop Insurance-Wheat | C26: 14.6 | D26: acre | F26: 7.19 | G26: 7.41 | O26: =+(7266953-5175579)/263372 -> 7.940760597
B27: Crop Insurance-Grain Sorghum | C27: 6.85 | D27: acre | F27: 5.66 | G27: 1.19 | O27: =+(161365-109119)/7028 -> 7.433978372
B28: Crop Insurance-Cotton | C28: 12.5 | D28: acre | F28: 8.75 | G28: 3.75 | O28: =+(10952505-8087295)/255811 -> 11.20049568
B30: Property Taxes, Non-Machinery Insurance and Management Labor
B31: Property Taxes | C31: 0 | D31: $/acre | F31: 0 | G31: 0
B32: Insurance (Non-machinery and Non-crop) | C32: 0 | D32: $/acre | F32: 0 | G32: 0
B33: Management Labor | C33: 25 | D33: $/acre | F33: 18 | G33: 7
B35: Seed | O35: =292/80000*1000 -> 3.65
B36: Corn | C36: 3.6 | D36: $/Thousand Seeds | F36: 3.3 | G36: =C36-F36 -> 0.3 | O36: =64/140000*1000 -> 0.4571428571
B37: Soybean | C37: 0.45 | D37: $/Thousand Seeds | F37: 0.4 | G37: =C37-F37 -> 0.05 | O37: =19/50*60 -> 22.8
B38: Wheat | C38: 18 | D38: $/bu | F38: 13.5 | G38: 4.5
B39: Grain Sorghum | C39: 0.3 | D39: $/Thousand Seeds | F39: 0.25 | G39: 0.05
B40: Cotton | C40: 2.65 | D40: $/Thousand Seeds | F40: 2.2352 | G40: 0.4148
B43: Fertilizer | F43: $/ton | G43: N | H43: P | I43: k | J43: Fertilizer Prices from DTN | O43: 2021
B44: Urea | C44: 0.61 | D44: $/lb. | F44: 559 | G44: 0.46 | H44: 0 | I44: 0 | J44: =F44/2000/G44 -> 0.6076086957 | O44: 0.3902173913 | P44: =C44-O44 -> 0.2197826087
B45: Ammonium Nitrate | C45: 0.69 | D45: $/lb. | F45: 603 | G45: 0.34 | H45: 0 | I45: 0 | J45: =F45/(2000*(G45+0.11)) -> 0.67 | O45: 0.49 | P45: =C45-O45 -> 0.2
B46: UAN 28% | C46: 0.62 | D46: $/lb. | F46: 349 | G46: 0.28 | H46: 0 | I46: 0 | J46: =F46/2000/G46 -> 0.6232142857 | O46: 0.3732142857 | P46: 0.2467857143
B47: UAN 32% | C47: 0.64 | D47: $/lb. | F47: 409 | G47: 0.32 | H47: 0 | I47: 0 | J47: =F47/2000/G47 -> 0.6390625 | L47: P2O5 | O47: 0.390625 | P47: 0.249375
B48: P2O5 | C48: 0.65 | D48: $/lb. | F48: 807 | G48: 0.11 | H48: 0.52 | I48: 0 | J48: =F48/(2000*(H48+G48)) -> 0.6404761905 | K48: =+G48*2000*J44 -> 133.673913 | L48: =(F48-K48)/(2000*H48) -> 0.6474289298 | O48: 0.3711343064 | P48: 0.2788656936
B49: DAP (18-46-0) | C49: 0.54 | D49: $/lb. | F49: 715 | G49: 0.18 | H49: 0.46 | I49: 0 | J49: =F49/(2000*(H49+G49)) -> 0.55859375 | K49: =+G49*2000*J44 -> 218.7391304 | L49: =(F49-K49)/(2000*H49) -> 0.5394139887 | O49: 0.4967391304 | P49: 0.04326086957
B50: Potash | C50: 0.43 | D50: $/lb. | F50: 511 | G50: 0 | H50: 0 | I50: 0.6 | J50: =F50/2000/I50 -> 0.4258333333 | O50: 0.285 | P50: 0.145
B51: Lime | C51: 30 | D51: $/ton | O51: 30 | P51: 0
B52: Boron 15% | C52: =117.75/50 -> 2.355 | D52: $/lb. | O52: 0.55 | P52: 1.805
B53: Ammonium Sulfate | C53: 0.35 | D53: $/lb. | O53: 0.165
B54: Zinc Sulfate | C54: =25/50 -> 0.5 | D54: $/lb. | O54: 0.6 | P54: -0.1
B56: Irrigation
B57: Irrigation Energy Cost | C57: 7.5 | D57: $/acre-in | O57: 4.9 | P57: =C57-O57 -> 2.6
B58: Irrigation System R&M & Labor | C58: 3.2 | D58: $/acre-in | O58: 2.25 | P58: =C58-O58 -> 0.95
B59: Capital Recovery (Irrigation Equipment) | C59: 100 | D59: $/acre | O59: 102 | P59: -2

Sheet Herbicides
A1: Herbicides | E1: WM | J1: oz
B2: Price/Unit | C2: Unit | I2: gal | J2: 128
A3: 2, 4-D | B3: 3.25 | C3: $/pt. | E3: =65/(J2*2.5)*16 -> 3.25 | I3: qt | J3: 32
A4: Accent Q | B4: =E4 -> 23.88888889 | C4: $/oz. | E4: =430/18 -> 23.88888889 | F4: oz. | I4: pt. | J4: 16
A5: Aim EC | B5: =E5 -> 7.34375 | C5: $/oz. | E5: =235/32 -> 7.34375 | F5: oz. | I5: lb. | J5: 16 | M5: =11.48/J4 -> 0.7175
A6: Anthem ATZ | B6: 0
A7: Assure II | B7: 0.8875 | C7: $/oz. | E7: =284/(2.5*J2) -> 0.8875 | F7: oz.
A8: Atrazine | B8: =G8 -> 4.9 | C8: $/qt. | E8: =49/(2.5*J2) -> 0.153125 | F8: oz. | G8: =+E8*J3 -> 4.9
A9: Authority MTZ | B9: =E9 -> 2.96875 | C9: $/oz. | E9: =570/12/J5 -> 2.96875 | F9: oz. | O9: =5/128 -> 0.0390625
A10: Authority XL | B10: =E10 -> 5 | C10: $/oz. | E10: =800/10/J5 -> 5 | F10: oz. | O10: =+O9*J3 -> 1.25
A11: Axial Bold | B11: 1.619257479 | C11: $/oz. | E11: =485/(2.34*J2) -> 1.619257479 | F11: oz.
A12: Axiom | B12: 2.4 | C12: $/oz. | E12: =960/(25*J5) -> 2.4 | F12: oz.
A13: Banvel | B13: =G13 -> 9.8 | C13: $/pt. | E13: =196/(2.5*J2) -> 0.6125 | F13: oz. | G13: =+E13*J4 -> 9.8
A14: Basagran | B14: =G14 -> 9.8 | C14: $/pt. | E14: =196/(2.5*J2) -> 0.6125 | F14: oz. | G14: =E14*J4 -> 9.8
A15: Bicep II Magnum | B15: 14.3 | C15: $/qt. | E15: =143/(2.5*J2) -> 0.446875 | F15: oz. | G15: =+E15*J3 -> 14.3
A16: Boll Opener (Ethephon) | B16: =E16 -> 0.2812265625 | C16: $/oz. | E16: =138.45*0.65/(2.5*J2) -> 0.2812265625 | F16: oz.
A17: Boundary | B17: =G17 -> 12.55 | C17: $/pt. | E17: =251/(2.5*J2) -> 0.784375 | F17: oz. | G17: =E17*J4 -> 12.55
A18: Butyrac 200 | B18: =G18 -> 5.5 | C18: $/pt. | E18: =44/(J2) -> 0.34375 | F18: oz. | G18: =E18*J4 -> 5.5
A19: Callisto | B19: =E19 -> 3.09375 | C19: $/oz. | E19: =396/(J2) -> 3.09375 | F19: oz.
A20: Caparol | B20: =G20 -> 6.25 | C20: $/pt. | E20: =125/(2.5*J2) -> 0.390625 | F20: oz. | G20: =E20*J4 -> 6.25
A21: Clarity 4EC | B21: =E21 -> 0.734375 | C21: $/oz. | E21: =235/(2.5*J2) -> 0.734375 | F21: oz. | G21: =E21*J4 -> 11.75
A22: Classic | B22: =E22 -> 20 | C22: $/oz. | E22: =200/10 -> 20 | F22: oz.
A23: Cobra | B23: =E23 -> 1.96875 | C23: $/oz. | E23: =630/(2.5*J2) -> 1.96875 | F23: oz.
A24: Command 3ME | B24: =G24 -> 23.75 | C24: $/pt. | E24: =475/(2.5*J2) -> 1.484375 | F24: oz. | G24: =E24*J4 -> 23.75
A25: Cotoran 4L | B25: =G25 -> 6.25 | C25: $/pt. | E25: =125/(2.5*J2) -> 0.390625 | F25: oz. | G25: =E25*J4 -> 6.25
A26: Crossbow | B26: 16.25 | C26: $/qt. | E26: =162.5/(2.5*J2) -> 0.5078125 | F26: oz. | G26: =E26*J3 -> 16.25
A27: Defoliant | B27: 1.56 | C27: $/oz. | F27: oz.
A28: Degree Xtra | B28: =G28 -> 15.1 | C28: $/qt. | E28: =151/(2.5*J2) -> 0.471875 | F28: oz. | G28: =E28*J3 -> 15.1
A29: Direx 4L | B29: =G29 -> 2.9 | C29: $/pt. | E29: =58/(2.5*J2) -> 0.18125 | F29: oz. | G29: =E29*J4 -> 2.9
A30: Distinct DF | B30: =E30 -> 3.066666667 | C30: $/oz. | E30: =368/(7.5*J5) -> 3.066666667 | F30: oz.
A31: Dual Magnum | B31: =G31 -> 10.9 | C31: $/pt. | E31: =218/(2.5*J2) -> 0.68125 | G31: =E31*J4 -> 10.9
A32: Dual II Magnum | B32: =G32 -> 18.5 | C32: $/pt. | E32: =370/(2.5*J2) -> 1.15625 | G32: =E32*J4 -> 18.5
A33: Engenia | B33: =E33 -> 0.6640625 | C33: $/oz. | E33: =212.5/(2.5*J2) -> 0.6640625
A34: Enlist Duo | B34: =E34 -> 0.2078125 | C34: $/oz. | E34: =66.5/(2.5*J2) -> 0.2078125
A35: Enlist One | B35: =E35 -> 0.328125 | C35: $/oz. | E35: =105/(2.5*J2) -> 0.328125
A36: Envoke | B36: =+E36 -> 126.6666667 | C36: $/oz. | E36: 126.6666667
A37: (continued)
A39: Herbicides
A40: Finesse | B40: =E40 -> 18.4 | C40: $/oz. | E40: =368/(20) -> 18.4 | F40: oz.
A41: FirstRate | B41: =E41 -> 50.91666667 | C41: $/oz. | E41: =611/(0.75*J5) -> 50.91666667 | F41: oz.
A42: Firstshot SG | B42: 9.95 | C42: $/oz. | E42: =199/(20) -> 9.95 | F42: oz.
A43: Flexstar GT 3.5 | B43: =G43 -> 7.65 | C43: $/pt. | E43: =153/(2.5*J2) -> 0.478125 | F43: oz. | G43: =E43*J4 -> 7.65
A44: Flexstar | B44: =G44 -> 11.3 | C44: $/pt. | E44: =226/(2.5*J2) -> 0.70625 | G44: =E44*J4 -> 11.3
A45: Fusilade DX | B45: =E45 -> 1.3984375 | C45: $/oz. | E45: =179/J2 -> 1.3984375 | F45: oz.
A46: Goal 2XL | B46: =G46 -> 7.5 | C46: $/pt. | E46: =150/(2.5*J2) -> 0.46875 | F46: oz. | G46: =E46*J4 -> 7.5
A47: Gramoxone SL | B47: =E47 -> 0.33125 | C47: $/oz. | E47: =106/(2.5*J2) -> 0.33125 | F47: oz.
A48: Grazon P + D | B48: =G48 -> 4.9 | C48: $/pt. | E48: =98/(2.5*J2) -> 0.30625 | F48: oz. | G48: =E48*J4 -> 4.9
A49: Halex GT | B49: =G49 -> 9.95 | C49: $/pt. | E49: =199/(2.5*J2) -> 0.621875 | F49: oz. | G49: =E49*J4 -> 9.95
A50: Harmony Extra | B50: =E50 -> 14.03 | C50: $/oz. | E50: =673.44/(48) -> 14.03 | F50: oz.
A51: Harness | B51: =G51 -> 9.05 | C51: $/pt. | E51: =181/(2.5*J2) -> 0.565625 | F51: oz. | G51: =E51*J4 -> 9.05
A52: Harness Xtra | B52: =G52 -> 18.1 | C52: $/qt. | E52: =181/(2.5*J2) -> 0.565625 | F52: oz. | G52: =E52*J3 -> 18.1
A53: Leadoff | B53: =E53 -> 6.666666667 | C53: $/oz. | E53: =400/(60) -> 6.666666667 | F53: oz.
A54: Liberty 280 SL | B54: =E54 -> 0.64375 | C54: $/oz. | E54: =206/(2.5*J2) -> 0.64375 | F54: oz.
A55: Mepex (Mepiquat Chloride) | B55: 1.25 | C55: $/pt. | F55: oz.
A56: Metribuzin | B56: =E56 -> 1.40625 | C56: $/oz. | E56: =225/(10*J5) -> 1.40625 | F56: oz.
A57: Outlook | B57: =E57 -> 1.43125 | C57: $/oz. | E57: =458/(2.5*J2) -> 1.43125 | F57: oz.
A58: Permit | B58: 26.5 | C58: $/oz. | E58: =530/20 -> 26.5 | F58: oz.
A59: Poast | B59: =G59 -> 16 | C59: $/pt. | E59: =320/(2.5*J2) -> 1 | F59: oz. | G59: =E59*J4 -> 16
A60: Prefix | B60: =G60 -> 18.9 | C60: $/qt. | E60: =189/(2.5*J2) -> 0.590625 | F60: oz. | G60: =E60*J3 -> 18.9
A61: Prowl H20 | B61: 7.3 | C61: $/pt. | E61: =146/(2.5*J2) -> 0.45625 | F61: oz. | G61: =E61*J4 -> 7.3
A62: Pursuit | B62: =E62 -> 3.90625 | C62: $/oz. | E62: =500/(128) -> 3.90625 | F62: oz.
A63: Python WPG | B63: =E63 -> 20.625 | C63: $/oz. | E63: =825/(2.5*J5) -> 20.625 | F63: oz.
A64: Raptor | B64: 5.0390625 | C64: $/oz. | E64: =645/(128) -> 5.0390625 | F64: oz.
A65: Realm Q | B65: 4.975 | C65: $/oz. | E65: =398/(80) -> 4.975 | F65: oz.
A66: Reflex | B66: =G66 -> 8.996212121 | C66: $/pt. | E66: =190/(2.64*J2) -> 0.5622632576 | F66: oz. | G66: =E66*J4 -> 8.996212121
A67: Resource | B67: =E67 -> 2.2109375 | C67: $/oz. | E67: =283/(128) -> 2.2109375 | F67: oz.
A68: Roundup | B68: =G68 -> 14.5 | C68: $/qt. | E68: =145/(2.5*J2) -> 0.453125 | F68: oz. | G68: =E68*J3 -> 14.5
A69: Scepter | B69: =E69 -> 5.714285714 | C69: $/oz. | E69: =800/(8.75*J5) -> 5.714285714 | F69: oz.
A70: Select Max | B70: =E70 -> 0.96875 | C70: $/oz. | E70: =310/(2.5*J2) -> 0.96875 | F70: oz.
A71: Sequence | B71: =G71 -> 9 | C71: $/pt. | E71: =180/(2.5*J2) -> 0.5625 | F71: oz. | G71: =E71*J4 -> 9
A72: Sharpen | B72: =E72 -> 7.7578125 | C72: $/oz. | E72: =993/(128) -> 7.7578125 | F72: oz.
A73: Steadfast Q | B73: =E73 -> 14.43333333 | C73: $/oz. | E73: =866/(60) -> 14.43333333 | F73: oz.
A74: Storm | B74: =G74 -> 14.2 | C74: $/pt. | E74: =284/(2.5*J2) -> 0.8875 | F74: oz. | G74: =E74*J4 -> 14.2
A75: Surfactant | B75: 1.5 | C75: $/acre | F75: oz.
A76: Treflan | B76: =G76 -> 3.375 | C76: $/pt. | E76: =67.5/(2.5*J2) -> 0.2109375 | F76: oz. | G76: =E76*J4 -> 3.375
A77: Ultra Blazer | B77: =G77 -> 6.8 | C77: $/pt. | E77: =136/(2.5*J2) -> 0.425 | F77: oz. | G77: =E77*J4 -> 6.8
A78: Valor | B78: =E78 -> 3.75 | C78: $/oz. | E78: =300/(5*J5) -> 3.75 | F78: oz.
A79: Verdict | B79: =E79 -> 2.1375 | C79: $/oz. | E79: =684/(2.5*J2) -> 2.1375 | F79: oz.
A80: Warrant | B80: =G80 -> 6.15 | C80: $/pt. | E80: =123/(2.5*J2) -> 0.384375 | F80: oz. | G80: =E80*J4 -> 6.15
A81: Xtendimax | B81: =E81 -> 0.3984375 | C81: $/oz. | E81: =127.5/(2.5*J2) -> 0.3984375 | F81: oz.

Sheet Fungicides
A1: Fungicide Treatments
A2: Soybean-Foliar | B2: 11.5 | C2: $/acre
A3: Soybean-Seed Treatment | B3: 5 | C3: $/acre
A4: Cotton-Seed Treatment | B4: 10 | C4: $/acre
A5: Wheat-Seed Treatment | B5: 17.5 | C5: $/acre
A6: Wheat-Foliar | B6: 12.5 | C6: $/acre
A7: Crop Oil Concentrate | B7: 4 | C7: $/pint
A8: Corn-Foliar | B8: 16 | C8: $/acre
A9: Surfactant | B9: 3.8 | C9: $/pint
B11: Price/Unit | C11: Unit
A12: Aftershock
A13: Alto
A14: Aproach
A15: Aproach Prima
A16: Caramba
A17: Domark
A18: Evito
A19: Folicur
A20: Fortix
A21: Headline
A22: Headline AMP
A23: Priaxor
A24: Priaxor D
A25: Proline
A26: Prosaro
A27: Quadris
A28: Quadris Top
A29: Quilt Xcel
A30: Stratego YLD
A31: Tilt
A32: Topguard
A33: Topsin-M
A34: TwinLine

Sheet Print (hidden)
B1: Irrigation
B2: Irrigation Energy Cost | C2: 7.5 | D2: $/acre-in
B3: Irrigation System R&M & Labor | C3: 3.2 | D3: $/acre-in
B4: Capital Recovery (Irrigation Equipment) | C4: 100 | D4: $/acre
B6: Fungicide Treatments
B7: Soybean-Foliar | C7: 11.5 | D7: $/acre
B8: Soybean-Seed Treatment | C8: 5 | D8: $/acre
B9: Cotton-Seed Treatment | C9: 10 | D9: $/acre
B10: Wheat-Seed Treatment | C10: 17.5 | D10: $/acre
B11: Wheat-Foliar | C11: 12.5 | D11: $/acre
B12: Crop Oil Concentrate | C12: 4 | D12: $/pint
B13: Corn-Foliar | C13: 16 | D13: $/acre
B14: Surfactant | C14: 3.8 | D14: $/pint
B16: Insecticide Treatments
B17: Soybean-Foliar | C17: 11 | D17: $/acre
B18: Soybean-Seed Treatment | C18: 11.5 | D18: $/acre
B19: Cotton-Seed Treatment | C19: 18.5 | D19: $/acre
B20: Cotton-Foliar | C20: 48 | D20: $/acre
B21: Grain Sorghum-Seed Treatment | C21: 10 | D21: $/acre
B22: Grain Sorghum-Foliar | C22: 40 | D22: $/acre
B23: Wheat-Seed Treatment | C23: 17.5 | D23: $/acre
B24: Wheat-Foliar | C24: 5 | D24: $/acre
B25: Maintenance Fee (Boll Weevil Eradication) | C25: 2 | D25: $/acre

Sheet Insecticides
A1: Insecticide Treatments
A2: Soybean-Foliar | B2: 11 | C2: $/acre
A3: Soybean-Seed Treatment | B3: 11.5 | C3: $/acre
A4: Cotton-Seed Treatment | B4: 18.5 | C4: $/acre
A5: Cotton-Foliar | B5: 48 | C5: $/acre
A6: Grain Sorghum-Seed Treatment | B6: 10 | C6: $/acre
A7: Grain Sorghum-Foliar | B7: 40 | C7: $/acre
A8: Wheat-Seed Treatment | B8: 17.5 | C8: $/acre | E8: 5
A9: Wheat-Foliar | B9: 5 | C9: $/acre
A10: Maintenance Fee (Boll Weevil Eradication) | B10: 2 | C10: $/acre | E10: 1.5
B12: Price/Unit | C12: Unit
A13: Abba
A14: Acramite
A15: Ammo
A16: Asana
A17: Athena
A18: Baythroid XL
A19: Belay
A20: Belt
A21: Belt
A22: Besiege
A23: Bidrin
A24: Blackhawk
A25: Brigade/Discipline/Fanfare
A26: Brigadier
A27: Carbine
A28: Centeic
A29: Colbalt
A30: Colbalt Advanced
A31: Comite
A32: Curacon
A33: Declare
A34: Delare
A35: Delta Gold
A36: Denim
A37: Diamon
A38: Dicofol
A39: Dimethoate
A40: Dimethoate
A41: Dimilin 2
A42: Double Take
A43: Double Take
A44: Endigo ZC
A45: Fyfanon
A46: Hero
A47: Imidacloprid
A48: Intrepid
A49: Intrepid Edge
A50: Intruder
A51: Justice
A52: Karate/Warrior II
A53: Lannate
A54: Larvin
A55: Leverage 360
A56: Lorsban
A57: Lorsban Advanced
A58: Malathion
A59: Methyl
A60: Mustang Max
A61: Oberon
A62: Orthene 90S
A63: Portal
A64: Pounce
A65: Prevathon
A66: Radiant
A67: Seven XLR
A68: Sevin
A69: Stallion
A70: Steward
A71: Transform
A72: Triple Crown
A73: Vydate
A74: Warrior II
A75: Zeal

Sheet Corn NT Non-Irr
B1: 2024 Corn, No-Till, Non-Irrigated Budget | L1: Table 1. Fertilizer & Lime3
E2: Unit | F2: Quantity | G2: Price | H2: Total | J2: Your Farm | L2: Fertilizer | M2: Description | N2: Quantity (lbs.) | O2: Price ($) | P2: Total ($/Acre) | Q2: Your Farm ($/Acre)
B3: Revenue1 | E3: Gross Revenue ($/Acre) | L3: Nitrogen | M3: Urea - Planting | N3: 60 | O3: =Inputs!C44 -> 0.61 | P3: =N3*O3 -> 36.6 | Q3: _________
C4: Corn | E4: Bu/acre | F4: 175 | G4: =Inputs!C3 -> 4.95 | H4: =F4*G4 -> 866.25 | J4: _________ | M4: UAN 32 - Side dress | N4: 120 | O4: =Inputs!C47 -> 0.64 | P4: =N4*O4 -> 76.8 | Q4: _________
C5: Government Payments | E5: $/acre | F5: 1 | G5: 0 | H5: =F5*G5 -> 0 | J5: _________ | L5: Phosphorous | M5: P2O5 | N5: 70 | O5: =Inputs!C48 -> 0.65 | P5: =+N5*O5 -> 45.5 | Q5: _________
C6: Other Revenue | E6: $/acre | F6: 1 | G6: 0 | H6: =F6*G6 -> 0 | J6: _________ | L6: Potassium | M6: K20 | N6: 70 | O6: =Inputs!C50 -> 0.43 | P6: =+N6*O6 -> 30.1 | Q6: _________
B7: Total Revenue | H7: =SUM(H4:H6) -> 866.25 | J7: _________ | L7: Zinc Sulfate | N7: 15 | O7: =+Inputs!C54 -> 0.5 | P7: =+N7*O7 -> 7.5 | Q7: _________
B8: Variable Expenses | L8: Boron | N8: 1 | O8: =Inputs!C52 -> 2.355 | P8: =+N8*O8 -> 2.355 | Q8: _________
C9: Seed2 | E9: Thous. | F9: 32 | G9: =+Inputs!C36 -> 3.6 | H9: =+F9*G9 -> 115.2 | J9: _________ | L9: Lime | N9: 1000 | O9: =+Inputs!C51 -> 30 | P9: =+N9/2000*O9 -> 15 | Q9: _________
C10: Fertilizer & Lime (Table 1) | E10: Acre | F10: 1 | G10: =+P12 -> 213.855 | H10: =+F10*G10 -> 213.855 | J10: _________ | L10: Other | N10: 0 | O10: 0 | P10: =N10*O10 -> 0 | Q10: _________
C11: Chemical (Table 2) | E11: Acre | F11: 1 | G11: =S28 -> 71.92 | H11: =F11*G11 -> 71.92 | J11: _________ | L11: Other | N11: 0 | O11: 0 | P11: =N11*O11 -> 0 | Q11: _________
C12: Crop Scout or Consultant | E12: Acre | F12: 1 | G12: =+Inputs!C18 -> 10 | H12: =F12*G12 -> 10 | J12: _________ | L12: Total | P12: =SUM(P3:P11) -> 213.855 | Q12: _________
C13: Repair & Maintenance (Table 3) | E13: Acre | F13: 1 | G13: =+Q44 -> 45.97995936 | H13: =+F13*G13 -> 45.97995936 | J13: _________
C14: Fuel, Oil & Filter (Table 3) | E14: Acre | F14: 1 | G14: =+R44 -> 25.75973242 | H14: 25.75973242 | J14: _________ | L14: Table 2. Chemicals4
C15: Operator Labor (Table 3) | E15: Acre | F15: 1 | G15: =+S44 -> 13.97576654 | H15: 13.97576654 | J15: _________ | L15: Chemical | M15: Function | N15: Description | O15: Unit | P15: Number of Apps. | Q15: Quantity | R15: Price | S15: Total ($/Acre) | T15: Your Farm ($/Acre)
C16: Crop Insurance6 | E16: Acre | F16: 1 | G16: =+Inputs!C24 -> 20.4 | H16: 20.4 | J16: _________ | L16: Herbicides | M16: Burndown | N16: Gramoxone SL | O16: oz. | P16: 1 | Q16: 40 | R16: =Herbicides!B47 -> 0.33125 | S16: =P16*Q16*R16 -> 13.25 | T16: _________
C17: Machinery Rental | E17: Acre | F17: 1 | G17: 0 | H17: 0 | J17: _________ | M17: Pre-Emerge | N17: Atrazine | O17: qt. | P17: 1 | Q17: 1.5 | R17: =Herbicides!B8 -> 4.9 | S17: =P17*Q17*R17 -> 7.35 | T17: _________
C18: Custom Work | E18: Acre | F18: 1 | G18: 0 | H18: 0 | J18: _________ | N18: Other | P18: 0 | Q18: 0 | R18: 0 | S18: 0 | T18: _________
C19: Drying (Fuel/Electric) | E19: Bu | F19: =+F4 -> 175 | G19: 0 | H19: 0 | J19: _________ | M19: Post-Emerge | N19: Halex GT | O19: pt. | P19: 1 | Q19: 3.6 | R19: =Herbicides!B49 -> 9.95 | S19: 35.82 | T19: _________
C20: Other | E20: Acre | F20: 1 | G20: 0 | H20: =F20*G20 -> 0 | J20: _________ | N20: Atrazine | O20: qt. | P20: 1 | Q20: 1 | R20: =Herbicides!B8 -> 4.9 | S20: 4.9 | T20: _________
C21: Other | E21: Acre | F21: 1 | G21: 0 | H21: =F21*G21 -> 0 | J21: _________ | N21: Other | P21: 0 | Q21: 0 | R21: 0 | S21: 0 | T21: _________
C22: Operating Interest 7 | E22: % | F22: =SUM(H9:H21) -> 517.0904583 | G22: =+Inputs!C14 -> 0.085 | H22: =(F22*G22)/2 -> 21.97634448 | J22: _________ | M22: Harvest Aid | N22: Gramoxone SL | P22: 1 | Q22: 32 | R22: =+Herbicides!B47 -> 0.33125 | S22: 10.6 | T22: _________
B23: Total Variable Expenses | H23: =SUM(H9:H22) -> 539.0668028 | J23: _________ | N23: Other | P23: 0 | Q23: 0 | R23: 0 | S23: 0 | T23: _________
B24: Return Above Variable Expenses | H24: =H7-H23 -> 327.1831972 | J24: _________ | L24: Insecticides | N24: Other | P24: 0 | Q24: 0 | R24: 0 | S24: 0 | T24: _________
B25: Fixed Expenses | N25: Other | P25: 0 | Q25: 0 | R25: 0 | S25: 0 | T25: _________
C26: Machinery | L26: Fungicides | N26: Other | P26: 0 | Q26: 0 | R26: 0 | S26: 0 | T26: _________
C27: Capital Recovery (Table 3) | E27: Acre | F27: 1 | G27: =+P44 -> 127.8931878 | H27: =+F27*G27 -> 127.8931878 | J27: _________ | N27: Other | P27: 0 | Q27: 0 | R27: 0 | S27: =P27*Q27*R27 -> 0 | T27: _________
C28: Other Fixed Machinery Costs | E28: Acre | F28: 1 | G28: =+Inputs!C30 -> 0 | H28: =+F28*G28 -> 0 | J28: _________ | L28: Total | S28: =SUM(S16:S27) -> 71.92 | T28: _________
C29: General Overhead | E29: Acre | F29: 1 | G29: 20 | H29: =+F29*G29 -> 20 | J29: _________
C30: Cash Rent8 | E30: Acre | F30: 1 | G30: =+Inputs!C23 -> 113 | H30: 113 | J30: _________ | L30: Table 3. Machinery5
C31: Insurance (Non-Machinery) | E31: Acre | F31: 1 | G31: 0 | H31: 0 | J31: _________ | M31: Power Unit | N31: Implement | O31: Size | P31: Capital Recovery | Q31: Repairs & Maintenance | R31: Fuel, Oil & Filter | S31: Labor | T31: Total | U31: Your Farm ($/Acre)
C32: Management Labor | E32: Acre | F32: 1 | G32: =Inputs!C33 -> 25 | H32: =+F32*G32 -> 25 | J32: _________ | L32: Burndown | M32: SP Boom Sprayer | O32: 90' | P32: =+'Field Operations'!F11 -> 10.08349574 | Q32: =+'Field Operations'!G11 -> 0.2942877349 | R32: =+'Field Operations'!H11 -> 0.4360736111 | S32: =+'Field Operations'!I11 -> 0.318287037 | T32: =SUM(P32:S32) -> 11.13214413 | U32: _________
C33: Other | E33: Acre | F33: 1 | G33: 0 | H33: =+F33*G33 -> 0 | J33: _________ | L33: Fertilize | M33: Tractor, 215 hp | N33: Fertilize Spreader | P33: ='Field Operations'!F10 -> 5.383607559 | Q33: ='Field Operations'!G10 -> 1.596529341 | R33: ='Field Operations'!H10 -> 2.88342551 | S33: ='Field Operations'!I10 -> 1.683673469 | T33: 11.54723588 | U33: _________
B34: Total Fixed Expenses | H34: =+SUM(H27:H33) -> 285.8931878 | J34: _________ | L34: Plant | M34: Tractor, 215 hp | N34: Planter | O34: 16-row | P34: =+'Field Operations'!F8 -> 16.94395286 | Q34: =+'Field Operations'!G8 -> 2.876988318 | R34: =+'Field Operations'!H8 -> 2.717074038 | S34: =+'Field Operations'!I8 -> 1.586538462 | T34: =SUM(P34:S34) -> 24.12455368 | U34: _________
B35: Total Expenses | H35: =H23+H34 -> 824.9599906 | J35: _________ | L35: Weed Control | M35: SP Boom Sprayer | O35: 90' | P35: =+'Field Operations'!F11 -> 10.08349574 | Q35: =+'Field Operations'!G11 -> 0.2942877349 | R35: =+'Field Operations'!H11 -> 0.4360736111 | S35: =+'Field Operations'!I11 -> 0.318287037 | T35: =SUM(P35:S35) -> 11.13214413 | U35: _________
B36: Return Above Specified Expenses | H36: =H7-H35 -> 41.29000943 | J36: _________ | L36: Weed Control | M36: SP Boom Sprayer | O36: 90' | P36: =+'Field Operations'!F11 -> 10.08349574 | Q36: =+'Field Operations'!G11 -> 0.2942877349 | R36: =+'Field Operations'!H11 -> 0.4360736111 | S36: =+'Field Operations'!I11 -> 0.318287037 | T36: =SUM(P36:S36) -> 11.13214413 | U36: _________
L37: Weed Control | M37: SP Boom Sprayer | O37: 90' | P37: ='Field Operations'!F11 -> 10.08349574 | Q37: ='Field Operations'!G11 -> 0.2942877349 | R37: ='Field Operations'!H11 -> 0.4360736111 | S37: ='Field Operations'!I11 -> 0.318287037 | T37: =SUM(P37:S37) -> 11.13214413 | U37: _________
B38: Breakeven Price for Selected Yield | F38: Breakeven Yield for Selected Price | L38: Fertilize | M38: Tractor, 215 hp | N38: Fertilize Spreader | P38: =+'Field Operations'!F10 -> 5.383607559 | Q38: =+'Field Operations'!G10 -> 1.596529341 | R38: =+'Field Operations'!H10 -> 2.88342551 | S38: =+'Field Operations'!I10 -> 1.683673469 | T38: =SUM(P38:S38) -> 11.54723588 | U38: _________
B39: Yield | C39: Variable Cost | D39: Total Specified Cost | F39: Price | G39: Variable Cost | I39: Total Specified Cost | L39: Fertilize | M39: Tractor, 215 hp | N39: Fertilize Spreader | P39: =+'Field Operations'!F10 -> 5.383607559 | Q39: =+'Field Operations'!G10 -> 1.596529341 | R39: =+'Field Operations'!H10 -> 2.88342551 | S39: =+'Field Operations'!I10 -> 1.683673469 | T39: =SUM(P39:S39) -> 11.54723588 | U39: _________
B40: (bu) | C40: ($/bu) | D40: ($/bu) | F40: ($/bu) | G40: (bu) | I40: (bu) | L40: Harvest | M40: Combine | N40: Corn Head | O40: 8-row | P40: =+'Field Operations'!F12 -> 39.38721502 | Q40: =+'Field Operations'!G12 -> 35.05079519 | R40: =+'Field Operations'!H12 -> 10.09198929 | S40: =+'Field Operations'!I12 -> 3.273809524 | T40: =SUM(P40:S40) -> 87.80380901 | U40: _________
B41: =SUM(B42-10) -> 125 | C41: =$H$23/B41 -> 4.312534422 | D41: =($H$23+$H$34)/B41 -> 6.599679925 | F41: =SUM(F42-0.25) -> 3.7 | G41: =+$H$23/F41 -> 145.6937305 | I41: =+($H$23+$H$34)/F41 -> 222.9621596 | L41: Haul | M41: Tractor, 215 hp | N41: Grain Cart | O41: ='Field Operations'!E14 -> 800 bu | P41: =+'Field Operations'!F14 -> 7.397214231 | Q41: =+'Field Operations'!G14 -> 0.8354368884 | R41: =+'Field Operations'!H14 -> 1.766098125 | S41: =+'Field Operations'!I14 -> 1.03125 | T41: =SUM(P41:S41) -> 11.02999924 | U41: _________
B42: =SUM(B43-10) -> 135 | C42: 3.993087428 | D42: 6.110814745 | F42: =SUM(F43-0.25) -> 3.95 | G42: 136.4726083 | I42: 208.8506305 | L42: Haul | M42: ='Field Operations'!C16 -> Semi Tractor/Trailer | P42: ='Field Operations'!F16 -> 7.68 | Q42: ='Field Operations'!G16 -> 1.25 | R42: ='Field Operations'!H16 -> 0.79 | S42: ='Field Operations'!I16 -> 1.76 | T42: =SUM(P42:S42) -> 11.48 | U42: _________
B43: =SUM(B44-10) -> 145 | C43: 3.717702088 | D43: 5.689379245 | F43: =SUM(F44-0.25) -> 4.2 | G43: 128.3492388 | I43: 196.4190454 | L43: Other | P43: 0 | Q43: 0 | R43: 0 | S43: 0 | T43: =SUM(P43:S43) -> 0 | U43: _________
B44: =SUM(B45-10) -> 155 | C44: 3.477850341 | D44: 5.32232252 | F44: =SUM(F45-0.25) -> 4.45 | G44: 121.1386074 | I44: 185.3842675 | L44: Total | P44: =SUM(P32:P43) -> 127.8931878 | Q44: =SUM(Q32:Q43) -> 45.97995936 | R44: =SUM(R32:R43) -> 25.75973242 | S44: =SUM(S32:S43) -> 13.97576654 | T44: =SUM(T32:T43) -> 213.6086461 | U44: _________
B45: =SUM(B46-10) -> 165 | C45: 3.267071532 | D45: 4.999757519 | F45: =SUM(F46-0.25) -> 4.7 | G45: 114.6950644 | I45: 175.5234022
B46: =+F4 -> 175 | C46: 3.08038173 | D46: 4.714057089 | F46: =+G4 -> 4.95 | G46: 108.9023844 | I46: 166.658584
B47: =SUM(B46+10) -> 185 | C47: 2.91387461 | D47: 4.459243192 | F47: =SUM(F46+0.25) -> 5.2 | G47: 103.6666928 | I47: 158.646152
B48: =SUM(B47+10) -> 195 | C48: 2.764445143 | D48: 4.230564054 | F48: =SUM(F47+0.25) -> 5.45 | G48: 98.91133996 | I48: 151.3688056
B49: =SUM(B48+10) -> 205 | C49: 2.62959416 | D49: 4.024195076 | F49: =SUM(F48+0.25) -> 5.7 | G49: 94.5731233 | I49: 144.7298229
B50: =SUM(B49+10) -> 215 | C50: 2.507287455 | D50: 3.837023212 | F50: =SUM(F49+0.25) -> 5.95 | G50: 90.59946266 | I50: 138.6487379
B51: =SUM(B50+10) -> 225 | C51: 2.395852457 | D51: 3.666488847 | F51: =SUM(F50+0.25) -> 6.2 | G51: 86.94625852 | I51: 133.058063

Sheet Corn CT Non-Irr
B1: 2024 Corn, Conventional Tillage, Non-Irrigated Budget | L1: Table 1. Fertilizer & Lime3
E2: Unit | F2: Quantity | G2: Price | H2: Total | J2: Your Farm | L2: Fertilizer | M2: Description | N2: Quantity (lbs.) | O2: Price ($) | P2: Total ($/Acre) | Q2: Your Farm ($/Acre)
B3: Revenue1 | E3: Gross Revenue ($/Acre) | L3: Nitrogen | M3: Urea - Planting | N3: 60 | O3: =Inputs!C44 -> 0.61 | P3: =N3*O3 -> 36.6 | Q3: _________
C4: Corn | E4: Bu/acre | F4: 175 | G4: =+Inputs!C3 -> 4.95 | H4: =F4*G4 -> 866.25 | J4: _________ | M4: UAN 32 - Side dress | N4: 120 | O4: =Inputs!C47 -> 0.64 | P4: =N4*O4 -> 76.8 | Q4: _________
C5: Government Payments | E5: $/acre | F5: 1 | G5: 0 | H5: =F5*G5 -> 0 | J5: _________ | L5: Phosphorous | M5: P2O5 | N5: 70 | O5: =Inputs!C48 -> 0.65 | P5: =+N5*O5 -> 45.5 | Q5: _________
C6: Other Revenue | E6: $/acre | F6: 1 | G6: 0 | H6: 0 | J6: _________ | L6: Potassium | M6: K20 | N6: 70 | O6: =Inputs!C50 -> 0.43 | P6: =+N6*O6 -> 30.1 | Q6: _________
B7: Total Revenue | H7: =SUM(H4:H6) -> 866.25 | J7: _________ | L7: Zinc Sulfate | N7: 15 | O7: =Inputs!C54 -> 0.5 | P7: =+N7*O7 -> 7.5 | Q7: _________
B8: Variable Expenses | L8: Boron | N8: 1 | O8: =Inputs!C52 -> 2.355 | P8: =+N8*O8 -> 2.355 | Q8: _________
C9: Seed2 | E9: Thous. | F9: 32 | G9: =+Inputs!C36 -> 3.6 | H9: =+F9*G9 -> 115.2 | J9: _________ | L9: Lime | N9: 1000 | O9: =Inputs!C51 -> 30 | P9: =N9/2000*O9 -> 15 | Q9: _________
C10: Fertilizer & Lime (Table 1) | E10: Acre | F10: 1 | G10: =+P12 -> 213.855 | H10: =+F10*G10 -> 213.855 | J10: _________ | L10: Other | N10: 0 | O10: 0 | P10: =N10*O10 -> 0 | Q10: _________
C11: Chemical (Table 2) | E11: Acre | F11: 1 | G11: =S27 -> 58.67 | H11: =F11*G11 -> 58.67 | J11: _________ | L11: Other | N11: 0 | O11: 0 | P11: =N11*O11 -> 0 | Q11: _________
C12: Crop Scout or Consultant | E12: Acre | F12: 1 | G12: =+Inputs!C18 -> 10 | H12: =F12*G12 -> 10 | J12: _________ | L12: Total | P12: =SUM(P3:P11) -> 213.855 | Q12: _________
C13: Repair & Maintenance (Table 3) | E13: Acre | F13: 1 | G13: =+Q45 -> 51.47247204 | H13: =+F13*G13 -> 51.47247204 | J13: _________
C14: Fuel, Oil & Filter (Table 3) | E14: Acre | F14: 1 | G14: =+R45 -> 35.79787263 | H14: 35.79787263 | J14: _________ | L14: Table 2. Chemicals4
C15: Operator Labor (Table 3) | E15: Acre | F15: 1 | G15: =+S45 -> 19.77352303 | H15: 19.77352303 | J15: _________ | L15: Chemical | M15: Function | N15: Description | O15: Unit | P15: Number of Apps. | Q15: Quantity | R15: Price | S15: Total ($/Acre) | T15: Your Farm ($/Acre)
C16: Crop Insurance6 | E16: Acre | F16: 1 | G16: =+Inputs!C24 -> 20.4 | H16: 20.4 | J16: _________ | L16: Herbicides | M16: Pre-Emerge | N16: Atrazine | O16: qt. | P16: 1 | Q16: 1 | R16: =Herbicides!B8 -> 4.9 | S16: =P16*Q16*R16 -> 4.9 | T16: _________
C17: Machinery Rental | E17: Acre | F17: 1 | G17: 0 | H17: 0 | J17: _________ | N17: Other | P17: 0 | Q17: 0 | R17: 0 | S17: =P17*Q17*R17 -> 0 | T17: _________
C18: Custom Work | E18: Acre | F18: 1 | G18: 0 | H18: 0 | J18: _________ | M18: Post-Emerge | N18: Halex GT | O18: pt. | P18: 1 | Q18: 3.6 | R18: =Herbicides!B49 -> 9.95 | S18: =P18*Q18*R18 -> 35.82 | T18: _________
C19: Drying (Fuel/Electric) | E19: Bu | F19: =+F4 -> 175 | G19: 0 | H19: 0 | J19: _________ | N19: Atrazine | O19: qt. | P19: 1 | Q19: 1.5 | R19: =Herbicides!B8 -> 4.9 | S19: 7.35 | T19: _________
C20: Other | E20: Acre | F20: 1 | G20: 0 | H20: =F20*G20 -> 0 | J20: _________ | N20: Other | P20: 0 | Q20: 0 | R20: 0 | S20: 0 | T20: _________
C21: Other | E21: Acre | F21: 1 | G21: 0 | H21: =F21*G21 -> 0 | J21: _________ | M21: Harvest Aid | N21: Gramoxone SL | P21: 1 | Q21: 32 | R21: =Herbicides!B47 -> 0.33125 | S21: 10.6 | T21: _________
C22: Operating Interest 7 | E22: % | F22: =SUM(H9:H21) -> 525.1688677 | G22: =+Inputs!C14 -> 0.085 | H22: =(F22*G22)/2 -> 22.31967688 | J22: _________ | N22: Other | P22: 0 | Q22: 0 | R22: 0 | S22: 0 | T22: _________
B23: Total Variable Expenses | H23: =SUM(H9:H22) -> 547.4885446 | J23: _________ | L23: Insecticides | N23: Other | P23: 0 | Q23: 0 | R23: 0 | S23: 0 | T23: _________
B24: Return Above Variable Expenses | H24: =H7-H23 -> 318.7614554 | J24: _________ | N24: Other | P24: 0 | Q24: 0 | R24: 0 | S24: 0 | T24: _________
B25: Fixed Expenses | L25: Fungicides | N25: Other | P25: 0 | Q25: 0 | R25: 0 | S25: 0 | T25: _________
C26: Machinery | N26: Other | P26: 0 | Q26: 0 | R26: 0 | S26: =P26*Q26*R26 -> 0 | T26: _________
C27: Capital Recovery (Table 3) | E27: Acre | F27: 1 | G27: =+P45 -> 145.036137 | H27: =+F27*G27 -> 145.036137 | J27: _________ | L27: Total | S27: =SUM(S16:S26) -> 58.67 | T27: _________
C28: Other Fixed Machinery Costs | E28: Acre | F28: 1 | G28: =+Inputs!C30 -> 0 | H28: =+F28*G28 -> 0 | J28: _________
C29: General Overhead | E29: Acre | F29: 1 | G29: 20 | H29: 20 | J29: _________ | L29: Table 3. Machinery5
C30: Cash Rent8 | E30: Acre | F30: 1 | G30: =+Inputs!C23 -> 113 | H30: =+F30*G30 -> 113 | J30: _________ | M30: Power Unit | N30: Implement | O30: Size | P30: Capital Recovery | Q30: Repairs & Maintenance | R30: Fuel, Oil & Filter | S30: Labor | T30: Total | U30: Your Farm ($/Acre)
C31: Insurance (Non-Machinery) | E31: Acre | F31: 1 | G31: 0 | H31: 0 | J31: _________ | L31: Chisel | M31: Tractor, 215 hp | N31: Chisel Plow | O31: 21' | P31: =+'Field Operations'!F4 -> 7.336313628 | Q31: =+'Field Operations'!G4 -> 2.034898445 | R31: =+'Field Operations'!H4 -> 3.957642857 | S31: =+'Field Operations'!I4 -> 2.31092437 | T31: =SUM(P31:S31) -> 15.6397793 | U31: _________
C32: Management Labor | E32: Acre | F32: 1 | G32: =Inputs!C33 -> 25 | H32: =+F32*G32 -> 25 | J32: _________ | L32: Disk | M32: Tractor, 215 hp | N32: Tandem Disk | O32: 29' | P32: =+'Field Operations'!F5 -> 12.19552947 | Q32: =+'Field Operations'!G5 -> 2.015124735 | R32: =+'Field Operations'!H5 -> 3.184310345 | S32: =+'Field Operations'!I5 -> 1.859364435 | T32: 19.25432899 | U32: _________
C33: Other | E33: Acre | F33: 1 | G33: 0 | H33: =+F33*G33 -> 0 | J33: _________ | L33: Prepare Seedbed | M33: Tractor, 215 hp | N33: Do-All | O33: 26.5' | P33: =+'Field Operations'!F6 -> 7.694601856 | Q33: =+'Field Operations'!G6 -> 1.736777239 | R33: =+'Field Operations'!H6 -> 3.332260613 | S33: =+'Field Operations'!I6 -> 1.945754717 | T33: =SUM(P33:S33) -> 14.70939443 | U33: _________
B34: Total Fixed Expenses | H34: =+SUM(H27:H33) -> 303.036137 | J34: _________ | L34: Plant | M34: Tractor, 215 hp | N34: Planter | O34: 16-row | P34: =+'Field Operations'!F8 -> 16.94395286 | Q34: =+'Field Operations'!G8 -> 2.876988318 | R34: =+'Field Operations'!H8 -> 2.717074038 | S34: =+'Field Operations'!I8 -> 1.586538462 | T34: 24.12455368 | U34: _________
B35: Total Expenses | H35: =H23+H34 -> 850.5246816 | J35: _________ | L35: Fertilize | M35: Tractor, 215 hp | N35: Fertilize Spreader | P35: =+'Field Operations'!F10 -> 5.383607559 | Q35: =+'Field Operations'!G10 -> 1.596529341 | R35: =+'Field Operations'!H10 -> 2.88342551 | S35: =+'Field Operations'!I10 -> 1.683673469 | T35: 11.54723588 | U35: _________
B36: Return Above Specified Expenses | H36: =H7-H35 -> 15.72531845 | J36: _________ | L36: Fertilize | M36: Tractor, 215 hp | N36: Fertilize Spreader | P36: =+'Field Operations'!F10 -> 5.383607559 | Q36: =+'Field Operations'!G10 -> 1.596529341 | R36: =+'Field Operations'!H10 -> 2.88342551 | S36: =+'Field Operations'!I10 -> 1.683673469 | T36: =SUM(P36:S36) -> 11.54723588 | U36: _________
L37: Fertilize | M37: Tractor, 215 hp | N37: Fertilize Spreader | P37: ='Field Operations'!F10 -> 5.383607559 | Q37: ='Field Operations'!G10 -> 1.596529341 | R37: ='Field Operations'!H10 -> 2.88342551 | S37: ='Field Operations'!I10 -> 1.683673469 | T37: 11.54723588 | U37: _________
B38: Breakeven Price for Selected Yield | F38: Breakeven Yield for Selected Price | L38: Weed Control | M38: SP Boom Sprayer | O38: 90' | P38: =P39 -> 10.08349574 | Q38: =Q39 -> 0.2942877349 | R38: 0.4360736111 | S38: 0.318287037 | T38: 11.13214413 | U38: _________
B39: Yield | C39: Variable Cost | D39: Total Specified Cost | F39: Price | G39: Variable Cost | I39: Total Specified Cost | L39: Weed Control | M39: SP Boom Sprayer | O39: 90' | P39: =+'Field Operations'!F11 -> 10.08349574 | Q39: =+'Field Operations'!G11 -> 0.2942877349 | R39: =+'Field Operations'!H11 -> 0.4360736111 | S39: =+'Field Operations'!I11 -> 0.318287037 | T39: =SUM(P39:S39) -> 11.13214413 | U39: _________
B40: (bu) | C40: ($/bu) | D40: ($/bu) | F40: ($/bu) | G40: (bu) | I40: (bu) | L40: Weed Control | M40: SP Boom Sprayer | O40: 90' | P40: =+'Field Operations'!F11 -> 10.08349574 | Q40: =+'Field Operations'!G11 -> 0.2942877349 | R40: =+'Field Operations'!H11 -> 0.4360736111 | S40: =+'Field Operations'!I11 -> 0.318287037 | T40: =SUM(P40:S40) -> 11.13214413 | U40: _________
B41: =SUM(B42-10) -> 125 | C41: =$H$23/B41 -> 4.379908357 | D41: =($H$23+$H$34)/B41 -> 6.804197452 | F41: =SUM(F42-0.25) -> 3.7 | G41: =+$H$23/F41 -> 147.9698769 | I41: =+($H$23+$H$34)/F41 -> 229.8715356 | L41: Harvest | M41: Combine | N41: Corn Head | O41: 8-row | P41: =+'Field Operations'!F12 -> 39.38721502 | Q41: =+'Field Operations'!G12 -> 35.05079519 | R41: =+'Field Operations'!H12 -> 10.09198929 | S41: =+'Field Operations'!I12 -> 3.273809524 | T41: =SUM(P41:S41) -> 87.80380901 | U41: _________
B42: =SUM(B43-10) -> 135 | C42: 4.055470701 | D42: 6.300182826 | F42: =SUM(F43-0.25) -> 3.95 | G42: 138.6046948 | I42: 215.3227042 | L42: Haul | M42: Tractor, 215 hp | N42: Grain Cart | O42: ='Field Operations'!E14 -> 800 bu | P42: =+'Field Operations'!F14 -> 7.397214231 | Q42: =+'Field Operations'!G14 -> 0.8354368884 | R42: =+'Field Operations'!H14 -> 1.766098125 | S42: =+'Field Operations'!I14 -> 1.03125 | T42: =SUM(P42:S42) -> 11.02999924 | U42: _________
B43: =SUM(B44-10) -> 145 | C43: 3.775783066 | D43: 5.865687459 | F43: =SUM(F44-0.25) -> 4.2 | G43: 130.3544154 | I43: 202.5058766 | L43: Haul | M43: ='Field Operations'!C16 -> Semi Tractor/Trailer | P43: ='Field Operations'!F16 -> 7.68 | Q43: ='Field Operations'!G16 -> 1.25 | R43: ='Field Operations'!H16 -> 0.79 | S43: ='Field Operations'!I16 -> 1.76 | T43: =SUM(P43:S43) -> 11.48 | U43: _________
B44: =SUM(B45-10) -> 155 | C44: 3.532184159 | D44: 5.48725601 | F44: =SUM(F45-0.25) -> 4.45 | G44: 123.0311336 | I44: 191.1291419 | L44: Other | P44: 0 | Q44: 0 | R44: 0 | S44: 0 | T44: =SUM(P44:S44) -> 0 | U44: _________
B45: =SUM(B46-10) -> 165 | C45: 3.318112391 | D45: 5.15469504 | F45: =SUM(F46-0.25) -> 4.7 | G45: 116.4869244 | I45: 180.9626982 | L45: Total | P45: =SUM(P31:P44) -> 145.036137 | Q45: =SUM(Q31:Q44) -> 51.47247204 | R45: =SUM(R31:R44) -> 35.79787263 | S45: =SUM(S31:S44) -> 19.77352303 | T45: =SUM(T31:T44) -> 252.0800047 | U45: _________
B46: =+F4 -> 175 | C46: 3.128505969 | D46: 4.860141037 | F46: =+G4 -> 4.95 | G46: 110.6037464 | I46: 171.823168
B47: =SUM(B46+10) -> 185 | C47: 2.959397538 | D47: 4.597430711 | F47: =SUM(F46+0.25) -> 5.2 | G47: 105.2862586 | I47: 163.5624388
B48: =SUM(B47+10) -> 195 | C48: 2.807633562 | D48: 4.361665034 | F48: =SUM(F47+0.25) -> 5.45 | G48: 100.4566137 | I48: 156.0595746
B49: =SUM(B48+10) -> 205 | C49: 2.670675827 | D49: 4.148900886 | F49: =SUM(F48+0.25) -> 5.7 | G49: 96.05062185 | I49: 149.2148564
B50: =SUM(B49+10) -> 215 | C50: 2.546458347 | D50: 3.955928751 | F50: =SUM(F49+0.25) -> 5.95 | G50: 92.01488144 | I50: 142.9453246
B51: =SUM(B50+10) -> 225 | C51: 2.43328242 | D51: 3.780109696 | F51: =SUM(F50+0.25) -> 6.2 | G51: 88.30460396 | I51: 137.1814003

Sheet Corn Irr
B1: 2024 Corn, No-Till, Irrigated Budget | L1: Table 1. Fertilizer & Lime3
E2: Unit | F2: Quantity | G2: Price | H2: Total | J2: Your Farm | L2: Fertilizer | M2: Description | N2: Quantity (lbs.) | O2: Price ($) | P2: Total ($/Acre) | Q2: Your Farm ($/Acre)
B3: Revenue1 | E3: Gross Revenue ($/Acre) | L3: Nitrogen | M3: Urea - Planting | N3: 80 | O3: =Inputs!C44 -> 0.61 | P3: =N3*O3 -> 48.8 | Q3: _________
C4: Corn | E4: Bu/acre | F4: 240 | G4: =+Inputs!C3 -> 4.95 | H4: =F4*G4 -> 1188 | J4: _________ | M4: UAN 32 - Side dress | N4: 160 | O4: =Inputs!C47 -> 0.64 | P4: =N4*O4 -> 102.4 | Q4: _________
C5: Government Payments | E5: $/acre | F5: 1 | G5: 0 | H5: =F5*G5 -> 0 | J5: _________ | L5: Phosphorous | M5: P2O5 | N5: 90 | O5: =Inputs!C48 -> 0.65 | P5: =+N5*O5 -> 58.5 | Q5: _________
C6: Other Revenue | E6: $/acre | F6: 1 | G6: 0 | H6: 0 | J6: _________ | L6: Potassium | M6: K20 | N6: 90 | O6: =Inputs!C50 -> 0.43 | P6: =+N6*O6 -> 38.7 | Q6: _________
B7: Total Revenue | H7: =SUM(H4:H6) -> 1188 | J7: _________ | L7: Zinc Sulfate | N7: 15 | O7: =Inputs!C54 -> 0.5 | P7: =+N7*O7 -> 7.5 | Q7: _________
B8: Variable Expenses | L8: Boron | N8: 1 | O8: =Inputs!C52 -> 2.355 | P8: =+N8*O8 -> 2.355 | Q8: _________
C9: Seed2 | E9: Thous. | F9: 36.5 | G9: =+Inputs!C36 -> 3.6 | H9: =+F9*G9 -> 131.4 | J9: _________ | L9: Lime | N9: 1000 | O9: =Inputs!C51 -> 30 | P9: =N9/2000*O9 -> 15 | Q9: _________
C10: Fertilizer & Lime (Table 1) | E10: Acre | F10: 1 | G10: =+P12 -> 273.255 | H10: =+F10*G10 -> 273.255 | J10: _________ | L10: Other | N10: 0 | O10: 0 | P10: =N10*O10 -> 0 | Q10: _________
C11: Chemical (Table 2) | E11: Acre | F11: 1 | G11: =S28 -> 71.92 | H11: =F11*G11 -> 71.92 | J11: _________ | L11: Other | N11: 0 | O11: 0 | P11: =N11*O11 -> 0 | Q11: _________
C12: Crop Scout or Consultant | E12: Acre | F12: 1 | G12: =+Inputs!C18 -> 10 | H12: =F12*G12 -> 10 | J12: _________ | L12: Total | P12: =SUM(P3:P11) -> 273.255 | Q12: _________
C13: Repair & Maintenance (Table 3) | E13: Acre | F13: 1 | G13: =+Q44 -> 46.47685377 | H13: =+F13*G13 -> 46.47685377 | J13: _________
C14: Fuel, Oil & Filter (Table 3) | E14: Acre | F14: 1 | G14: =+R44 -> 26.07376969 | H14: 26.07376969 | J14: _________ | L14: Table 2. Chemicals4
C15: Operator Labor (Table 3) | E15: Acre | F15: 1 | G15: =+S44 -> 14.67539387 | H15: 14.67539387 | J15: _________ | L15: Chemical | M15: Function | N15: Description | O15: Unit | P15: Number of Apps. | Q15: Quantity | R15: Price | S15: Total ($/Acre) | T15: Your Farm ($/Acre)
C16: Crop Insurance6 | E16: Acre | F16: 1 | G16: =+Inputs!C24 -> 20.4 | H16: 20.4 | J16: _________ | L16: Herbicides | M16: Burndown | N16: Gramoxone SL | O16: oz. | P16: 1 | Q16: 40 | R16: =Herbicides!B47 -> 0.33125 | S16: =P16*Q16*R16 -> 13.25 | T16: _________
C17: Machinery Rental | E17: Acre | F17: 1 | G17: 0 | H17: 0 | J17: _________ | M17: Pre-Emerge | N17: Atrazine | O17: qt. | P17: 1 | Q17: 1.5 | R17: =Herbicides!B8 -> 4.9 | S17: =P17*Q17*R17 -> 7.35 | T17: _________
C18: Custom Work | E18: Acre | F18: 1 | G18: 0 | H18: 0 | J18: _________ | N18: Other | P18: 0 | Q18: 0 | R18: 0 | S18: =P18*Q18*R18 -> 0 | T18: _________
C19: Drying (Fuel/Electric) | E19: Bu | F19: =+F4 -> 240 | G19: 0 | H19: 0 | J19: _________ | M19: Post-Emerge | N19: Halex GT | O19: pt. | P19: 1 | Q19: 3.6 | R19: =Herbicides!B49 -> 9.95 | S19: 35.82 | T19: _________
C20: Irrigation Energy Cost9 | E20: Ac-in | F20: 9 | G20: =+Inputs!C57 -> 7.5 | H20: =+F20*G20 -> 67.5 | J20: _________ | N20: Atrazine | O20: qt. | P20: 1 | Q20: 1 | R20: =Herbicides!B8 -> 4.9 | S20: 4.9 | T20: _________
C21: Irrigation System R&M & Labor9 | E21: Ac-in | F21: 9 | G21: =+Inputs!C58 -> 3.2 | H21: =+F21*G21 -> 28.8 | J21: _________ | N21: Other | P21: 0 | Q21: 0 | R21: 0 | S21: 0 | T21: _________
C22: Other Irrigation Costs | E22: Acre | F22: 1 | G22: 0 | H22: 0 | J22: _________ | M22: Harvest Aid | N22: Other | P22: 1 | Q22: 32 | R22: =Herbicides!B47 -> 0.33125 | S22: 10.6 | T22: _________
C23: Other | E23: Acre | F23: 1 | G23: 0 | H23: =F23*G23 -> 0 | J23: _________ | N23: Other | P23: 0 | Q23: 0 | R23: 0 | S23: 0 | T23: _________
C24: Other | E24: Acre | F24: 1 | G24: 0 | H24: =F24*G24 -> 0 | J24: _________ | L24: Insecticides | N24: Other | P24: 0 | Q24: 0 | R24: 0 | S24: 0 | T24: _________
C25: Operating Interest7 | E25: % | F25: =SUM(H9:H24) -> 690.5010173 | G25: =+Inputs!C14 -> 0.085 | H25: =(F25*G25)/2 -> 29.34629324 | J25: _________ | N25: Other | P25: 0 | Q25: 0 | R25: 0 | S25: 0 | T25: _________
B26: Total Variable Expenses | H26: =SUM(H9:H25) -> 719.8473106 | J26: _________ | L26: Fungicides | N26: Other | P26: 0 | Q26: 0 | R26: 0 | S26: 0 | T26: _________
B27: Return Above Variable Expenses | H27: =H7-H26 -> 468.1526894 | J27: _________ | N27: Other | P27: 0 | Q27: 0 | R27: 0 | S27: =P27*Q27*R27 -> 0 | T27: _________
B28: Fixed Expenses | L28: Total | S28: =SUM(S16:S27) -> 71.92 | T28: _________
C29: Machinery
C30: Capital Recovery (Table 3) | E30: Acre | F30: 1 | G30: =+P44 -> 130.946107 | H30: =+F30*G30 -> 130.946107 | J30: _________ | L30: Table 3. Machinery5
C31: Other Fixed Machinery Costs | E31: Acre | F31: 1 | G31: =+Inputs!C30 -> 0 | H31: 0 | J31: _________ | M31: Power Unit | N31: Implement | O31: Size | P31: Capital Recovery | Q31: Repairs & Maintenance | R31: Fuel, Oil & Filter | S31: Labor | T31: Total | U31: Your Farm ($/Acre)
C32: Capital Recovery (Irrigation Equipment)9 | E32: Acre | F32: 1 | G32: =+Inputs!C59 -> 100 | H32: 100 | J32: _________ | L32: Burndown | M32: SP Boom Sprayer | O32: 90' | P32: =+'Field Operations'!F11 -> 10.08349574 | Q32: =+'Field Operations'!G11 -> 0.2942877349 | R32: =+'Field Operations'!H11 -> 0.4360736111 | S32: =+'Field Operations'!I11 -> 0.318287037 | T32: =SUM(P32:S32) -> 11.13214413 | U32: _________
C33: Other Fixed Irrigation Costs | E33: Acre | F33: 1 | G33: 0 | H33: 0 | J33: _________ | L33: Plant | M33: Tractor, 215 hp | N33: Planter | O33: 16-row | P33: =+'Field Operations'!F8 -> 16.94395286 | Q33: =+'Field Operations'!G8 -> 2.876988318 | R33: =+'Field Operations'!H8 -> 2.717074038 | S33: =+'Field Operations'!I8 -> 1.586538462 | T33: 24.12455368 | U33: _________
C34: General Overhead | E34: Acre | F34: 1 | G34: 25 | H34: 25 | J34: _________ | L34: Fertilize | M34: Tractor, 215 hp | N34: Fertilize Spreader | P34: ='Field Operations'!F10 -> 5.383607559 | Q34: ='Field Operations'!G10 -> 1.596529341 | R34: ='Field Operations'!H10 -> 2.88342551 | S34: ='Field Operations'!I10 -> 1.683673469 | T34: ='Field Operations'!J10 -> 11.54723588 | U34: _________
C35: Cash Rent8 | E35: Acre | F35: 1 | G35: =Inputs!C22 -> 197 | H35: 197 | J35: _________ | L35: Weed Control | M35: SP Boom Sprayer | O35: 90' | P35: ='Field Operations'!F11 -> 10.08349574 | Q35: ='Field Operations'!G11 -> 0.2942877349 | R35: ='Field Operations'!H11 -> 0.4360736111 | S35: ='Field Operations'!I11 -> 0.318287037 | T35: ='Field Operations'!J11 -> 11.13214413 | U35: _________
C36: Insurance (Non-Machinery) | E36: Acre | F36: 1 | G36: 0 | H36: 0 | J36: _________ | L36: Weed Control | M36: SP Boom Sprayer | O36: 90' | P36: =+'Field Operations'!F11 -> 10.08349574 | Q36: =+'Field Operations'!G11 -> 0.2942877349 | R36: =+'Field Operations'!H11 -> 0.4360736111 | S36: =+'Field Operations'!I11 -> 0.318287037 | T36: =SUM(P36:S36) -> 11.13214413 | U36: _________
C37: Management Labor10 | E37: Acre | F37: 1 | G37: =Inputs!C33 -> 25 | H37: =+F37*G37*2 -> 50 | J37: _________ | L37: Weed Control | M37: SP Boom Sprayer | O37: 90' | P37: =+'Field Operations'!F11 -> 10.08349574 | Q37: =+'Field Operations'!G11 -> 0.2942877349 | R37: =+'Field Operations'!H11 -> 0.4360736111 | S37: =+'Field Operations'!I11 -> 0.318287037 | T37: 11.13214413 | U37: _________
C38: Other | E38: Acre | F38: 1 | G38: 0 | H38: 0 | J38: _________ | L38: Fertilize | M38: Tractor, 215 hp | N38: Fertilize Spreader | P38: =+'Field Operations'!F10 -> 5.383607559 | Q38: =+'Field Operations'!G10 -> 1.596529341 | R38: =+'Field Operations'!H10 -> 2.88342551 | S38: =+'Field Operations'!I10 -> 1.683673469 | T38: 11.54723588 | U38: _________
B39: Total Fixed Expenses | H39: =+SUM(H30:H38) -> 502.946107 | J39: _________ | L39: Fertilize | M39: Tractor, 215 hp | N39: Fertilize Spreader | P39: =+'Field Operations'!F10 -> 5.383607559 | Q39: =+'Field Operations'!G10 -> 1.596529341 | R39: =+'Field Operations'!H10 -> 2.88342551 | S39: =+'Field Operations'!I10 -> 1.683673469 | T39: 11.54723588 | U39: _________
B40: Total Expenses | H40: =H26+H39 -> 1222.793418 | J40: _________ | L40: Harvest | M40: Combine | N40: Corn Head | O40: 8-row | P40: =+'Field Operations'!F12 -> 39.38721502 | Q40: =+'Field Operations'!G12 -> 35.05079519 | R40: =+'Field Operations'!H12 -> 10.09198929 | S40: =+'Field Operations'!I12 -> 3.273809524 | T40: 87.80380901 | U40: _________
B41: Return Above Specified Expenses | H41: =H7-H40 -> -34.79341759 | J41: _________ | L41: Haul | M41: Tractor, 215 hp | N41: Grain Cart | O41: ='Field Operations'!E14 -> 800 bu | P41: =+'Field Operations'!F14 -> 7.397214231 | Q41: =+'Field Operations'!G14 -> 0.8354368884 | R41: =+'Field Operations'!H14 -> 1.766098125 | S41: =+'Field Operations'!I14 -> 1.03125 | T41: 11.02999924 | U41: _________
L42: Haul | M42: ='Field Operations'!C16 -> Semi Tractor/Trailer | P42: ='Field Operations'!F16*1.39751552795031 -> 10.73291925 | Q42: ='Field Operations'!G16*1.39751552795031 -> 1.74689441 | R42: ='Field Operations'!H16*1.39751552795031 -> 1.104037267 | S42: ='Field Operations'!I16*1.39751552795031 -> 2.459627329 | T42: 16.04347826 | U42: _________
B43: Breakeven Price for Selected Yield | F43: Breakeven Yield for Selected Price | L43: Other | P43: 0 | Q43: 0 | R43: 0 | S43: 0 | T43: =SUM(P43:S43) -> 0 | U43: _________
B44: Yield | C44: Variable Cost | D44: Total Specified Cost | F44: Price | G44: Variable Cost | I44: Total Specified Cost | L44: Total | P44: =SUM(P32:P43) -> 130.946107 | Q44: =SUM(Q32:Q43) -> 46.47685377 | R44: =SUM(R32:R43) -> 26.07376969 | S44: =SUM(S32:S43) -> 14.67539387 | T44: =SUM(T32:T43) -> 218.1721244 | U44: _________
B45: (bu) | C45: ($/bu) | D45: ($/bu) | F45: ($/bu) | G45: (bu) | I45: (bu)
B46: =SUM(B47-10) -> 190 | C46: =$H$26/B46 -> 3.788670056 | D46: =($H$26+$H$39)/B46 -> 6.435754829 | F46: =SUM(F47-0.25) -> 3.7 | G46: =+$H$26/F46 -> 194.5533272 | I46: =+($H$26+$H$39)/F46 -> 330.4847075
B47: =SUM(B48-10) -> 200 | C47: 3.599236553 | D47: 6.113967088 | F47: =SUM(F48-0.25) -> 3.95 | G47: 182.2398255 | I47: 309.5679538
B48: =SUM(B49-10) -> 210 | C48: 3.427844336 | D48: 5.822825798 | F48: =SUM(F49-0.25) -> 4.2 | G48: 171.3922168 | I48: 291.1412899
B49: =SUM(B50-10) -> 220 | C49: 3.27203323 | D49: 5.558151898 | F49: =SUM(F50-0.25) -> 4.45 | G49: 161.7634406 | I49: 274.7850377
B50: =SUM(B51-10) -> 230 | C50: 3.129770915 | D50: 5.31649312 | F50: =SUM(F51-0.25) -> 4.7 | G50: 153.1590022 | I50: 260.1688123
B51: =+F4 -> 240 | C51: 2.999363794 | D51: 5.094972573 | F51: =+G4 -> 4.95 | G51: 145.4236991 | I51: 247.0289732
B52: =SUM(B51+10) -> 250 | C52: 2.879389242 | D52: 4.89117367 | F52: =SUM(F51+0.25) -> 5.2 | G52: 138.4321751 | I52: 235.1525803
B53: =SUM(B52+10) -> 260 | C53: 2.768643502 | D53: 4.703051606 | F53: =SUM(F52+0.25) -> 5.45 | G53: 132.0820753 | I53: 224.3657647
B54: =SUM(B53+10) -> 270 | C54: 2.66610115 | D54: 4.52886451 | F54: =SUM(F53+0.25) -> 5.7 | G54: 126.2890019 | I54: 214.525161
B55: =SUM(B54+10) -> 280 | C55: 2.570883252 | D55: 4.367119349 | F55: =SUM(F54+0.25) -> 5.95 | G55: 120.9827413 | I55: 205.5114988
B56: =SUM(B55+10) -> 290 | C56: 2.482232105 | D56: 4.216529026 | F56: =SUM(F55+0.25) -> 6.2 | G56: 116.1044049 | I56: 197.2247448

Sheet Soybeans NT Non-Irr
B1: 2024 Soybean, No-Till, Non-Irrigated Budget | L1: Table 1. Fertilizer & Lime3
E2: Unit | F2: Quantity | G2: Price | H2: Total | J2: Your Farm | L2: Fertilizer | M2: Description | N2: Quantity (lbs.) | O2: Price ($) | P2: Total ($/Acre) | Q2: Your Farm ($/Acre)
B3: Revenue1 | E3: Gross Revenue ($/Acre) | L3: Nitrogen | N3: 0 | O3: =Inputs!C44 -> 0.61 | P3: =+N3*O3 -> 0 | Q3: _________
C4: Soybeans | E4: Bu/acre | F4: 50 | G4: =+Inputs!C4 -> 12.5 | H4: =F4*G4 -> 625 | J4: _________ | L4: Phosphorous | M4: P2O5 | N4: 30 | O4: =Inputs!C48 -> 0.65 | P4: =N4*O4 -> 19.5 | Q4: _________
C5: Government Payments | E5: $/acre | F5: 1 | G5: 0 | H5: =F5*G5 -> 0 | J5: _________ | L5: Potassium | M5: K20 | N5: 60 | O5: =Inputs!C50 -> 0.43 | P5: =N5*O5 -> 25.8 | Q5: _________
C6: Other Revenue | E6: $/acre | F6: 1 | G6: 0 | H6: 0 | J6: _________ | L6: Lime | N6: 1000 | O6: =+Inputs!C51 -> 30 | P6: =N6/2000*O6 -> 15 | Q6: _________
B7: Total Revenue | H7: =SUM(H4:H6) -> 625 | J7: _________ | L7: Boron | N7: 1 | O7: =Inputs!C52 -> 2.355 | P7: =N7*O7 -> 2.355 | Q7: _________
B8: Variable Expenses | L8: Other | N8: 0 | O8: 0 | P8: =N8*O8 -> 0 | Q8: _________
C9: Seed2 | E9: Thous. | F9: 140 | G9: =+Inputs!C37 -> 0.45 | H9: =+F9*G9 -> 63 | J9: _________ | L9: Other | N9: 0 | O9: 0 | P9: =+N9*O9 -> 0 | Q9: _________
C10: Fertilizer & Lime (Table 1) | E10: Acre | F10: 1 | G10: =+P10 -> 62.655 | H10: =+F10*G10 -> 62.655 | J10: _________ | L10: Total | P10: =SUM(P3:P9) -> 62.655 | Q10: _________
C11: Chemical (Table 2) | E11: Acre | F11: 1 | G11: =S26 -> 87.15 | H11: =F11*G11 -> 87.15 | J11: _________
C12: Crop Scout or Consultant | E12: Acre | F12: 1 | G12: =+Inputs!C18 -> 10 | H12: =F12*G12 -> 10 | J12: _________ | L12: Table 2. Chemicals4
C13: Repair & Maintenance (Table 3) | E13: Acre | F13: 1 | G13: =+Q43 -> 33.12589654 | H13: =+F13*G13 -> 33.12589654 | J13: _________ | L13: Chemical | M13: Function | N13: Description | O13: Unit | P13: Number of Apps. | Q13: Quantity | R13: Price | S13: Total ($/Acre) | T13: Your Farm ($/Acre)
C14: Fuel, Oil & Filter (Table 3) | E14: Acre | F14: 1 | G14: =+R43 -> 17.36595769 | H14: 17.36595769 | J14: _________ | L14: Herbicides | M14: Burndown | N14: Roundup | O14: qt. | P14: 1 | Q14: 1 | R14: =Herbicides!B68 -> 14.5 | S14: =P14*Q14*R14 -> 14.5 | T14: _________
C15: Operator Labor (Table 3) | E15: Acre | F15: 1 | G15: =+S43 -> 8.898254259 | H15: 8.898254259 | J15: _________ | M15: Pre-Emerge | N15: Sequence | O15: pt. | P15: 1 | Q15: 2.5 | R15: =Herbicides!B71 -> 9 | S15: =P15*Q15*R15 -> 22.5 | T15: _________
C16: Crop Insurance6 | E16: Acre | F16: 1 | G16: =+Inputs!C25 -> 11.22 | H16: =+F16*G16 -> 11.22 | J16: _________ | N16: Other | P16: 0 | Q16: 0 | R16: 0 | S16: =P16*Q16*R16 -> 0 | T16: _________
C17: Machinery Rental | E17: Acre | F17: 0 | G17: 0 | H17: =+F17*G17 -> 0 | J17: _________ | M17: Post-Emerge | N17: Engenia | O17: oz. | P17: 1 | Q17: 12.8 | R17: =Herbicides!B33 -> 0.6640625 | S17: 8.5 | T17: _________
C18: Custom Work | E18: Acre | F18: 0 | G18: 0 | H18: =+F18*G18 -> 0 | J18: _________ | N18: Flexstar | O18: pt. | P18: 1 | Q18: 1 | R18: =Herbicides!B43 -> 7.65 | S18: 7.65 | T18: _________
C19: Drying (Fuel/Electric) | E19: Bu | F19: =+F4 -> 50 | G19: 0 | H19: =+F19*G19 -> 0 | J19: _________ | N19: Other | P19: 0 | Q19: 0 | R19: 0 | S19: 0 | T19: _________
C20: Other | E20: Acre | F20: 1 | G20: 0 | H20: =F20*G20 -> 0 | J20: _________ | L20: Insecticide/Fungicide | N20: Seed Treatment | O20: acre | P20: 1 | Q20: 1 | R20: =Insecticides!B3 -> 11.5 | S20: 11.5 | T20: _________
C21: Other | E21: Acre | F21: 1 | G21: 0 | H21: =F21*G21 -> 0 | J21: _________ | L21: Insecticides | N21: Foliar | O21: acre | P21: 1 | Q21: 1 | R21: =Insecticides!B2 -> 11 | S21: 11 | T21: _________
C22: Operating Interest7 | E22: % | F22: =SUM(H9:H21) -> 293.4151085 | G22: =+Inputs!C14 -> 0.085 | H22: =(F22*G22)/2 -> 12.47014211 | J22: _________ | L22: Fungicides | N22: Foliar | O22: acre | P22: 1 | Q22: 1 | R22: =Fungicides!B2 -> 11.5 | S22: 11.5 | T22: _________
B23: Total Variable Expenses | H23: =SUM(H9:H22) -> 305.8852506 | J23: _________ | N23: Other | P23: 0 | Q23: 0 | R23: 0 | S23: 0 | T23: _________
B24: Return Above Variable Expenses | H24: =H7-H23 -> 319.1147494 | J24: _________ | N24: Other | P24: 0 | Q24: 0 | R24: 0 | S24: 0 | T24: _________
B25: Fixed Expenses | N25: Other | P25: 0 | Q25: 0 | R25: 0 | S25: =P25*Q25*R25 -> 0 | T25: _________
C26: Machinery | J26: _________ | L26: Total | S26: =SUM(S14:S25) -> 87.15 | T26: _________
C27: Capital Recovery (Table 3) | E27: Acre | F27: 1 | G27: =+P43 -> 115.2811248 | H27: =+F27*G27 -> 115.2811248 | J27: _________
C28: Other Fixed Machinery Costs | E28: Acre | F28: 1 | G28: 0 | H28: =F28*G28 -> 0 | J28: _________ | L28: Table 3. Machinery5
C29: General Overhead | E29: Acre | F29: 1 | G29: 20 | H29: =F29*G29 -> 20 | J29: _________ | M29: Power Unit | N29: Implement | O29: Size | P29: Capital Recovery | Q29: Repairs & Maintenance | R29: Fuel, Oil & Filter | S29: Labor | T29: Total | U29: Your Farm ($/Acre)
C30: Cash Rent8 | E30: Acre | F30: 1 | G30: =+Inputs!C23 -> 113 | H30: =F30*G30 -> 113 | J30: _________ | L30: Burndown | M30: SP Boom Sprayer | O30: 90' | P30: =+'Field Operations'!F11 -> 10.08349574 | Q30: =+'Field Operations'!G11 -> 0.2942877349 | R30: =+'Field Operations'!H11 -> 0.4360736111 | S30: =+'Field Operations'!I11 -> 0.318287037 | T30: =SUM(P30:S30) -> 11.13214413 | U30: _________
C31: Insurance (Non-Machinery) | E31: Acre | F31: 1 | G31: 0 | H31: =+F31*G31 -> 0 | J31: _________ | L31: Fertilize | M31: Tractor, 215 hp | N31: Fertilize Spreader | P31: =+'Field Operations'!F10 -> 5.383607559 | Q31: =+'Field Operations'!G10 -> 1.596529341 | R31: =+'Field Operations'!H10 -> 2.88342551 | S31: =+'Field Operations'!I10 -> 1.683673469 | T31: =SUM(P31:S31) -> 11.54723588 | U31: _________
C32: Management Labor | E32: Acre | F32: 1 | G32: =Inputs!C33 -> 25 | H32: =+F32*G32 -> 25 | J32: _________ | L32: Plant | M32: Tractor, 215 hp | N32: Planter | O32: 16-row | P32: =+'Field Operations'!F8 -> 16.94395286 | Q32: =+'Field Operations'!G8 -> 2.876988318 | R32: =+'Field Operations'!H8 -> 2.717074038 | S32: =+'Field Operations'!I8 -> 1.586538462 | T32: =SUM(P32:S32) -> 24.12455368 | U32: _________
C33: Other | E33: Acre | F33: 1 | G33: 0 | H33: =+F33*G33 -> 0 | J33: _________ | L33: Pre-Emerge | M33: SP Boom Sprayer | O33: 90' | P33: =+'Field Operations'!F11 -> 10.08349574 | Q33: =+'Field Operations'!G11 -> 0.2942877349 | R33: =+'Field Operations'!H11 -> 0.4360736111 | S33: =+'Field Operations'!I11 -> 0.318287037 | T33: 11.13214413 | U33: _________
B34: Total Fixed Expenses | H34: =+SUM(H26:H33) -> 273.2811248 | J34: _________ | L34: Post-Emerge | M34: SP Boom Sprayer | O34: 90' | P34: =+'Field Operations'!F11 -> 10.08349574 | Q34: =+'Field Operations'!G11 -> 0.2942877349 | R34: =+'Field Operations'!H11 -> 0.4360736111 | S34: =+'Field Operations'!I11 -> 0.318287037 | T34: 11.13214413 | U34: _________
E35: Total Expenses | H35: =SUM(H23+H34) -> 579.1663754 | J35: _________ | L35: Post-Emerge | M35: SP Boom Sprayer | O35: 90' | P35: =+'Field Operations'!F11 -> 10.08349574 | Q35: =+'Field Operations'!G11 -> 0.2942877349 | R35: =+'Field Operations'!H11 -> 0.4360736111 | S35: =+'Field Operations'!I11 -> 0.318287037 | T35: 11.13214413 | U35: _________
B36: Return Above Specified Expenses | H36: =H7-H35 -> 45.83362461 | J36: _________ | L36: Fungicide | M36: SP Boom Sprayer | O36: 90' | P36: =+'Field Operations'!F11 -> 10.08349574 | Q36: =+'Field Operations'!G11 -> 0.2942877349 | R36: =+'Field Operations'!H11 -> 0.4360736111 | S36: =+'Field Operations'!I11 -> 0.318287037 | T36: 11.13214413 | U36: _________
L37: Harvest | M37: Combine | N37: Grain Head | O37: 30' | P37: =+'Field Operations'!F13 -> 29.22887142 | Q37: =+'Field Operations'!G13 -> 26.02550332 | R37: =+'Field Operations'!H13 -> 7.568991964 | S37: =+'Field Operations'!I13 -> 2.455357143 | T37: 65.27872384 | U37: _________
B38: Breakeven Price for Selected Yield | F38: Breakeven Yield for Selected Price | L38: Haul | M38: Tractor, 215 hp | N38: Grain Cart | O38: =+'Field Operations'!E14 -> 800 bu | P38: =+'Field Operations'!F14 -> 7.397214231 | Q38: =+'Field Operations'!G14 -> 0.8354368884 | R38: =+'Field Operations'!H14 -> 1.766098125 | S38: =+'Field Operations'!I14 -> 1.03125 | T38: 11.02999924 | U38: _________
B39: Yield (bu) | C39: Variable Cost ($/bu) | D39: Total Specified Cost ($/bu) | F39: Price ($/bu) | G39: Variable Cost (bu) | I39: Total Specified Cost (bu) | L39: Haul | M39: Semi Tractor/Trailer | P39: ='Field Operations'!F15 -> 5.91 | Q39: ='Field Operations'!G15 -> 0.32 | R39: ='Field Operations'!H15 -> 0.25 | S39: ='Field Operations'!I15 -> 0.55 | T39: 7.03 | U39: _________
B40: =SUM(B41-5) -> 30 | C40: =$H$23/B40 -> 10.19617502 | D40: =($H$23+$H$34)/B40 -> 19.30554585 | F40: =SUM(F41-0.5) -> 10.5 | G40: =+$H$23/F40 -> 29.13192863 | I40: =+($H$23+$H$34)/F40 -> 55.15870242 | L40: Other | P40: 0 | Q40: 0 | R40: 0 | S40: 0 | T40: =SUM(P40:S40) -> 0 | U40: _________
B41: 35 | C41: 8.739578589 | D41: 16.54761073 | F41: 11 | G41: =+$H$23/F41 -> 27.80775005 | I41: 52.65148867 | L41: Other | P41: 0 | Q41: 0 | R41: 0 | S41: 0 | T41: =SUM(P41:S41) -> 0 | U41: _________
B42: 40 | C42: 7.647131265 | D42: 14.47915938 | F42: 11.5 | G42: 26.59871744 | I42: 50.36229351 | L42: Other | P42: 0 | Q42: 0 | R42: 0 | S42: 0 | T42: =SUM(P42:S42) -> 0 | U42: _________
B43: =SUM(B44-5) -> 45 | C43: 6.797450013 | D43: 12.8703639 | F43: =SUM(F44-0.5) -> 12 | G43: 25.49043755 | I43: 48.26386462 | L43: Total | P43: =SUM(P30:P42) -> 115.2811248 | Q43: =SUM(Q30:Q42) -> 33.12589654 | R43: =SUM(R30:R42) -> 17.36595769 | S43: =SUM(S30:S42) -> 8.898254259 | T43: =SUM(T30:T42) -> 174.6712333 | U43: _________
B44: =+F4 -> 50 | C44: 6.117705012 | D44: 11.58332751 | F44: =+G4 -> 12.5 | G44: 24.47082005 | I44: 46.33331003
B45: =SUM(B44+5) -> 55 | C45: 5.561550011 | D45: 10.53029773 | F45: =SUM(F44+0.5) -> 13 | G45: 23.52963466 | I45: 44.55125965
B46: =SUM(B45+5) -> 60 | C46: 5.09808751 | D46: 9.652772923 | F46: =SUM(F45+0.5) -> 13.5 | G46: 22.65816671 | I46: 42.90121299
B47: 65 | C47: 4.705926932 | D47: 8.910251929 | F47: 14 | G47: 21.84894647 | I47: 41.36902681
B48: 70 | C48: 4.369789294 | D48: 8.273805363 | F48: 14.5 | G48: 21.09553452 | I48: 39.94250865

Sheet Soybeans Irr
B1: 2024 Soybean, No-Till, Irrigated Budget | L1: Table 1. Fertilizer & Lime3
E2: Unit | F2: Quantity | G2: Price | H2: Total | J2: Your Farm | L2: Fertilizer | M2: Description | N2: Quantity (lbs.) | O2: Price ($) | P2: Total ($/Acre) | Q2: Your Farm ($/Acre)
B3: Revenue1 | E3: Gross Revenue ($/Acre) | L3: Nitrogen | M3: Urea | N3: 0 | O3: =+Inputs!C44 -> 0.61 | P3: =+N3*O3 -> 0 | Q3: _________
C4: Soybeans | E4: Bu/acre | F4: 65 | G4: =+Inputs!C4 -> 12.5 | H4: =F4*G4 -> 812.5 | J4: _________ | L4: Phosphorous | M4: P2O5 | N4: 40 | O4: =Inputs!C48 -> 0.65 | P4: =+N4*O4 -> 26 | Q4: _________
C5: Government Payments | E5: $/acre | F5: 1 | G5: 0 | H5: =F5*G5 -> 0 | J5: _________ | L5: Potassium | M5: K20 | N5: 80 | O5: =+Inputs!C50 -> 0.43 | P5: =+N5*O5 -> 34.4 | Q5: _________
C6: Other Revenue | E6: $/acre | F6: 1 | G6: 0 | H6: 0 | J6: _________ | L6: Lime | M6: Limestone | N6: 1000 | O6: =+Inputs!C51 -> 30 | P6: =+N6/2000*O6 -> 15 | Q6: _________
B7: Total Revenue | H7: =SUM(H4:H6) -> 812.5 | J7: _________ | L7: Boron | N7: 1 | O7: =Inputs!C52 -> 2.355 | P7: 2.355 | Q7: _________
B8: Variable Expenses | L8: Other | N8: 0 | O8: 0 | P8: 0 | Q8: _________
C9: Seed2 | E9: Thous. | F9: 150 | G9: =+Inputs!C37 -> 0.45 | H9: =+F9*G9 -> 67.5 | J9: _________ | L9: Other | N9: 0 | O9: 0 | P9: 0 | Q9: _________
C10: Fertilizer & Lime (Table 1) | E10: Acre | F10: 1 | G10: =+P10 -> 77.755 | H10: =+F10*G10 -> 77.755 | J10: _________ | L10: Total | P10: =SUM(P3:P9) -> 77.755 | Q10: _________
C11: Chemical (Table 2) | E11: Acre | F11: 1 | G11: =S28 -> 87.15 | H11: =F11*G11 -> 87.15 | J11: _________
C12: Crop Scout or Consultant | E12: Acre | F12: 1 | G12: =+Inputs!C18 -> 10 | H12: =F12*G12 -> 10 | J12: _________ | L12: Table 2. Chemicals4
C13: Repair & Maintenance (Table 3) | E13: Acre | F13: 1 | G13: =+Q45 -> 33.25807045 | H13: =+F13*G13 -> 33.25807045 | J13: _________ | L13: Chemical | M13: Function | N13: Description | O13: Unit | P13: Number of Apps. | Q13: Quantity | R13: Price | S13: Total ($/Acre) | T13: Your Farm ($/Acre)
C14: Fuel, Oil & Filter (Table 3) | E14: Acre | F14: 1 | G14: =+R45 -> 17.46921856 | H14: 17.46921856 | J14: _________ | L14: Herbicides | M14: Burndown | N14: Roundup | O14: qt. | P14: 1 | Q14: 1 | R14: =Herbicides!B68 -> 14.5 | S14: =P14*Q14*R14 -> 14.5 | T14: _________
C15: Operator Labor (Table 3) | E15: Acre | F15: 1 | G15: =+S45 -> 9.125428172 | H15: 9.125428172 | J15: _________ | M15: Pre-Emerge | N15: Sequence | O15: pt. | P15: 1 | Q15: 2.5 | R15: =Herbicides!B71 -> 9 | S15: =P15*Q15*R15 -> 22.5 | T15: _________
C16: Crop Insurance6 | E16: Acre | F16: 1 | G16: =+Inputs!C25 -> 11.22 | H16: =+F16*G16 -> 11.22 | J16: _________ | N16: Other | O16: qt. | P16: 0 | Q16: 0 | R16: 0 | S16: =P16*Q16*R16 -> 0 | T16: _________
C17: Machinery Rental | E17: Acre | F17: 0 | G17: 0 | H17: 0 | J17: _________ | M17: Post-Emerge | N17: Engenia | O17: oz. | P17: 1 | Q17: 12.8 | R17: =Herbicides!B33 -> 0.6640625 | S17: =P17*Q17*R17 -> 8.5 | T17: _________
C18: Custom Work | E18: Acre | F18: 0 | G18: 0 | H18: 0 | J18: _________ | N18: Flexstar | O18: pt. | P18: 1 | Q18: 1 | R18: =Herbicides!B43 -> 7.65 | S18: =P18*Q18*R18 -> 7.65 | T18: _________
C19: Drying (Fuel/Electric) | E19: Bu | F19: =+F4 -> 65 | G19: 0 | H19: 0 | J19: _________ | N19: Other | P19: 0 | Q19: 0 | R19: 0 | S19: =P19*Q19*R19 -> 0 | T19: _________
C20: Irrigation Energy Cost9 | E20: Ac-In | F20: 4.5 | G20: =+Inputs!C57 -> 7.5 | H20: 33.75 | J20: _________ | L20: Insecticide/Fungicide | N20: Seed Treatment | O20: acre | P20: 1 | Q20: 1 | R20: =Insecticides!B3 -> 11.5 | S20: =P20*Q20*R20 -> 11.5 | T20: _________
C21: Irrigation System R&M & Labor9 | E21: Ac-In | F21: =F20 -> 4.5 | G21: =+Inputs!C58 -> 3.2 | H21: 14.4 | J21: _________ | L21: Insecticides | N21: Foliar | O21: acre | P21: 1 | Q21: 1 | R21: =Insecticides!B2 -> 11 | S21: =P21*Q21*R21 -> 11 | T21: _________
C22: Other Irrigation Costs | E22: Acre | F22: 1 | G22: 0 | H22: 0 | J22: _________ | L22: Fungicides | N22: Foliar | O22: acre | P22: 1 | Q22: 1 | R22: =Fungicides!B2 -> 11.5 | S22: =+P22*Q22*R22 -> 11.5 | T22: _________
C23: Other | E23: Acre | F23: 1 | G23: 0 | H23: =F23*G23 -> 0 | J23: _________ | N23: Other | P23: 0 | Q23: 0 | R23: 0 | S23: =P23*Q23*R23 -> 0 | T23: _________
C24: Other | E24: Acre | F24: 1 | G24: 0 | H24: =F24*G24 -> 0 | J24: _________ | N24: Other | P24: 0 | Q24: 0 | R24: 0 | S24: 0 | T24: _________
C25: Operating Interest7 | E25: % | F25: =SUM(H9:H24) -> 361.6277172 | G25: =+Inputs!C14 -> 0.085 | H25: =(F25*G25)/2 -> 15.36917798 | J25: _________ | N25: Other | P25: 0 | Q25: 0 | R25: 0 | S25: =P25*Q25*R25 -> 0 | T25: _________
C26: Total Variable Expenses | H26: =SUM(H9:H25) -> 376.9968952 | J26: _________ | N26: Other | P26: 0 | Q26: 0 | R26: 0 | S26: =P26*Q26*R26 -> 0 | T26: _________
B27: Return Above Variable Expenses | H27: =H7-H26 -> 435.5031048 | J27: _________ | N27: Other | P27: 0 | Q27: 0 | R27: 0 | S27: 0 | T27: _________
B28: Fixed Expenses | L28: Total | S28: =SUM(S14:S27) -> 87.15 | T28: _________
C29: Machinery
C30: Capital Recovery (Table 3) | E30: Acre | F30: 1 | G30: =+P45 -> 117.7222118 | H30: =+F30*G30 -> 117.7222118 | J30: _________ | L30: Table 3. Machinery5
C31: Other Fixed Machinery Costs | E31: Acre | F31: 1 | G31: 0 | H31: 0 | J31: _________ | M31: Power Unit | N31: Implement | O31: Size | P31: Capital Recovery | Q31: Repairs & Maintenance | R31: Fuel, Oil & Filter | S31: Labor | T31: Total | U31: Your Farm ($/Acre)
C32: Capital Recovery (Irrigation Equipment)9 | E32: Acre | F32: 1 | G32: =+Inputs!C59 -> 100 | H32: =+F32*G32 -> 100 | J32: _________ | L32: Burndown | M32: SP Boom Sprayer | O32: 90' | P32: =+'Field Operations'!F11 -> 10.08349574 | Q32: =+'Field Operations'!G11 -> 0.2942877349 | R32: =+'Field Operations'!H11 -> 0.4360736111 | S32: =+'Field Operations'!I11 -> 0.318287037 | T32: =SUM(P32:S32) -> 11.13214413 | U32: _________
C33: Other Irrigation Costs | E33: Acre | F33: 1 | G33: 0 | H33: 0 | J33: _________ | L33: Fertilize | M33: Tractor, 215 hp | N33: Fertilize Spreader | P33: =+'Field Operations'!F10 -> 5.383607559 | Q33: =+'Field Operations'!G10 -> 1.596529341 | R33: =+'Field Operations'!H10 -> 2.88342551 | S33: =+'Field Operations'!I10 -> 1.683673469 | T33: =SUM(P33:S33) -> 11.54723588 | U33: _________
C34: General Overhead | E34: Acre | F34: 1 | G34: 20 | H34: 20 | J34: _________ | L34: Plant | M34: Tractor, 215 hp | N34: Planter | O34: 16-row | P34: =+'Field Operations'!F8 -> 16.94395286 | Q34: =+'Field Operations'!G8 -> 2.876988318 | R34: =+'Field Operations'!H8 -> 2.717074038 | S34: =+'Field Operations'!I8 -> 1.586538462 | T34: =SUM(P34:S34) -> 24.12455368 | U34: _________
C35: Cash Rent8 | E35: Acre | F35: 1 | G35: =Inputs!C22 -> 197 | H35: 197 | J35: _________ | L35: Pre-Emerge | M35: SP Boom Sprayer | O35: 90' | P35: =+'Field Operations'!F11 -> 10.08349574 | Q35: =+'Field Operations'!G11 -> 0.2942877349 | R35: =+'Field Operations'!H11 -> 0.4360736111 | S35: =+'Field Operations'!I11 -> 0.318287037 | T35: 11.13214413 | U35: _________
C36: Insurance (Non-Machinery) | E36: Acre | F36: 1 | G36: =+Inputs!C32 -> 0 | H36: 0 | J36: _________ | L36: Post-Emerge | M36: SP Boom Sprayer | O36: 90' | P36: =+'Field Operations'!F11 -> 10.08349574 | Q36: =+'Field Operations'!G11 -> 0.2942877349 | R36: =+'Field Operations'!H11 -> 0.4360736111 | S36: =+'Field Operations'!I11 -> 0.318287037 | T36: =SUM(P36:S36) -> 11.13214413 | U36: _________
C37: Management Labor10 | E37: Acre | F37: 1 | G37: =Inputs!C33 -> 25 | H37: =+F37*G37*2 -> 50 | J37: _________ | L37: Post-Emerge | M37: SP Boom Sprayer | O37: 90' | P37: =+'Field Operations'!F11 -> 10.08349574 | Q37: =+'Field Operations'!G11 -> 0.2942877349 | R37: =+'Field Operations'!H11 -> 0.4360736111 | S37: =+'Field Operations'!I11 -> 0.318287037 | T37: 11.13214413 | U37: _________
C38: Other | E38: Acre | F38: 1 | G38: 0 | H38: 0 | J38: _________ | L38: Fungicide | M38: SP Boom Sprayer | O38: 90' | P38: =+'Field Operations'!F11 -> 10.08349574 | Q38: =+'Field Operations'!G11 -> 0.2942877349 | R38: =+'Field Operations'!H11 -> 0.4360736111 | S38: =+'Field Operations'!I11 -> 0.318287037 | T38: 11.13214413 | U38: _________
B39: Total Fixed Expenses | H39: =+SUM(H29:H38) -> 484.7222118 | J39: _________ | L39: Harvest | M39: Combine | N39: Grain Head | O39: 30' | P39: =+'Field Operations'!F13 -> 29.22887142 | Q39: =+'Field Operations'!G13 -> 26.02550332 | R39: =+'Field Operations'!H13 -> 7.568991964 | S39: =+'Field Operations'!I13 -> 2.455357143 | T39: 65.27872384 | U39: _________
G40: Total Expenses | H40: =SUM(H26+H39) -> 861.7191069 | J40: _________
B41: Return Above Specified Expenses | H41: =H7-H40 -> -49.21910692 | J41: _________ | L41: Haul | M41: Tractor, 215 hp | N41: Grain Cart | O41: =+'Field Operations'!E14 -> 800 bu | P41: =+'Field Operations'!F14 -> 7.397214231 | Q41: =+'Field Operations'!G14 -> 0.8354368884 | R41: =+'Field Operations'!H14 -> 1.766098125 | S41: =+'Field Operations'!I14 -> 1.03125 | T41: 11.02999924 | U41: _________
L42: Haul | M42: ='Field Operations'!C15 -> Semi Tractor/Trailer | P42: =+'Field Operations'!F15*1.41304347826087 -> 8.351086957 | Q42: =+'Field Operations'!G15*1.41304347826087 -> 0.452173913 | R42: =+'Field Operations'!H15*1.41304347826087 -> 0.3532608696 | S42: =+'Field Operations'!I15*1.41304347826087 -> 0.777173913 | T42: 9.933695652 | U42: _________
B43: Breakeven Price for Selected Yield | F43: Breakeven Yield for Selected Price | L43: Other | P43: 0 | Q43: 0 | R43: 0 | S43: 0 | T43: =SUM(P43:S43) -> 0 | U43: _________
B44: Yield (bu) | C44: Variable Cost ($/bu) | D44: Total Specified Cost ($/bu) | F44: Price ($/bu) | G44: Variable Cost (bu) | I44: Total Specified Cost (bu) | L44: Other | P44: 0 | Q44: 0 | R44: 0 | S44: 0 | T44: =SUM(P44:S44) -> 0 | U44: _________
B45: =SUM(B46-5) -> 45 | C45: =$H$26/B45 -> 8.377708781 | D45: =($H$26+$H$39)/B45 -> 19.14931349 | F45: =SUM(F46-0.5) -> 10.5 | G45: =+$H$26/F45 -> 35.90446621 | I45: =+($H$26+$H$39)/F45 -> 82.06848637 | L45: Total | P45: =SUM(P32:P44) -> 117.7222118 | Q45: =SUM(Q32:Q44) -> 33.25807045 | R45: =SUM(R32:R44) -> 17.46921856 | S45: =SUM(S32:S44) -> 9.125428172 | T45: =SUM(T32:T44) -> 177.5749289 | U45: _________
B46: 50 | C46: 7.539937903 | D46: 17.23438214 | F46: 11 | G46: 34.27244502 | I46: 78.33810063
B47: 55 | C47: 6.854489003 | D47: 15.66762013 | F47: 11.5 | G47: 32.78233871 | I47: 74.93209625
B48: =SUM(B49-5) -> 60 | C48: 6.283281586 | D48: 14.36198512 | F48: =SUM(F49-0.5) -> 12 | G48: 31.41640793 | I48: 71.80992558
B49: =+F4 -> 65 | C49: 5.799952233 | D49: 13.25721703 | F49: =+G4 -> 12.5 | G49: 30.15975161 | I49: 68.93752855
B50: =SUM(B49+5) -> 70 | C50: 5.385669931 | D50: 12.31027296 | F50: =SUM(F49+0.5) -> 13 | G50: 28.99976117 | I50: 66.28608515
B51: =SUM(B50+5) -> 75 | C51: 5.026625269 | D51: 11.48958809 | F51: =SUM(F50+0.5) -> 13.5 | G51: 27.92569594 | I51: 63.83104496
B52: 80 | C52: 4.71246119 | D52: 10.77148884 | F52: 14 | G52: 26.92834965 | I52: 61.55136478
B53: 85 | C53: 4.43525759 | D53: 10.13787185 | F53: 14.5 | G53: 25.99978587 | I53: 59.42890393

Sheet SRW Wheat
B1: 2024 Winter Wheat, Non-Irrigated Budget | L1: Table 1. Fertilizer & Lime3
E2: Unit | F2: Quantity | G2: Price | H2: Total | J2: Your Farm | L2: Fertilizer | M2: Description | N2: Quantity (lbs.) | O2: Price ($) | P2: Total ($/Acre) | Q2: Your Farm ($/Acre)
B3: Revenue1 | E3: Gross Revenue ($/Acre) | L3: Nitrogen | M3: Urea - Planting/Fall | N3: 15 | O3: =Inputs!C44 -> 0.61 | P3: =N3*O3 -> 9.15 | Q3: _________
C4: Wheat | E4: Bu/acre | F4: 80 | G4: =+Inputs!C5 -> 6.5 | H4: =F4*G4 -> 520 | J4: _________ | M4: UAN 32 - Post-Emerge/Spring | N4: 90 | O4: =Inputs!C47 -> 0.64 | P4: =N4*O4 -> 57.6 | Q4: _________
C5: Government Payments | E5: $/acre | F5: 1 | G5: 0 | H5: =F5*G5 -> 0 | J5: _________ | L5: Phosphorous | M5: P2O5 | N5: 40 | O5: =Inputs!C48 -> 0.65 | P5: =+N5*O5 -> 26 | Q5: _________
C6: Other Revenue | E6: $/acre | F6: 1 | G6: 0 | H6: 0 | J6: _________ | L6: Potassium | M6: K20 | N6: 40 | O6: =Inputs!C50 -> 0.43 | P6: =+N6*O6 -> 17.2 | Q6: _________
B7: Total Revenue | H7: =SUM(H4:H6) -> 520 | J7: _________ | L7: Lime | N7: 1000 | O7: =Inputs!C51 -> 30 | P7: =N7/2000*O7 -> 15 | Q7: _________
B8: Variable Expenses | L8: Other | N8: 0 | O8: 0 | P8: =+N8/2000*O8 -> 0 | Q8: _________
C9: Seed2 | E9: Bu | F9: 2.5 | G9: =+Inputs!C38 -> 18 | H9: =+F9*G9 -> 45 | J9: _________ | L9: Other | N9: 0 | O9: 0 | P9: =N9*O9 -> 0 | Q9: _________
C10: Fertilizer & Lime (Table 1) | E10: Acre | F10: 1 | G10: =+P11 -> 124.95 | H10: =+F10*G10 -> 124.95 | J10: _________ | L10: Other | N10: 0 | O10: 0 | P10: =+N10*O10 -> 0 | Q10: _________
C11: Chemical (Table 2) | E11: Acre | F11: 1 | G11: =S23 -> 75.0645 | H11: =F11*G11 -> 75.0645 | J11: _________ | L11: Total | P11: =SUM(P3:P10) -> 124.95 | Q11: _________
C12: Crop Scout or Consultant | E12: Acre | F12: 1 | G12: =+Inputs!C18 -> 10 | H12: =F12*G12 -> 10 | J12: _________ | L12: Table 2. Chemicals4
C13: Repair & Maintenance (Table 3) | E13: Acre | F13: 1 | G13: =+Q38 -> 36.95583023 | H13: =+F13*G13 -> 36.95583023 | J13: _________ | L13: Chemical | M13: Function | N13: Description | O13: Unit | P13: Number of Apps. | Q13: Quantity | R13: Price | S13: Total ($/Acre) | T13: Your Farm ($/Acre)
C14: Fuel, Oil & Filter (Table 3) | E14: Acre | F14: 1 | G14: =+R38 -> 22.2422302 | H14: 22.2422302 | J14: _________ | L14: Herbicides- | M14: Burndown | N14: Gramoxone SL | O14: oz. | P14: 1 | Q14: 40 | R14: =Herbicides!B47 -> 0.33125 | S14: =P14*Q14*R14 -> 13.25 | T14: _________
C15: Operator Labor (Table 3) | E15: Acre | F15: 1 | G15: =+S38 -> 11.8435308 | H15: 11.8435308 | J15: _________ | L15: Wheat | N15: Other | O15: qt. | P15: 0 | Q15: 0 | R15: 0 | S15: =P15*Q15*R15 -> 0 | T15: _________
C16: Crop Insurance6 | E16: Acre | F16: 1 | G16: =Inputs!C26 -> 14.6 | H16: =+F16*G16 -> 14.6 | J16: _________ | M16: Post-Emerge | N16: Harmony | O16: oz. | P16: 1 | Q16: 0.9 | R16: =Herbicides!B50 -> 14.03 | S16: =P16*Q16*R16 -> 12.627 | T16: _________
C17: Machinery Rental | E17: Acre | F17: 0 | G17: 0 | H17: =+F17*G17 -> 0 | J17: _________ | N17: Metribuzin | O17: oz. | P17: 1 | Q17: 3 | R17: =Herbicides!B56 -> 1.40625 | S17: 4.21875 | T17: _________
C18: Custom Work | E18: Acre | F18: 0 | G18: 0 | H18: =+F18*G18 -> 0 | J18: _________ | N18: Roundup | O18: qt. | P18: 1 | Q18: =22/32 -> 0.6875 | R18: =Herbicides!B68 -> 14.5 | S18: 9.96875 | T18: _________
C19: Drying (Fuel/Electric) | E19: Bu | F19: =+F4 -> 80 | G19: 0 | H19: =+F19*G19 -> 0 | J19: _________ | L19: Seed Treatment | N19: Wheat-seed treatment | O19: acre | P19: 1 | Q19: 1 | R19: =+Insecticides!B8 -> 17.5 | S19: 17.5 | T19: _________
C20: Other | E20: Acre | F20: 1 | G20: 0 | H20: =F20*G20 -> 0 | J20: _________ | L20: Insecticides | N20: Wheat-Foliar | O20: acre | P20: 1 | Q20: 1 | R20: =+Insecticides!B9 -> 5 | S20: 5 | T20: _________
C21: Other | E21: Acre | F21: 1 | G21: 0 | H21: =F21*G21 -> 0 | J21: _________ | N21: Wheat-foliar | O21: acre | P21: 1 | Q21: 1 | R21: =+Fungicides!$B$6 -> 12.5 | S21: 12.5 | T21: _________
C22: Other | E22: Acre | F22: 1 | G22: 0 | H22: =F22*G22 -> 0 | J22: _________ | L22: Other | N22: Other | P22: 0 | Q22: 0 | R22: 0 | S22: =P22*Q22*R22 -> 0 | T22: _________
C23: Operating Interest7 | E23: % | F23: =SUM(H9:H22) -> 340.6560912 | G23: =+Inputs!C14 -> 0.085 | H23: =(F23*G23)/2 -> 14.47788388 | J23: _________ | L23: Total | S23: =SUM(S14:S22) -> 75.0645 | T23: _________
B24: Total Variable Expenses | H24: =SUM(H9:H23) -> 355.1339751 | J24: _________ | L24: Table 3. Machinery5
B25: Return Above Variable Expenses | H25: =H7-H24 -> 164.8660249 | J25: _________ | M25: Power Unit | N25: Implement | O25: Size | P25: Capital Recovery | Q25: Repairs & Maintenance | R25: Fuel, Oil & Filter | S25: Labor | T25: Total | U25: Your Farm ($/Acre)
B26: Fixed Expenses | L26: Burndown | M26: SP Boom Sprayer | O26: 90' | P26: =+'Field Operations'!$F$11 -> 10.08349574 | Q26: =+'Field Operations'!$G$11 -> 0.2942877349 | R26: =+'Field Operations'!$H$11 -> 0.4360736111 | S26: =+'Field Operations'!$I$11 -> 0.318287037 | T26: =SUM(P26:S26) -> 11.13214413 | U26: _________
C27: Machinery | J27: _________ | L27: Fertilize | M27: Tractor, 215 hp | N27: Fertilize Spreader | P27: ='Field Operations'!F10 -> 5.383607559 | Q27: ='Field Operations'!G10 -> 1.596529341 | R27: ='Field Operations'!H10 -> 2.88342551 | S27: ='Field Operations'!I10 -> 1.683673469 | T27: =SUM(P27:S27) -> 11.54723588 | U27: _________
C28: Capital Recovery (Table 3) | E28: Acre | F28: 1 | G28: =+P38 -> 107.0999079 | H28: =+F28*G28 -> 107.0999079 | J28: _________ | L28: Plant | M28: Tractor, 215 hp | N28: Grain Drill | O28: 20' | P28: =+'Field Operations'!$F$9 -> 13.20262413 | Q28: =+'Field Operations'!$G$9 -> 5.294680402 | R28: =+'Field Operations'!$H$9 -> 5.045994643 | S28: =+'Field Operations'!$I$9 -> 2.946428571 | T28: =SUM(P28:S28) -> 26.48972775 | U28: _________
C29: Other Fixed Machinery Costs | E29: Acre | F29: 1 | G29: 0 | H29: 0 | J29: _________ | L29: Fertilize | M29: Tractor, 215 hp | N29: Fertilize Spreader | P29: ='Field Operations'!F10 -> 5.383607559 | Q29: ='Field Operations'!G10 -> 1.596529341 | R29: ='Field Operations'!H10 -> 2.88342551 | S29: ='Field Operations'!I10 -> 1.683673469 | T29: ='Field Operations'!J10 -> 11.54723588 | U29: _________
C30: General Overhead | E30: Acre | F30: 1 | G30: 20 | H30: =F30*G30 -> 20 | J30: _________ | L30: Weed Control | M30: SP Boom Sprayer | O30: 90' | P30: =+'Field Operations'!$F$11 -> 10.08349574 | Q30: =+'Field Operations'!$G$11 -> 0.2942877349 | R30: =+'Field Operations'!$H$11 -> 0.4360736111 | S30: =+'Field Operations'!$I$11 -> 0.318287037 | T30: =SUM(P30:S30) -> 11.13214413 | U30: _________
C31: Cash Rent8 | E31: Acre | F31: 1 | G31: =+Inputs!C23 -> 113 | H31: =F31*G31 -> 113 | J31: _________ | L31: Fungicide | M31: SP Boom Sprayer | O31: 90' | P31: =+'Field Operations'!$F$11 -> 10.08349574 | Q31: =+'Field Operations'!$G$11 -> 0.2942877349 | R31: =+'Field Operations'!$H$11 -> 0.4360736111 | S31: =+'Field Operations'!$I$11 -> 0.318287037 | T31: 11.13214413 | U31: _________
C32: Insurance (Non-Machinery) | E32: Acre | F32: 1 | G32: =+Inputs!C32 -> 0 | H32: =+F32*G32 -> 0 | J32: _________ | L32: Insect Control | M32: SP Boom Sprayer | O32: 90' | P32: =+'Field Operations'!$F$11 -> 10.08349574 | Q32: =+'Field Operations'!$G$11 -> 0.2942877349 | R32: =+'Field Operations'!$H$11 -> 0.4360736111 | S32: =+'Field Operations'!$I$11 -> 0.318287037 | T32: 11.13214413 | U32: _________
C33: Management Labor | E33: Acre | F33: 1 | G33: =Inputs!C33 -> 25 | H33: =+F33*G33 -> 25 | J33: _________ | L33: Harvest | M33: Combine | N33: Grain Head | O33: 30' | P33: =+'Field Operations'!$F$13 -> 29.22887142 | Q33: =+'Field Operations'!$G$13 -> 26.02550332 | R33: =+'Field Operations'!$H$13 -> 7.568991964 | S33: =+'Field Operations'!$I$13 -> 2.455357143 | T33: 65.27872384 | U33: _________
C34: Other | E34: Acre | F34: 1 | G34: 0 | H34: =+F34*G34 -> 0 | J34: _________ | L34: Haul | M34: Tractor, 215 hp | N34: Grain Cart | P34: =+'Field Operations'!$F$14 -> 7.397214231 | Q34: =+'Field Operations'!$G$14 -> 0.8354368884 | R34: =+'Field Operations'!$H$14 -> 1.766098125 | S34: =+'Field Operations'!$I$14 -> 1.03125 | T34: 11.02999924 | U34: _________
B35: Total Fixed Expenses | H35: =+SUM(H28:H34) -> 265.0999079 | J35: _________ | L35: Haul | M35: ='Field Operations'!C17 -> Semi Tractor/Trailer | P35: ='Field Operations'!F17 -> 6.17 | Q35: ='Field Operations'!G17 -> 0.43 | R35: ='Field Operations'!H17 -> 0.35 | S35: ='Field Operations'!I17 -> 0.77 | T35: 7.72 | U35: _________
B36: Total Expenses | H36: =+SUM(H24+H35) -> 620.233883 | J36: _________ | L36: Other | P36: 0 | Q36: 0 | R36: 0 | S36: 0 | T36: 0 | U36: _________
B37: Return Above Specified Expenses | H37: =H7-H36 -> -100.233883 | J37: _________ | L37: Other | P37: 0 | Q37: 0 | R37: 0 | S37: 0 | T37: 0 | U37: _________
L38: Total | P38: =SUM(P26:P37) -> 107.0999079 | Q38: =SUM(Q26:Q37) -> 36.95583023 | R38: =SUM(R26:R37) -> 22.2422302 | S38: =SUM(S26:S37) -> 11.8435308 | T38: =SUM(T26:T37) -> 178.1414991 | U38: _________
B41: Breakeven Price for Selected Wheat Yield | F41: Breakeven Yield for Selected Soybean Price
B42: Yield (bu) | C42: Variable Cost ($/bu) | D42: Total Specified Cost ($/bu) | F42: Price ($/bu) | G42: Variable Cost (bu) | I42: Total Specified Cost (bu)
B43: =+B44-5 -> 60 | C43: =$H$24/B43 -> 5.918899585 | D43: =($H$24+$H$35)/B43 -> 10.33723138 | F43: =+F44-0.5 -> 4.5 | G43: =+$H$24/F43 -> 78.91866113 | I43: =+($H$24+$H$35)/F43 -> 137.8297518
B44: 65 | C44: 5.463599617 | D44: 9.542059738 | F44: 5 | G44: 71.02679502 | I44: 124.0467766
B45: 70 | C45: 5.073342501 | D45: 8.860484043 | F45: 5.5 | G45: 64.56981366 | I45: 112.7697969
B46: =+B47-5 -> 75 | C46: 4.735119668 | D46: 8.269785106 | F46: =+F47-0.5 -> 6 | G46: 59.18899585 | I46: 103.3723138
B47: =+F4 -> 80 | C47: 4.439174689 | D47: 7.752923537 | F47: =+G4 -> 6.5 | G47: 54.63599617 | I47: 95.42059738
B48: =+B47+5 -> 85 | C48: 4.178046766 | D48: 7.296869212 | F48: =+F47+0.5 -> 7 | G48: 50.73342501 | I48: 88.60484043
B49: =+B48+5 -> 90 | C49: 3.945933057 | D49: 6.891487589 | F49: =+F48+0.5 -> 7.5 | G49: 47.35119668 | I49: 82.69785106
B50: 95 | C50: 3.73825237 | D50: 6.528777716 | F50: 8 | G50: 44.39174689 | I50: 77.52923537
B51: 100 | C51: 3.551339751 | D51: 6.20233883 | F51: 8.5 | G51: 41.78046766 | I51: 72.96869212

Sheet Wheat & Soybean DC
B1: 2024 Wheat/Soybean Double Cropped, Non-Irrigated Budget | L1: Table 1. Fertilizer & Lime3
E2: Unit | F2: Quantity | G2: Price | H2: Total | J2: Your Farm | L2: Fertilizer | M2: Description | N2: Quantity (lbs.) | O2: Price ($) | P2: Total ($/Acre) | Q2: Your Farm ($/Acre)
B3: Revenue1 | E3: Gross Revenue ($/Acre) | L3: Nitrogen | M3: Urea - Planting/Fall | N3: 15 | O3: =Inputs!C44 -> 0.61 | P3: =N3*O3 -> 9.15 | Q3: _________
C4: Soybeans | E4: Bu/acre | F4: 45 | G4: =+Inputs!C4 -> 12.5 | H4: =F4*G4 -> 562.5 | J4: _________ | M4: UAN 32 - Post-Emerge/Spring | N4: 90 | O4: =Inputs!C47 -> 0.64 | P4: =N4*O4 -> 57.6 | Q4: _________
C5: Wheat | E5: Bu/acre | F5: 80 | G5: =+Inputs!C5 -> 6.5 | H5: =F5*G5 -> 520 | J5: _________ | L5: Phosphorous | M5: P2O5 | N5: 60 | O5: =Inputs!C48 -> 0.65 | P5: =+N5*O5 -> 39 | Q5: _________
C6: Government Payments | E6: $/acre | F6: 1 | G6: 0 | H6: =F6*G6 -> 0 | J6: _________ | L6: Potassium | M6: K20 | N6: 60 | O6: =Inputs!C50 -> 0.43 | P6: =+N6*O6 -> 25.8 | Q6: _________
C7: Other Revenue | E7: $/acre | F7: 1 | G7: 0 | H7: 0 | J7: _________ | L7: Boron | N7: 1 | O7: =Inputs!C52 -> 2.355 | P7: =N7*O7 -> 2.355 | Q7: _________
B8: Total Revenue | H8: =SUM(H4:H7) -> 1082.5 | J8: _________ | L8: Lime | N8: 1000 | O8: =+Inputs!C51 -> 30 | P8: =+N8/2000*O8 -> 15 | Q8: _________
B9: Variable Expenses | L9: Other | N9: 0 | O9: 0 | P9: =N9*O9 -> 0 | Q9: _________
C10: Seed, Soybeans2 | E10: Thous. | F10: 140 | G10: =+Inputs!C37 -> 0.45 | H10: =+F10*G10 -> 63 | J10: _________ | L10: Other | N10: 0 | O10: 0 | P10: =+N10*O10 -> 0 | Q10: _________
C11: Seed, Wheat2 | E11: Bu | F11: 2.5 | G11: =+Inputs!C38 -> 18 | H11: =+F11*G11 -> 45 | J11: _________ | L11: Total | P11: =SUM(P3:P10) -> 148.905 | Q11: _________
C12: Fertilizer & Lime (Table 1) | E12: Acre | F12: 1 | G12: =+P11 -> 148.905 | H12: =+F12*G12 -> 148.905 | J12: _________ | L12: Table 2. Chemicals4
C13: Chemical (Table 2) | E13: Acre | F13: 1 | G13: =S35 -> 135.11 | H13: =F13*G13 -> 135.11 | J13: _________ | L13: Chemical | M13: Function | N13: Description | O13: Unit | P13: Number of Apps. | Q13: Quantity | R13: Price | S13: Total ($/Acre) | T13: Your Farm ($/Acre)
C14: Crop Scout or Consultant | E14: Acre | F14: 1 | G14: =+Inputs!C18 -> 10 | H14: =F14*G14 -> 10 | J14: _________ | L14: Herbicides- | M14: Burndown | N14: Gramoxone SL | O14: oz. | P14: 1 | Q14: 40 | R14: =Herbicides!B47 -> 0.33125 | S14: =P14*Q14*R14 -> 13.25 | T14: _________
C15: Repair & Maintenance (Table 3) | E15: Acre | F15: 1 | G15: =+Q60 -> 71.80256377 | H15: =+F15*G15 -> 71.80256377 | J15: _________ | L15: Wheat | N15: Other | P15: 0 | Q15: 0 | R15: 0 | S15: =P15*Q15*R15 -> 0 | T15: _________
C16: Fuel, Oil & Filter (Table 3) | E16: Acre | F16: 1 | G16: =+R60 -> 42.35642462 | H16: 42.35642462 | J16: _________ | M16: Post-Emerge | N16: Harmony | O16: oz. | P16: 1 | Q16: 0.75 | R16: =Herbicides!B50 -> 14.03 | S16: =P16*Q16*R16 -> 10.5225 | T16: _________
C17: Operator Labor (Table 3) | E17: Acre | F17: 1 | G17: =+S60 -> 22.28286246 | H17: 22.28286246 | J17: _________ | N17: Metribuzin | O17: oz. | P17: 1 | Q17: 3 | R17: =Herbicides!B56 -> 1.40625 | S17: 4.21875 | T17: _________
C18: Crop Insurance6 | E18: Acre | F18: 1 | G18: =+Inputs!C25+Inputs!C26 -> 25.82 | H18: =+F18*G18 -> 25.82 | J18: _________ | N18: Other | P18: 0 | Q18: 0 | R18: 0 | S18: 0 | T18: _________
C19: Machinery Rental | E19: Acre | F19: 0 | G19: 0 | H19: =+F19*G19 -> 0 | J19: _________ | L19: Herbicides- | M19: Pre-Emerge | N19: Sequence | O19: pt. | P19: 1 | Q19: 2.5 | R19: =Herbicides!B71 -> 9 | S19: 22.5 | T19: _________
C20: Custom Work | E20: Acre | F20: 0 | G20: 0 | H20: =+F20*G20 -> 0 | J20: _________ | L20: Soybeans | N20: Other | P20: 0 | Q20: 0 | R20: 0 | S20: 0 | T20: _________
C21: Drying (Fuel/Electric) | E21: Bu | F21: =+F5 -> 80 | G21: 0 | H21: =+F21*G21 -> 0 | J21: _________ | M21: Post-Emerge | N21: Engenia | O21: oz. | P21: 1 | Q21: 12 | R21: =Herbicides!B33 -> 0.6640625 | S21: 7.96875 | T21: _________
C22: Other | E22: Acre | F22: 1 | G22: 0 | H22: =F22*G22 -> 0 | J22: _________ | N22: Flexstar | O22: pt. | P22: 1 | Q22: 1 | R22: =Herbicides!B43 -> 7.65 | S22: 7.65 | T22: _________
C23: Other | E23: Acre | F23: 1 | G23: 0 | H23: =F23*G23 -> 0 | J23: _________ | N23: Other | P23: 0 | Q23: 0 | R23: 0 | S23: 0 | T23: _________
C24: Other | E24: Acre | F24: 1 | G24: 0 | H24: =F24*G24 -> 0 | J24: _________ | N24: Other | P24: 0 | Q24: 0 | R24: 0 | S24: 0 | T24: _________
C25: Operating Interest7 | E25: % | F25: =SUM(H10:H24) -> 564.2768508 | G25: =+Inputs!C14 -> 0.085 | H25: =(F25*G25)/2 -> 23.98176616 | J25: _________ | N25: Other | P25: 0 | Q25: 0 | R25: 0 | S25: 0 | T25: _________
B26: Total Variable Expenses | H26: =SUM(H10:H25) -> 588.258617 | J26: _________ | L26: Seed Treatment | N26: Wheat-seed treatment | O26: acre | P26: 1 | Q26: 1 | R26: =+Insecticides!B8 -> 17.5 | S26: 17.5 | T26: _________
B27: Return Above Variable Expenses | H27: =H8-H26 -> 494.241383 | J27: _________ | N27: Soybeans-seed treatment | O27: acre | P27: 1 | Q27: 1 | R27: =Insecticides!B3 -> 11.5 | S27: 11.5 | T27: _________
B28: Fixed Expenses | N28: Other | P28: 0 | Q28: 0 | R28: 0 | S28: 0 | T28: _________
C29: Machinery | J29: _________ | L29: Insecticides | N29: Wheat-Foliar | O29: acre | P29: 1 | Q29: 1 | R29: =+Insecticides!B9 -> 5 | S29: 5 | T29: _________
C30: Capital Recovery (Table 3) | E30: Acre | F30: 1 | G30: =+P60 -> 224.4930664 | H30: =+F30*G30 -> 224.4930664 | J30: _________ | N30: Soybeans-Foliar | O30: acre | P30: 1 | Q30: 1 | R30: =+Insecticides!$B$2 -> 11 | S30: 11 | T30: _________
C31: Other Fixed Machinery Costs | E31: Acre | F31: 1 | G31: 0 | H31: 0 | J31: _________ | N31: Other | P31: 0 | Q31: 0 | R31: 0 | S31: 0 | T31: _________
C32: General Overhead | E32: Acre | F32: 1 | G32: 30 | H32: =F32*G32 -> 30 | J32: _________ | L32: Fungicides | N32: Soybeans-Foliar | O32: acre | P32: 1 | Q32: 1 | R32: =+Fungicides!$B$2 -> 11.5 | S32: 11.5 | T32: _________
C33: Cash Rent8 | E33: Acre | F33: 1 | G33: =+Inputs!C23 -> 113 | H33: =F33*G33 -> 113 | J33: _________ | N33: Wheat-foliar | O33: acre | P33: 1 | Q33: 1 | R33: =+Fungicides!$B$6 -> 12.5 | S33: 12.5 | T33: _________
C34: Insurance (Non-Machinery) | E34: Acre | F34: 1 | G34: =+Inputs!C32 -> 0 | H34: =+F34*G34 -> 0 | J34: _________ | N34: Other | P34: 0 | Q34: 0 | R34: 0 | S34: =P34*Q34*R34 -> 0 | T34: _________
C35: Management Labor | E35: Acre | F35: 1 | G35: =Inputs!C33 -> 25 | H35: =+F35*G35 -> 25 | J35: _________ | L35: Total | S35: =SUM(S14:S34) -> 135.11 | T35: _________
C36: Other | E36: Acre | F36: 1 | G36: 0 | H36: =+F36*G36 -> 0 | J36: _________ | L36: Table 3. Machinery5
B37: Total Fixed Expenses | H37: =+SUM(H29:H36) -> 392.4930664 | J37: _________ | M37: Power Unit | N37: Implement | O37: Size | P37: Capital Recovery | Q37: Repairs & Maintenance | R37: Fuel, Oil & Filter | S37: Labor | T37: Total | U37: Your Farm ($/Acre)
B38: Total Expenses | H38: =+SUM(H26+H37) -> 980.7516834 | J38: _________ | L38: Disk | M38: Tractor, 215 hp | N38: Tandem Disk | O38: 29' | P38: =+'Field Operations'!$F$5 -> 12.19552947 | Q38: =+'Field Operations'!$G$5 -> 2.015124735 | R38: =+'Field Operations'!$H$5 -> 3.184310345 | S38: =+'Field Operations'!$I$5 -> 1.859364435 | T38: =SUM(P38:S38) -> 19.25432899 | U38: _________
B39: Return Above Specified Expenses | H39: =H8-H38 -> 101.7483166 | J39: _________ | L39: Burndown | M39: SP Boom Sprayer | O39: 90' | P39: =+'Field Operations'!$F$11 -> 10.08349574 | Q39: =+'Field Operations'!$G$11 -> 0.2942877349 | R39: =+'Field Operations'!$H$11 -> 0.4360736111 | S39: =+'Field Operations'!$I$11 -> 0.318287037 | T39: =SUM(P39:S39) -> 11.13214413 | U39: _________
L40: Fertilize | M40: Tractor, 215 hp | N40: Fertilize Spreader | P40: ='Field Operations'!F10 -> 5.383607559 | Q40: ='Field Operations'!G10 -> 1.596529341 | R40: ='Field Operations'!H10 -> 2.88342551 | S40: ='Field Operations'!I10 -> 1.683673469 | T40: =SUM(P40:S40) -> 11.54723588 | U40: _________
B41: Breakeven Price for Selected Soybean Yield | F41: Breakeven Yield for Selected Soybean Price | L41: Plant | M41: Tractor, 215 hp | N41: Grain Drill | O41: 20' | P41: =+'Field Operations'!$F$9 -> 13.20262413 | Q41: =+'Field Operations'!$G$9 -> 5.294680402 | R41: =+'Field Operations'!$H$9 -> 5.045994643 | S41: =+'Field Operations'!$I$9 -> 2.946428571 | T41: =SUM(P41:S41) -> 26.48972775 | U41: _________
B42: Yield (bu) | C42: Variable Cost ($/bu) | D42: Total Specified Cost ($/bu) | F42: Price ($/bu) | G42: Variable Cost (bu) | I42: Total Specified Cost (bu) | L42: Fertilize | M42: Tractor, 215 hp | N42: Fertilize Spreader | P42: ='Field Operations'!F10 -> 5.383607559 | Q42: ='Field Operations'!G10 -> 1.596529341 | R42: ='Field Operations'!H10 -> 2.88342551 | S42: ='Field Operations'!I10 -> 1.683673469 | T42: ='Field Operations'!J10 -> 11.54723588 | U42: _________
B43: =+B44-5 -> 25 | C43: =$H$26/2/B43 -> 11.76517234 | D43: =($H$26+$H$37)/2/B43 -> 19.61503367 | F43: =+F44-0.5 -> 10.5 | G43: =+$H$26/2/F43 -> 28.0123151 | I43: =+($H$26+$H$37)/2/F43 -> 46.70246111 | L43: Weed Control | M43: SP Boom Sprayer | O43: 90' | P43: =+'Field Operations'!$F$11 -> 10.08349574 | Q43: =+'Field Operations'!$G$11 -> 0.2942877349 | R43: =+'Field Operations'!$H$11 -> 0.4360736111 | S43: =+'Field Operations'!$I$11 -> 0.318287037 | T43: =SUM(P43:S43) -> 11.13214413 | U43: _________
B44: 30 | C44: 9.804310284 | D44: 16.34586139 | F44: 11 | G44: 26.73902805 | I44: 44.57962197 | L44: Fungicide | M44: SP Boom Sprayer | O44: 90' | P44: =+'Field Operations'!$F$11 -> 10.08349574 | Q44: =+'Field Operations'!$G$11 -> 0.2942877349 | R44: =+'Field Operations'!$H$11 -> 0.4360736111 | S44: =+'Field Operations'!$I$11 -> 0.318287037 | T44: =SUM(P44:S44) -> 11.13214413 | U44: _________
B45: 35 | C45: 8.403694529 | D45: 14.01073833 | F45: 11.5 | G45: 25.57646161 | I45: 42.64137754 | L45: Insect Control | M45: SP Boom Sprayer | O45: 90' | P45: =+'Field Operations'!$F$11 -> 10.08349574 | Q45: =+'Field Operations'!$G$11 -> 0.2942877349 | R45: =+'Field Operations'!$H$11 -> 0.4360736111 | S45: =+'Field Operations'!$I$11 -> 0.318287037 | T45: 11.13214413 | U45: _________
B46: =+B47-5 -> 40 | C46: 7.353232713 | D46: 12.25939604 | F46: =+F47-0.5 -> 12 | G46: 24.51077571 | I46: 40.86465348 | L46: Harvest | M46: Combine | N46: Grain Head | O46: 30' | P46: =+'Field Operations'!$F$13 -> 29.22887142 | Q46: =+'Field Operations'!$G$13 -> 26.02550332 | R46: =+'Field Operations'!$H$13 -> 7.568991964 | S46: =+'Field Operations'!$I$13 -> 2.455357143 | T46: 65.27872384 | U46: _________
B47: =+F4 -> 45 | C47: 6.536206856 | D47: 10.89724093 | F47: =+G4 -> 12.5 | G47: 23.53034468 | I47: 39.23006734 | L47: Haul | M47: Tractor, 215 hp | N47: Grain Cart | P47: =+'Field Operations'!$F$14 -> 7.397214231 | Q47: =+'Field Operations'!$G$14 -> 0.8354368884 | R47: =+'Field Operations'!$H$14 -> 1.766098125 | S47: =+'Field Operations'!$I$14 -> 1.03125 | T47: 11.02999924 | U47: _________
B48: =+B47+5 -> 50 | C48: 5.88258617 | D48: 9.807516834 | F48: =+F47+0.5 -> 13 | G48: 22.62533142 | I48: 37.72121859 | L48: Haul | M48: ='Field Operations'!C17 -> Semi Tractor/Trailer | P48: ='Field Operations'!F17 -> 6.17 | Q48: ='Field Operations'!G17 -> 0.43 | R48: ='Field Operations'!H17 -> 0.35 | S48: ='Field Operations'!I17 -> 0.77 | T48: 7.72 | U48: _________
B49: =+B48+5 -> 55 | C49: 5.347805609 | D49: 8.915924395 | F49: =+F48+0.5 -> 13.5 | G49: 21.78735619 | I49: 36.32413642 | L49: Plant | M49: Tractor, 215 hp | N49: Planter | O49: 16-row | P49: =+'Field Operations'!$F$8 -> 16.94395286 | Q49: =+'Field Operations'!$G$8 -> 2.876988318 | R49: =+'Field Operations'!$H$8 -> 2.717074038 | S49: =+'Field Operations'!$I$8 -> 1.586538462 | T49: 24.12455368 | U49: _________
B50: 60 | C50: 4.902155142 | D50: 8.172930695 | F50: 14 | G50: 21.00923632 | I50: 35.02684584 | L50: Fertilize | M50: Tractor, 215 hp | N50: Fertilize Spreader | P50: ='Field Operations'!F10 -> 5.383607559 | Q50: ='Field Operations'!G10 -> 1.596529341 | R50: ='Field Operations'!H10 -> 2.88342551 | S50: ='Field Operations'!I10 -> 1.683673469 | T50: 11.54723588 | U50: _________
B51: 65 | C51: 4.525066285 | D51: 7.544243719 | F51: 14.5 | G51: 20.2847799 | I51: 33.81902357 | L51: Weed Control | M51: SP Boom Sprayer | O51: 90' | P51: =+'Field Operations'!$F$11 -> 10.08349574 | Q51: =+'Field Operations'!$G$11 -> 0.2942877349 | R51: =+'Field Operations'!$H$11 -> 0.4360736111 | S51: =+'Field Operations'!$I$11 -> 0.318287037 | T51: =SUM(P51:S51) -> 11.13214413 | U51: _________
L52: Weed Control | M52: SP Boom Sprayer | O52: 90' | P52: =+'Field Operations'!$F$11 -> 10.08349574 | Q52: =+'Field Operations'!$G$11 -> 0.2942877349 | R52: =+'Field Operations'!$H$11 -> 0.4360736111 | S52: =+'Field Operations'!$I$11 -> 0.318287037 | T52: 11.13214413 | U52: _________
B53: Breakeven Price for Selected Wheat Yield | F53: Breakeven Yield for Selected Wheat Price | L53: Weed Control | M53: SP Boom Sprayer | O53: 90' | P53: =+'Field Operations'!$F$11 -> 10.08349574 | Q53: =+'Field Operations'!$G$11 -> 0.2942877349 | R53: =+'Field Operations'!$H$11 -> 0.4360736111 | S53: =+'Field Operations'!$I$11 -> 0.318287037 | T53: 11.13214413 | U53: _________
B54: Yield (bu) | C54: Variable Cost ($/bu) | D54: Total Specified Cost ($/bu) | F54: Price ($/bu) | G54: Variable Cost (bu) | I54: Total Specified Cost (bu) | L54: Fungicide | M54: SP Boom Sprayer | O54: 90' | P54: =+'Field Operations'!$F$11 -> 10.08349574 | Q54: =+'Field Operations'!$G$11 -> 0.2942877349 | R54: =+'Field Operations'!$H$11 -> 0.4360736111 | S54: =+'Field Operations'!$I$11 -> 0.318287037 | T54: =SUM(P54:S54) -> 11.13214413 | U54: _________
B55: =+B56-5 -> 60 | C55: =$H$26/2/B55 -> 4.902155142 | D55: =($H$26+$H$37)/2/B55 -> 8.172930695 | F55: =+F56-0.5 -> 4.5 | G55: =+$H$26/2/F55 -> 65.36206856 | I55: =+($H$26+$H$37)/2/F55 -> 108.9724093 | L55: Harvest | M55: Combine | N55: Grain Head | O55: 30' | P55: =+'Field Operations'!$F$13 -> 29.22887142 | Q55: =+'Field Operations'!$G$13 -> 26.02550332 | R55: =+'Field Operations'!$H$13 -> 7.568991964 | S55: =+'Field Operations'!$I$13 -> 2.455357143 | T55: 65.27872384 | U55: _________
B56: 65 | C56: 4.525066285 | D56: 7.544243719 | F56: 5 | G56: 58.8258617 | I56: 98.07516834 | L56: Haul | M56: Tractor, 215 hp | N56: Grain Cart | O56: =+'Field Operations'!$E$14 -> 800 bu | P56: =+'Field Operations'!$F$14 -> 7.397214231 | Q56: =+'Field Operations'!$G$14 -> 0.8354368884 | R56: =+'Field Operations'!$H$14 -> 1.766098125 | S56: =+'Field Operations'!$I$14 -> 1.03125 | T56: 11.02999924 | U56: _________
B57: 70 | C57: 4.201847264 | D57: 7.005369167 | F57: 5.5 | G57: 53.47805609 | I57: 89.15924395 | L57: Haul | M57: ='Field Operations'!C15 -> Semi Tractor/Trailer | P57: ='Field Operations'!F15 -> 5.91 | Q57: ='Field Operations'!G15 -> 0.32 | R57: ='Field Operations'!H15 -> 0.25 | S57: ='Field Operations'!I15 -> 0.55 | T57: 7.03 | U57: _________
B58: =+B59-5 -> 75 | C58: 3.921724113 | D58: 6.538344556 | F58: =+F59-0.5 -> 6 | G58: 49.02155142 | I58: 81.72930695 | L58: Other | P58: 0 | Q58: 0 | R58: 0 | S58: 0 | T58: 0 | U58: _________
B59: =+F5 -> 80 | C59: 3.676616356 | D59: 6.129698021 | F59: =G5 -> 6.5 | G59: 45.25066285 | I59: 75.44243719 | L59: Other | P59: 0 | Q59: 0 | R59: 0 | S59: 0 | T59: 0 | U59: _________
B60: =+B59+5 -> 85 | C60: 3.460344806 | D60: 5.769127549 | F60: =+F59+0.5 -> 7 | G60: 42.01847264 | I60: 70.05369167 | L60: Total | P60: =SUM(P38:P59) -> 224.4930664 | Q60: =SUM(Q38:Q59) -> 71.80256377 | R60: =SUM(R38:R59) -> 42.35642462 | S60: =SUM(S38:S59) -> 22.28286246 | T60: =SUM(T38:T59) -> 360.9349172 | U60: _________
B61: =+B60+5 -> 90 | C61: 3.268103428 | D61: 5.448620463 | F61: =+F60+0.5 -> 7.5 | G61: 39.21724113 | I61: 65.38344556
B62: 95 | C62: 3.096097984 | D62: 5.161850965 | F62: 8 | G62: 36.76616356 | I62: 61.29698021
B63: 100 | C63: 2.941293085 | D63: 4.903758417 | F63: 8.5 | G63: 34.60344806 | I63: 57.69127549

Sheet Wheat (hidden)
B1: 2019 Wheat, Conventional Tillage, Non-Irrigated Budget | L1: Table 1. Fertilizer & Lime
E2: Unit | F2: Quantity | G2: Price | H2: Total | J2: Your Farm | L2: Fertilizer | M2: Description | N2: Quantity (lbs) | O2: Price ($) | P2: Total ($/Acre) | Q2: Your Farm ($/Acre)
B3: Revenue | E3: Gross Revenue ($/Acre) | L3: Nitrogen | M3: Urea - Planting/Fall | N3: 30 | O3: =Inputs!C44 -> 0.61 | P3: =+N3*O3 -> 18.3 | Q3: _________
C4: Wheat1 | E4: Bu | F4: 70 | G4: =+Inputs!C5 -> 6.5 | H4: =F4*G4 -> 455 | J4: _________ | M4: UAN 32 - Post-Emerge/Spring | N4: 70 | O4: =Inputs!C47 -> 0.64 | P4: =O4*N4 -> 44.8 | Q4: _________
B5: Total Revenue | H5: =SUM(H4:H4) -> 455 | J5: _________ | L5: Phosphorous | M5: P2O5 | N5: 40 | O5: =Inputs!C48 -> 0.65 | P5: =+N5*O5 -> 26 | Q5: _________
B6: Variable Expenses | L6: Potassium | M6: K20 | N6: 20 | O6: =+Inputs!C50 -> 0.43 | P6: =+N6*O6 -> 8.6 | Q6: _________
C7: Seed | E7: Bu | F7: 2.5 | G7: =+Inputs!C38 -> 18 | H7: =+F7*G7 -> 45 | J7: _________ | L7: Lime | M7: Limestone | N7: 1000 | O7: =+Inputs!C51 -> 30 | P7: =+N7/2000*O7 -> 15 | Q7: _________
C8: Fertilizer & Lime (Table 1) | E8: Acre | F8: 1 | G8: =P9 -> 117.7 | H8: =+F8*G8 -> 117.7 | J8: _________ | L8: Sulfur | M8: Sulfur | N8: 10 | O8: =Inputs!C54 -> 0.5 | P8: =N8*O8 -> 5 | Q8: _________
C9: Chemical (Table 2) 2,3 | E9: Acre | F9: 1 | G9: =S22 -> 77.64125 | H9: =F9*G9 -> 77.64125 | J9: _________ | L9: Total | P9: =SUM(P3:P8) -> 117.7 | Q9: _________
C10: Crop Scout | E10: Acre | F10: 1 | G10: =+Inputs!C18 -> 10 | H10: =F10*G10 -> 10 | J10: _________ | L10: Table 2. Chemicals2,3
C11: Repair & Maintenance (Table 3) 4 | E11: Acre | F11: 1 | G11: =+Q36 -> 37.66871336 | H11: =+F11*G11 -> 37.66871336 | J11: _________ | L11: Chemical | M11: Function | N11: Description | O11: Unit | P11: Number of Apps. | Q11: Quantity | R11: Price | S11: Total ($/Acre) | T11: Your Farm ($/Acre)
C12: Fuel, Oil & Filter (Table 3) 4 | E12: Acre | F12: 1 | G12: =+R36 -> 22.97918864 | H12: 22.97918864 | J12: _________ | L12: Herbicides | M12: Burndown | N12: Gramoxone | O12: oz. | P12: 1 | Q12: 40 | R12: =Herbicides!B47 -> 0.33125 | S12: =P12*Q12*R12 -> 13.25 | T12: _________
C13: Operator Labor (Table 3) 4 | E13: Acre | F13: 1 | G13: =+S36 -> 12.3375088 | H13: 12.3375088 | J13: _________ | N13: Roundup | O13: qt. | P13: 1 | Q13: 1 | R13: =Herbicides!B68 -> 14.5 | S13: =P13*Q13*R13 -> 14.5 | T13: _________
C14: Machinery Rental | E14: Acre | F14: 0 | G14: 0 | H14: 0 | J14: _________ | M14: Post-Emerge | N14: Harmony | O14: oz. | P14: 1 | Q14: 0.75 | R14: =Herbicides!B50 -> 14.03 | S14: 10.5225 | T14: _________
C15: Custom Work | E15: Acre | F15: 0 | G15: 0 | H15: 0 | J15: _________ | N15: Metribuzin | O15: oz. | P15: 1 | Q15: 3 | R15: =Herbicides!B56 -> 1.40625 | S15: =P15*Q15*R15 -> 4.21875 | T15: _________
C16: Drying (Fuel/Electric) | E16: Bu | F16: =+F4 -> 70 | G16: =+Inputs!C20 -> 0.6 | H16: 42 | J16: _________ | N16: Surfactant | O16: pt. | P16: 1 | Q16: 0.1 | R16: =Herbicides!B75 -> 1.5 | S16: 0.15 | T16: _________
C17: Cash Rent 5 | E17: Acre | F17: 1 | G17: =+Inputs!C23 -> 113 | H17: =F17*G17 -> 113 | J17: _________ | N17: Other | S17: 0 | T17: _________
C18: Crop Insurance 6 | E18: Acre | F18: 1 | G18: =+Inputs!C26 -> 14.6 | H18: =F18*G18 -> 14.6 | J18: _________ | L18: Seed Treatment | N18: Seed Treatment | O18: acre | P18: 1 | Q18: 1 | R18: =Insecticides!B8 -> 17.5 | S18: 17.5 | T18: _________
C19: Operating Interest 7 | E19: % | F19: =SUM(H7:H18,H20) -> 492.9266608 | G19: =+Inputs!C14 -> 0.085 | H19: =(F19*G19)/2 -> 20.94938308 | J19: _________ | L19: Insecticides | N19: Foliar | O19: acre | P19: 1 | Q19: 1 | R19: =Insecticides!B9 -> 5 | S19: =P19*Q19*R19 -> 5 | T19: _________
C20: Other Variable Costs | E20: Acre | F20: 1 | G20: 0 | H20: =F20*G20 -> 0 | J20: _________ | L20: Fungicides | N20: Foliar | O20: acre | P20: 1 | Q20: 1 | R20: =+Fungicides!$B$6 -> 12.5 | S20: =P20*Q20*R20 -> 12.5 | T20: _________
B21: Total Variable Expenses | H21: =SUM(H7:H20) -> 513.8760439 | J21: _________ | N21: Other | S21: =P21*Q21*R21 -> 0 | T21: _________
B22: Return Above Variable Expenses | H22: =H5-H21 -> -58.87604389 | J22: _________ | L22: Total | S22: =SUM(S12:S21) -> 77.64125 | T22: _________
B23: Fixed Expenses | L23: Table 3. Machinery 4
C24: Machinery 4 | M24: Power Unit | N24: Implement | O24: Size | P24: Capital Recovery | Q24: Repairs & Maintenance | R24: Fuel, Oil & Filter | S24: Labor | T24: Total | U24: Your Farm ($/Acre)
C25: Capital Recovery (Table 3) | E25: Acre | F25: 1 | G25: =+P36 -> 123.9953255 | H25: =+F25*G25 -> 123.9953255 | J25: _________ | L25: Disk | M25: Tractor, 215 hp | N25: Tandem Disk | O25: 29' | P25: =+'Field Operations'!F5 -> 12.19552947 | Q25: =+'Field Operations'!G5 -> 2.015124735 | R25: =+'Field Operations'!H5 -> 3.184310345 | S25: =+'Field Operations'!I5 -> 1.859364435 | T25: =SUM(P25:S25) -> 19.25432899 | U25: _________
C26: Other Fixed Machinery Costs | E26: Acre | F26: 1 | G26: 0 | H26: =+F26*G26 -> 0 | J26: _________ | L26: Burndown | M26: SP Boom Sprayer | O26: 90' | P26: =+'Field Operations'!F11 -> 10.08349574 | Q26: =+'Field Operations'!G11 -> 0.2942877349 | R26: =+'Field Operations'!H11 -> 0.4360736111 | S26: =+'Field Operations'!I11 -> 0.318287037 | T26: =SUM(P26:S26) -> 11.13214413 | U26: _________
C27: Property Taxes | E27: Acre | F27: 1 | G27: =+Inputs!C31 -> 0 | H27: =+F27*G27 -> 0 | J27: _________ | L27: Fertilize | M27: Tractor, 215 hp | N27: Fertilize Spreader | O27: 900# | P27: =+'Field Operations'!F10 -> 5.383607559 | Q27: =+'Field Operations'!G10 -> 1.596529341 | R27: =+'Field Operations'!H10 -> 2.88342551 | S27: =+'Field Operations'!I10 -> 1.683673469 | T27: =SUM(P27:S27) -> 11.54723588 | U27: _________
C28: Insurance (Non-Machinery) | E28: Acre | F28: 1 | G28: =+Inputs!C32 -> 0 | H28: =+F28*G28 -> 0 | J28: _________ | L28: Plant | M28: Tractor, 215 hp | N28: Grain Drill | O28: 20 ft | P28: =+'Field Operations'!F9 -> 13.20262413 | Q28: =+'Field Operations'!G9 -> 5.294680402 | R28: =+'Field Operations'!H9 -> 5.045994643 | S28: =+'Field Operations'!I9 -> 2.946428571 | T28: =SUM(P28:S28) -> 26.48972775 | U28: _________
C29: Management Labor | E29: Acre | F29: 1 | G29: =Inputs!C33 -> 25 | H29: =+F29*G29 -> 25 | J29: _________ | L29: Weed Control | M29: SP Boom Sprayer | O29: 90' | P29: =+'Field Operations'!F11 -> 10.08349574 | Q29: =+'Field Operations'!G11 -> 0.2942877349 | R29: =+'Field Operations'!H11 -> 0.4360736111 | S29: =+'Field Operations'!I11 -> 0.318287037 | T29: =SUM(P29:S29) -> 11.13214413 | U29: _________
C30: Other Fixed Costs | E30: Acre | F30: 1 | G30: 0 | H30: =+F30*G30 -> 0 | J30: _________ | L30: Fertilize | M30: SP Boom Sprayer | O30: 90' | P30: =+'Field Operations'!F11 -> 10.08349574 | Q30: =+'Field Operations'!G11 -> 0.2942877349 | R30: =+'Field Operations'!H11 -> 0.4360736111 | S30: =+'Field Operations'!I11 -> 0.318287037 | T30: =SUM(P30:S30) -> 11.13214413 | U30: _________
B31: Total Fixed Expenses | H31: =+SUM(H24:H29) -> 148.9953255 | J31: _________ | L31: Fungicide | M31: SP Boom Sprayer | O31: 90' | P31: =+'Field Operations'!F11 -> 10.08349574 | Q31: =+'Field Operations'!G11 -> 0.2942877349 | R31: =+'Field Operations'!H11 -> 0.4360736111 | S31: =+'Field Operations'!I11 -> 0.318287037 | T31: =SUM(P31:S31) -> 11.13214413 | U31: _________
B32: Return Above All Specified Expenses | H32: =H5-H21-H31 -> -207.8713694 | J32: _________ | L32: Insecticide | M32: SP Boom Sprayer | O32: 90' | P32: =+'Field Operations'!F11 -> 10.08349574 | Q32: =+'Field Operations'!G11 -> 0.2942877349 | R32: =+'Field Operations'!H11 -> 0.4360736111 | S32: =+'Field Operations'!I11 -> 0.318287037 | T32: =SUM(P32:S32) -> 11.13214413 | U32: _________
L33: Harvest | M33: Combine | N33: Grain Head | O33: 30 ft | P33: =+'Field Operations'!$F$13 -> 29.22887142 | Q33: =+'Field Operations'!$G$13 -> 26.02550332 | R33: =+'Field Operations'!$H$13 -> 7.568991964 | S33: =+'Field Operations'!$I$13 -> 2.455357143 | T33: =SUM(P33:S33) -> 65.27872384 | U33: _________
B34: Breakeven Price for Selected Yield | F34: Breakeven Yield for Selected Price | L34: Haul | M34: Tractor, 215 hp | N34: Grain Cart | P34: =+'Field Operations'!$F$14 -> 7.397214231 | Q34: =+'Field Operations'!$G$14 -> 0.8354368884 | R34: =+'Field Operations'!$H$14 -> 1.766098125 | S34: =+'Field Operations'!$I$14 -> 1.03125 | T34: =SUM(P34:S34) -> 11.02999924 | U34: _________
B35: Yield (bu) | C35: Variable Cost ($/bu) | D35: Total Specified Cost ($/bu) | F35: Price ($/bu) | G35: Variable Cost (bu) | I35: Total Specified Cost (bu) | L35: Haul | M35: Semi Tractor/Trailer | O35: ='Field Operations'!E14 -> 800 bu | P35: ='Field Operations'!$F$17 -> 6.17 | Q35: ='Field Operations'!$G$17 -> 0.43 | R35: ='Field Operations'!$H$17 -> 0.35 | S35: ='Field Operations'!$I$17 -> 0.77 | T35: ='Field Operations'!J17 -> 7.72 | U35: _________
B36: =SUM(B37-5) -> 50 | C36: =$H$21/B36 -> 10.27752088 | D36: =($H$21+$H$31)/B36 -> 13.25742739 | F36: =SUM(F37-0.25) -> 5.5 | G36: =+$H$21/F36 -> 93.43200798 | I36: =+($H$21+$H$31)/F36 -> 120.5220672 | L36: Total | P36: =SUM(P25:P35) -> 123.9953255 | Q36: =SUM(Q25:Q35) -> 37.66871336 | R36: 22.97918864 | S36: =SUM(S25:S35) -> 12.3375088 | T36: 196.9807363 | U36: _________
B37: 55 | C37: 9.343200798 | D37: 12.05220672 | F37: 5.75 | G37: =+$H$21/F37 -> 89.36974676 | I37: 115.2819773
B38: 60 | C38: 8.564600731 | D38: 11.04785616 | F38: 6 | G38: 85.64600731 | I38: 110.4785616
B39: =SUM(B40-5) -> 65 | C39: 7.905785291 | D39: 10.19802107 | F39: =SUM(F40-0.25) -> 6.25 | G39: 82.22016702 | I39: 106.0594191
B40: =+F4 -> 70 | C40: 7.341086341 | D40: 9.469590992 | F40: =+G4 -> 6.5 | G40: 79.05785291 | I40: 101.9802107
B41: =SUM(B40+5) -> 75 | C41: 6.851680585 | D41: 8.838284926 | F41: =SUM(F40+0.25) -> 6.75 | G41: 76.12978428 | I41: 98.20316584
B42: =SUM(B41+5) -> 80 | C42: 6.423450549 | D42: 8.285892118 | F42: =SUM(F41+0.25) -> 7 | G42: 73.41086341 | I42: 94.69590992
B43: 85 | C43: 6.045600516 | D43: 7.798486699 | F43: 7.25 | G43: 70.87945433 | I43: 91.43053371
B44: 90 | C44: 5.709733821 | D44: 7.365237438 | F44: 7.5 | G44: 68.51680585 | I44: 88.38284926
B46: FOOTNOTES
B47: 1) Wheat price was estimated using weighted average futures prices from July 2018 to May 2019 on December 29, 2018, adjusted by average monthly basis in Tennessee. Wheat yield is the predicted 2018 linear trend line yield for wheat in Tennessee using state average yields from 1980-2018. If a market for straw is available, add an appropriate amount to return to land, management, and risk, based on the expected yield and price of the straw, less harvest and marketing costs.
B48: 2) Seed treatment is to protect against Barley Yellow Dwarf virus.
B49: 3) Cost may vary depending on fungicide used and application rate per acre. Check with farm suppliers for rebates, discounts, and incentives for seed and chemicals. Substantial cost savings may be available.
B50: 4) Machinery expenses will vary dramatically by operation, financial resources, and land base. The machinery cost estimates provided in Table 3 are provided as an estimate of cost of ownership and operation for specified pieces of machinery that would be available to a "representative" row-crop farm in Tennessee. To estimate machinery costs for a specific set of equipment, interested parties can utilize the Excel version of the budgets and modify the Machinery Assumptions Table.
B51: 5) Cash rental rates are the 2018 USDA-NASS reported cash rental rates for cropland in Tennessee. Substantial differences may exist in cash rental rates reported by NASS and the prevailing rate in your location.
B52: 6) Crop insurance is an estimate and will vary by policy, county, and coverage election. The estimate provided is the average premium paid per insured acre of wheat in Tennessee for the previous production year as reported by USDA RMA's Summary of Business Report.
B53: 7) Operating interest is assumed to be charged on half of all variable expenses.

Sheet Cotton NT
B1: 2024 Cotton, No-Till, Non-Irrigated Budget | L1: Table 1. Fertilizer & Lime3
E2: Unit | F2: Quantity | G2: Price | H2: Total | J2: Your Farm | L2: Fertilizer | M2: Description | N2: Quantity (lbs.) | O2: Price ($) | P2: Total ($/Acre) | Q2: Your Farm ($/Acre)
B3: Revenue1 | E3: Gross Revenue ($/Acre) | L3: Nitrogen | M3: Urea | N3: 35 | O3: =+Inputs!C44 -> 0.61 | P3: =+N3*O3 -> 21.35 | Q3: _________
C4: Cotton | E4: lb. | F4: 1150 | G4: =+Inputs!C7 -> 0.82 | H4: =F4*G4 -> 943 | J4: _________ | M4: UAN 32% | N4: 35 | O4: =Inputs!C47 -> 0.64 | P4: =+N4*O4 -> 22.4 | Q4: _________
C5: Government Payments | E5: $/acre | F5: 1 | G5: 0 | H5: =F5*G5 -> 0 | J5: _________ | L5: Phosphorous | M5: P2O5 | N5: 60 | O5: =+Inputs!C48 -> 0.65 | P5: =+N5*O5 -> 39 | Q5: _________
C6: Other Revenue | E6: $/acre | F6: 1 | G6: 0 | H6: 0 | J6: _________ | L6: Potassium | M6: K20 | N6: 90 | O6: =+Inputs!C50 -> 0.43 | P6: =+N6*O6 -> 38.7 | Q6: _________
B7: Total Revenue | H7: =SUM(H4:H6) -> 943 | J7: _________ | L7: Sulfur | N7: 10 | O7: =Inputs!C53 -> 0.35 | P7: =+N7*O7 -> 3.5 | Q7: _________
B8: Variable Expenses | L8: Boron | N8: 0.5 | O8: =Inputs!$C$52 -> 2.355 | P8: =N8*O8 -> 1.1775 | Q8: _________
C9: Seed2 | E9: Thous. | F9: 50 | G9: =+Inputs!C40 -> 2.65 | H9: =+F9*G9 -> 132.5 | J9: _________ | L9: Lime | N9: 1000 | O9: =+Inputs!$C$51 -> 30 | P9: =+N9/2000*O9 -> 15 | Q9: _________
C10: Wrap | E10: lb. | F10: =F4 -> 1150 | G10: =+Inputs!C21 -> 0.02 | H10: =+F10*G10 -> 23 | J10: _________ | L10: Other | N10: 0 | O10: 0 | P10: =N10*O10 -> 0 | Q10: _________
C11: Fertilizer & Lime (Table 1) | E11: Acre | F11: 1 | G11: =+P12 -> 141.1275 | H11: 141.1275 | J11: _________ | L11: Other | N11: 0 | O11: 0 | P11: =+N11*O11 -> 0 | Q11: _________
C12: Chemical (Table 2) | E12: Acre | F12: 1 | G12: =S35 -> 191.6109167 | H12: 191.6109167 | J12: _________ | L12: Total | P12: =SUM(P3:P11) -> 141.1275 | Q12: _________
C13: Crop Scout or Consultant | E13: Acre | F13: 1 | G13: =+Inputs!C19 -> 12 | H13: 12 | J13: _________
C14: Repair & Maintenance (Table 3) | E14: Acre | F14: 1 | G14: =$Q$55 -> 32.66115153 | H14: 32.66115153 | J14: _________ | L14: Table 2. Chemicals4
C15: Fuel, Oil & Filter (Table 3) | E15: Acre | F15: 1 | G15: =$R$55 -> 32.94943736 | H15: 32.94943736 | J15: _________ | L15: Chemical | M15: Function | N15: Description | O15: Unit | P15: Number of Apps. | Q15: Quantity | R15: Price | S15: Total ($/Acre) | T15: Your Farm ($/Acre)
C16: Operator Labor (Table 3) | E16: Acre | F16: 1 | G16: =$S$55 -> 15.43808188 | H16: 15.43808188 | J16: _________ | L16: Herbicides | M16: Burndown | N16: Roundup | O16: qt. | P16: 1 | Q16: 1 | R16: =Herbicides!B68 -> 14.5 | S16: =P16*Q16*R16 -> 14.5 | T16: _________
C17: Crop Insurance6 | E17: Acre | F17: 1 | G17: =+Inputs!C28 -> 12.5 | H17: =+F17*G17 -> 12.5 | J17: _________ | N17: Clarity | O17: oz. | P17: 1 | Q17: 8 | R17: =Herbicides!B21 -> 0.734375 | S17: =P17*Q17*R17 -> 5.875 | T17: _________
C18: Machinery Rental | E18: Acre | F18: 1 | G18: 0 | H18: 0 | J18: _________ | M18: At-Planting | N18: Cotoran | O18: pt. | P18: 1 | Q18: 2 | R18: =Herbicides!B25 -> 6.25 | S18: =P18*Q18*R18 -> 12.5 | T18: _________
C19: Custom Work | E19: Acre | F19: 1 | G19: 0 | H19: 0 | J19: _________ | N19: Gramoxone | O19: oz. | P19: 1 | Q19: 32 | R19: =Herbicides!B47 -> 0.33125 | S19: 10.6 | T19: _________
C20: Other Transportation Costs | E20: Acre | F20: 1 | G20: 0 | H20: 0 | J20: _________ | M20: Post-Emerge | N20: Sequence | O20: pt. | P20: 1 | Q20: 2.5 | R20: =Herbicides!B71 -> 9 | S20: 22.5 | T20: _________
C21: Other | E21: Acre | F21: 0 | G21: 0 | H21: =F21*G21 -> 0 | J21: _________ | N21: Envoke | O21: oz. | P21: 1 | Q21: 0.1 | R21: =Herbicides!B36 -> 126.6666667 | S21: 12.66666667 | T21: _________
C22: Other | E22: Acre | F22: 0 | G22: 0 | H22: =F22*G22 -> 0 | J22: _________ | N22: Caparol | O22: pt. | P22: 1 | Q22: 1 | R22: =Herbicides!B20 -> 6.25 | S22: 6.25 | T22: _________
C23: Operating Interest7 | E23: % | F23: =SUM(H9:H22) -> 593.7870874 | G23: =+Inputs!C14 -> 0.085 | H23: =(F23*G23)/2 -> 25.23595122 | J23: _________ | N23: Other | P23: 0 | Q23: 0 | R23: 0 | S23: 0 | T23: _________
B24: Total Variable Expenses | H24: =SUM(H9:H23) -> 619.0230386 | J24: _________ | L24: Growth Regulator | N24: Mepex (Mepiquat Chloride) | O24: pt. | P24: 1 | Q24: 2 | R24: =+Herbicides!$B$55 -> 1.25 | S24: 2.5 | T24: _________
B25: Return Above Variable Expenses | H25: =H7-H24 -> 323.9769614 | J25: _________ | L25: Defoliant | N25: Defoliant | O25: oz. | P25: 1 | Q25: 12 | R25: =+Herbicides!$B$27 -> 1.56 | S25: 18.72 | T25: _________
B26: Fixed Expenses | L26: Boll Opener | N26: Ethephon | O26: oz. | P26: 1 | Q26: 32 | R26: =+Herbicides!$B$16 -> 0.2812265625 | S26: 8.99925 | T26: _________
C27: Machinery | L27: Insecticides | N27: Seed Treatment | O27: acre | P27: 1 | Q27: 1 | R27: =+Insecticides!$B$4 -> 18.5 | S27: 18.5 | T27: _________
C28: Capital Recovery (Table 3) | E28: Acre | F28: 1 | G28: =+P55 -> 181.0155665 | H28: =+F28*G28 -> 181.0155665 | J28: _________ | N28: Foliar | O28: acre | P28: 1 | Q28: 1 | R28: =+Insecticides!$B$5 -> 48 | S28: 48 | T28: _________
C29: Other Fixed Machinery Costs | E29: Acre | F29: 1 | G29: 0 | H29: =+F29*G29 -> 0 | J29: _________ | L29: Fungicides | N29: Seed Treatment | O29: acre | P29: 1 | Q29: 1 | R29: =+Fungicides!$B$4 -> 10 | S29: 10 | T29: _________
C30: General Overhead | E30: Acre | F30: 1 | G30: 20 | H30: 20 | J30: _________ | N30: Other | P30: 0 | Q30: 0 | R30: 0 | S30: 0 | T30: _________
C31: Cash Rent8 | E31: Acre | F31: 1 | G31: =+Inputs!C23 -> 113 | H31: 113 | J31: _________ | N31: Other | P31: 0 | Q31: 0 | R31: 0 | S31: 0 | T31: _________
C32: Insurance (Non-Machinery) | E32: Acre | F32: 1 | G32: =+Inputs!C32 -> 0 | H32: 0 | J32: _________ | N32: Other | P32: 0 | Q32: 0 | R32: 0 | S32: 0 | T32: _________
C33: Management Labor | E33: Acre | F33: 1 | G33: =Inputs!C33 -> 25 | H33: 25 | J33: _________ | N33: Other | P33: 0 | Q33: 0 | R33: 0 | S33: 0 | T33: _________
C34: Other Fixed Costs | E34: Acre | F34: 1 | G34: 0 | H34: 0 | J34: _________ | N34: Other | P34: 0 | Q34: 0 | R34: 0 | S34: =P34*Q34*R34 -> 0 | T34: _________
B35: Total Fixed Expenses | H35: =+SUM(H28:H34) -> 339.0155665 | J35: _________ | L35: Total | S35: =SUM(S16:S34) -> 191.6109167 | T35: _________
B36: Total Expenses | H36: =+SUM(H24+H35) -> 958.0386052 | J36: _________
B37: Return Above Specified Expenses | H37: =H7-H36 -> -15.03860519 | J37: _________ | L37: Table 3. Machinery5
M38: Power Unit | N38: Implement | O38: Size | P38: Capital Recovery | Q38: Repairs & Maintenance | R38: Fuel, Oil & Filter | S38: Labor | T38: Total | U38: Your Farm ($/Acre)
B39: Breakeven Price for Selected Yield | F39: Breakeven Yield for Selected Price | L39: Chop Stalks | M39: Tractor, 215 hp | N39: Rotary Mower | O39: 15' | P39: =+'Field Operations'!$F$18 -> 8.468884282 | Q39: =+'Field Operations'!$G$18 -> 4.215707908 | R39: =+'Field Operations'!$H$18 -> 4.204995536 | S39: =+'Field Operations'!$I$18 -> 2.455357143 | T39: =SUM(P39:S39) -> 19.34494487 | U39: _________
B40: Yield (lb.) | C40: Variable Cost ($/lb.) | D40: Total Specified Cost ($/lb.) | F40: Price ($/lb.) | G40: Variable Cost (lb.) | I40: Total Specified Cost (lb.) | L40: Burndown | M40: SP Boom Sprayer | O40: 90' | P40: =+'Field Operations'!$F$11 -> 10.08349574 | Q40: =+'Field Operations'!$G$11 -> 0.2942877349 | R40: =+'Field Operations'!$H$11 -> 0.4360736111 | S40: =+'Field Operations'!$I$11 -> 0.318287037 | T40: 11.13214413 | U40: _________
B41: =SUM(B42-50) -> 900 | C41: =$H$24/B41 -> 0.6878033763 | D41: =($H$24+$H$35)/B41 -> 1.064487339 | F41: =SUM(F42-0.05) -> 0.57 | G41: =+$H$24/F41 -> 1086.005331 | I41: =+($H$24+$H$35)/F41 -> 1680.769483 | L41: Plant | M41: Tractor, 215 hp | N41: Planter | O41: =+'Field Operations'!E19 -> 12-row | P41: =+'Field Operations'!$F$19 -> 14.10579577 | Q41: =+'Field Operations'!$G$19 -> 5.022235859 | R41: =+'Field Operations'!$H$19 -> 3.622765385 | S41: =+'Field Operations'!$I$19 -> 2.115384615 | T41: =SUM(P41:S41) -> 24.86618163 | U41: _________
B42: 950 | C42: 0.6516031986 | D42: 1.00846169 | F42: 0.62 | G42: 998.4242559 | I42: 1545.223557 | L42: Fertilize | M42: Tractor, 215 hp | N42: Fertilize Spreader | P42: =+'Field Operations'!$F$10 -> 5.383607559 | Q42: =+'Field Operations'!$G$10 -> 1.596529341 | R42: =+'Field Operations'!$H$10 -> 2.88342551 | S42: =+'Field Operations'!$I$10 -> 1.683673469 | T42: =SUM(P42:S42) -> 11.54723588 | U42: _________
B43: 1000 | C43: 0.6190230386 | D43: 0.9580386052 | F43: 0.67 | G43: 923.9149831 | I43: 1429.908366 | L43: Weed Control | M43: SP Boom Sprayer | O43: 90' | P43: =+'Field Operations'!$F$11 -> 10.08349574 | Q43: =+'Field Operations'!$G$11 -> 0.2942877349 | R43: =+'Field Operations'!$H$11 -> 0.4360736111 | S43: =+'Field Operations'!$I$11 -> 0.318287037 | T43: =SUM(P43:S43) -> 11.13214413 | U43: _________
B44: 1050 | C44: 0.5895457511 | D44: 0.9124177192 | F44: 0.72 | G44: 859.7542203 | I44: 1330.609174 | L44: Weed Control | M44: SP Boom Sprayer | O44: 90' | P44: =+'Field Operations'!$F$11 -> 10.08349574 | Q44: =+'Field Operations'!$G$11 -> 0.2942877349 | R44: =+'Field Operations'!$H$11 -> 0.4360736111 | S44: =+'Field Operations'!$I$11 -> 0.318287037 | T44: 11.13214413 | U44: _________
B45: =SUM(B46-50) -> 1100 | C45: 0.562748217 | D45: 0.8709441865 | F45: =SUM(F46-0.05) -> 0.77 | G45: 803.9260242 | I45: 1244.205981 | L45: Weed Control | M45: SP Boom Sprayer | O45: 90' | P45: =+'Field Operations'!$F$11 -> 10.08349574 | Q45: =+'Field Operations'!$G$11 -> 0.2942877349 | R45: =+'Field Operations'!$H$11 -> 0.4360736111 | S45: =+'Field Operations'!$I$11 -> 0.318287037 | T45: =SUM(P45:S45) -> 11.13214413 | U45: _________
B46: =+F4 -> 1150 | C46: 0.5382809032 | D46: 0.833077048 | F46: =+G4 -> 0.82 | G46: 754.9061447 | I46: 1168.339762 | L46: Weed Control | M46: Tractor, 215 hp | N46: Hooded Sprayer | P46: =+'Field Operations'!$F$20 -> 2.458073402 | Q46: =+'Field Operations'!$G$20 -> 0.3788848373 | R46: =+'Field Operations'!$H$20 -> 1.006323718 | S46: =+'Field Operations'!$I$20 -> 0.5876068376 | T46: 4.430888795 | U46: _________
B47: =SUM(B46+50) -> 1200 | C47: 0.5158525322 | D47: 0.7983655043 | F47: =SUM(F46+0.05) -> 0.87 | G47: 711.5207341 | I47: 1101.193799 | L47: Fertilize | M47: Tractor, 215 hp | N47: Fertilize Spreader | P47: ='Field Operations'!F10 -> 5.383607559 | Q47: ='Field Operations'!G10 -> 1.596529341 | R47: ='Field Operations'!H10 -> 2.88342551 | S47: ='Field Operations'!I10 -> 1.683673469 | T47: =SUM(P47:S47) -> 11.54723588 | U47: _________
B48: =SUM(B47+50) -> 1250 | C48: 0.4952184309 | D48: 0.7664308842 | F48: =SUM(F47+0.05) -> 0.92 | G48: 672.851129 | I48: 1041.34631 | L48: Spray | M48: SP Boom Sprayer | O48: 90' | P48: =+'Field Operations'!$F$11 -> 10.08349574 | Q48: =+'Field Operations'!$G$11 -> 0.2942877349 | R48: =+'Field Operations'!$H$11 -> 0.4360736111 | S48: =+'Field Operations'!$I$11 -> 0.318287037 | T48: 11.13214413 | U48: _________
B49: 1300 | C49: 0.4761715682 | D49: 0.7369527732 | F49: 0.97 | G49: 638.1680811 | I49: 987.6686651 | L49: Spray | M49: SP Boom Sprayer | O49: 90' | P49: =+'Field Operations'!$F$11 -> 10.08349574 | Q49: =+'Field Operations'!$G$11 -> 0.2942877349 | R49: =+'Field Operations'!$H$11 -> 0.4360736111 | S49: =+'Field Operations'!$I$11 -> 0.318287037 | T49: 11.13214413 | U49: _________
B50: 1350 | C50: 0.4585355842 | D50: 0.7096582261 | F50: 1.02 | G50: 606.885332 | I50: 939.2535345 | L50: Spray | M50: SP Boom Sprayer | O50: 90' | P50: =+'Field Operations'!$F$11 -> 10.08349574 | Q50: =+'Field Operations'!$G$11 -> 0.2942877349 | R50: =+'Field Operations'!$H$11 -> 0.4360736111 | S50: =+'Field Operations'!$I$11 -> 0.318287037 | T50: 11.13214413 | U50: _________
B51: 1400 | C51: 0.4421593133 | D51: 0.6843132894 | F51: 1.07 | G51: 578.5262043 | I51: 895.3631824 | L51: Harvest | M51: Picker/Module Builder (Round) | O51: 6-row | P51: =+'Field Operations'!$F$24 -> 71.14770702 | Q51: =+'Field Operations'!$G$24 -> 16.95163302 | R51: =+'Field Operations'!$H$24 -> 12.62186292 | S51: =+'Field Operations'!$I$24 -> 3.122918055 | T51: 103.844121 | U51: _________
L52: Harvest | M52: Tractor, 215 hp | N52: Module Handler | P52: =+'Field Operations'!$F$25 -> 3.483420739 | Q52: =+'Field Operations'!$G$25 -> 0.8396170809 | R52: =+'Field Operations'!$H$25 -> 2.674123501 | S52: =+'Field Operations'!$I$25 -> 1.561459027 | T52: 8.558620348 | U52: _________
L53: Other | P53: 0 | Q53: 0 | R53: 0 | S53: 0 | T53: 0 | U53: _________
L54: Other | P54: 0 | Q54: 0 | R54: 0 | S54: 0 | T54: =SUM(P54:S54) -> 0 | U54: _________
L55: Total | P55: =SUM(P39:P54) -> 181.0155665 | Q55: =SUM(Q39:Q54) -> 32.66115153 | R55: =SUM(R39:R54) -> 32.94943736 | S55: =SUM(S39:S54) -> 15.43808188 | T55: =SUM(T39:T54) -> 262.0642373 | U55: _________

Sheet Cotton CT
B1: 2024 Cotton, Conventional Tillage, Non-Irrigated Budget | L1: Table 1. Fertilizer & Lime3
E2: Unit | F2: Quantity | G2: Price | H2: Total | J2: Your Farm | L2: Fertilizer | M2: Description | N2: Quantity (lbs.) | O2: Price ($) | P2: Total ($/Acre) | Q2: Your Farm ($/Acre)
B3: Revenue1 | E3: Gross Revenue ($/Acre) | L3: Nitrogen | M3: Urea | N3: 35 | O3: =+Inputs!C44 -> 0.61 | P3: =+N3*O3 -> 21.35 | Q3: _________
C4: Cotton | E4: lb. | F4: 1150 | G4: =+Inputs!C7 -> 0.82 | H4: =F4*G4 -> 943 | J4: _________ | M4: UAN 32% | N4: 35 | O4: =Inputs!C47 -> 0.64 | P4: =+N4*O4 -> 22.4 | Q4: _________
C5: Government Payments | E5: $/acre | F5: 1 | G5: 0 | H5: =F5*G5 -> 0 | J5: _________ | L5: Phosphorous | M5: P2O5 | N5: 60 | O5: =+Inputs!C48 -> 0.65 | P5: =+N5*O5 -> 39 | Q5: _________
C6: Other Revenue | E6: $/acre | F6: 1 | G6: 0 | H6: 0 | J6: _________ | L6: Potassium | M6: K20 | N6: 90 | O6: =+Inputs!C50 -> 0.43 | P6: =+N6*O6 -> 38.7 | Q6: _________
B7: Total Revenue | H7: =SUM(H4:H6) -> 943 | J7: _________ | L7: Sulfur | N7: 10 | O7: =Inputs!C53 -> 0.35 | P7: 3.5 | Q7: _________
B8: Variable Expenses | L8: Boron | N8: 0.5 | O8: =+Inputs!$C$52 -> 2.355 | P8: 1.1775 | Q8: _________
C9: Seed2 | E9: Thous. | F9: 50 | G9: =+Inputs!C40 -> 2.65 | H9: =+F9*G9 -> 132.5 | J9: _________ | L9: Lime | N9: 1000 | O9: =+Inputs!$C$51 -> 30 | P9: =+N9/2000*O9 -> 15 | Q9: _________
C10: Wrap | E10: lb. | F10: =F4 -> 1150 | G10: =+Inputs!C21 -> 0.02 | H10: =+F10*G10 -> 23 | J10: _________ | L10: Other | N10: 0 | O10: 0 | P10: =N10*O10 -> 0 | Q10: _________
C11: Fertilizer & Lime (Table 1) | E11: Acre | F11: 1 | G11: =+P12 -> 141.1275 | H11: 141.1275 | J11: _________ | L11: Other | N11: 0 | O11: 0 | P11: =+N11*O11 -> 0 | Q11: _________
C12: Chemical (Table 2) | E12: Acre | F12: 1 | G12: =S32 -> 171.2359167 | H12: 171.2359167 | J12: _________ | L12: Total | P12: =SUM(P3:P11) -> 141.1275 | Q12: _________
C13: Crop Scout or Consultant | E13: Acre | F13: 1 | G13: =+Inputs!C19 -> 12 | H13: 12 | J13: _________
C14: Repair & Maintenance (Table 3) | E14: Acre | F14: 1 | G14: =$Q$54 -> 38.69508355 | H14: 38.69508355 | J14: _________ | L14: Table 2. Chemicals4
C15: Fuel, Oil & Filter (Table 3) | E15: Acre | F15: 1 | G15: =$R$54 -> 44.07056227 | H15: 44.07056227 | J15: _________ | L15: Chemical | M15: Function | N15: Description | O15: Unit | P15: Number of Apps. | Q15: Quantity | R15: Price | S15: Total ($/Acre) | T15: Your Farm ($/Acre)
C16: Operator Labor (Table 3) | E16: Acre | F16: 1 | G16: =$S$54 -> 21.86820864 | H16: 21.86820864 | J16: _________ | L16: Herbicides | M16: Pre-Emerge | N16: Cotoran | O16: pt. | P16: 1 | Q16: 2 | R16: =Herbicides!B25 -> 6.25 | S16: =P16*Q16*R16 -> 12.5 | T16: _________
C17: Crop Insurance6 | E17: Acre | F17: 1 | G17: =+Inputs!C28 -> 12.5 | H17: =+F17*G17 -> 12.5 | J17: _________ | N17: Gramoxone | O17: oz. | P17: 1 | Q17: 32 | R17: =Herbicides!B47 -> 0.33125 | S17: =P17*Q17*R17 -> 10.6 | T17: _________
C18: Machinery Rental | E18: Acre | F18: 1 | G18: 0 | H18: 0 | J18: _________ | N18: Other | P18: 0 | Q18: 0 | R18: 0 | S18: =P18*Q18*R18 -> 0 | T18: _________
C19: Custom Work | E19: Acre | F19: 1 | G19: 0 | H19: 0 | J19: _________ | M19: Post-Emerge | N19: Sequence | O19: pt. | P19: 1 | Q19: 2.5 | R19: =Herbicides!B71 -> 9 | S19: 22.5 | T19: _________
C20: Other Transportation Costs | E20: Acre | F20: 1 | G20: 0 | H20: 0 | J20: _________ | N20: Envoke | O20: oz. | P20: 1 | Q20: 0.1 | R20: =Herbicides!B36 -> 126.6666667 | S20: 12.66666667 | T20: _________
C21: Other | E21: Acre | F21: 0 | G21: 0 | H21: =F21*G21 -> 0 | J21: _________ | N21: Caparol | O21: pt. | P21: 1 | Q21: 1 | R21: =Herbicides!B20 -> 6.25 | S21: 6.25 | T21: _________
C22: Other | E22: Acre | F22: 0 | G22: 0 | H22: =F22*G22 -> 0 | J22: _________ | N22: Other | P22: 0 | Q22: 0 | R22: 0 | S22: 0 | T22: _________
C23: Operating Interest7 | E23: % | F23: =SUM(H9:H22) -> 596.9972711 | G23: =+Inputs!C14 -> 0.085 | H23: =(F23*G23)/2 -> 25.37238402 | J23: _________ | L23: Growth Regulator | N23: Mepex (Mepiquat Chloride) | O23: pt. | P23: 1 | Q23: 2 | R23: =+Herbicides!$B$55 -> 1.25 | S23: 2.5 | T23: _________
B24: Total Variable Expenses | H24: =SUM(H9:H23) -> 622.3696552 | J24: _________ | L24: Defoliant | N24: Other | O24: oz. | P24: 1 | Q24: 12 | R24: =+Herbicides!$B$27 -> 1.56 | S24: 18.72 | T24: _________
B25: Return Above Variable Expenses | H25: =H7-H24 -> 320.6303448 | J25: _________ | L25: Boll Opener | N25: Ethephon | O25: oz. | P25: 1 | Q25: 32 | R25: =+Herbicides!$B$16 -> 0.2812265625 | S25: 8.99925 | T25: _________
B26: Fixed Expenses | L26: Insecticides | N26: Seed Treatment | O26: acre | P26: 1 | Q26: 1 | R26: =+Insecticides!$B$4 -> 18.5 | S26: 18.5 | T26: _________
C27: Machinery | N27: In-Season | O27: acre | P27: 1 | Q27: 1 | R27: =+Insecticides!$B$5 -> 48 | S27: 48 | T27: _________
C28: Capital Recovery (Table 3) | E28: Acre | F28: 1 | G28: =$P$54 -> 199.1224382 | H28: =+F28*G28 -> 199.1224382 | J28: _________ | L28: Fungicides | N28: Seed Treatment | O28: acre | P28: 1 | Q28: 1 | R28: =+Fungicides!$B$4 -> 10 | S28: 10 | T28: _________
C29: Other Fixed Machinery Costs | E29: Acre | F29: 1 | G29: =+Inputs!C32 -> 0 | H29: =+F29*G29 -> 0 | J29: _________ | N29: Other | P29: 0 | Q29: 0 | R29: 0 | S29: 0 | T29: _________
C30: General Overhead | E30: Acre | F30: 1 | G30: 20 | H30: =+F30*G30 -> 20 | J30: _________ | N30: Other | P30: 0 | Q30: 0 | R30: 0 | S30: 0 | T30: _________
C31: Cash Rent8 | E31: Acre | F31: 1 | G31: =+Inputs!C23 -> 113 | H31: =+F31*G31 -> 113 | J31: _________ | N31: Other | P31: 0 | Q31: 0 | R31: 0 | S31: =P31*Q31*R31 -> 0 | T31: _________
C32: Insurance (Non-Machinery) | E32: Acre | F32: 1 | G32: =+Inputs!C32 -> 0 | H32: =+F32*G32 -> 0 | J32: _________ | L32: Total | S32: =SUM(S16:S31) -> 171.2359167 | T32: _________
C33: Management Labor | E33: Acre | F33: 1 | G33: =Inputs!C33 -> 25 | H33: =+F33*G33 -> 25 | J33: _________
C34: Other Fixed Costs | E34: Acre | F34: 1 | G34: 0 | H34: =+F34*G34 -> 0 | J34: _________ | L34: Table 3. Machinery5
B35: Total Fixed Expenses | H35: =+SUM(H27:H34) -> 357.1224382 | J35: _________ | M35: Power Unit | N35: Implement | O35: Size | P35: Capital Recovery | Q35: Repairs & Maintenance | R35: Fuel, Oil & Filter | S35: Labor | T35: Total | U35: Your Farm ($/Acre)
B36: Total Expenses | H36: =+SUM(H24+H35) -> 979.4920933 | J36: _________ | L36: Chop Stalks | M36: Tractor, 215 hp | N36: Rotary Mower | O36: 15' | P36: =+'Field Operations'!$F$18 -> 8.468884282 | Q36: =+'Field Operations'!$G$18 -> 4.215707908 | R36: =+'Field Operations'!$H$18 -> 4.204995536 | S36: =+'Field Operations'!$I$18 -> 2.455357143 | T36: =SUM(P36:S36) -> 19.34494487 | U36: _________
B37: Return Above Specified Expenses | H37: =H7-H36 -> -36.49209331 | J37: _________ | L37: Chisel | M37: Tractor, 215 hp | N37: Chisel Plow | O37: 21' | P37: =+'Field Operations'!$F$4 -> 7.336313628 | Q37: =+'Field Operations'!$G$4 -> 2.034898445 | R37: =+'Field Operations'!$H$4 -> 3.957642857 | S37: =+'Field Operations'!$I$4 -> 2.31092437 | T37: =SUM(P37:S37) -> 15.6397793 | U37: _________
L38: Disk | M38: Tractor, 215 hp | N38: Tandem Disk | O38: 29' | P38: =+'Field Operations'!$F$5 -> 12.19552947 | Q38: =+'Field Operations'!$G$5 -> 2.015124735 | R38: =+'Field Operations'!$H$5 -> 3.184310345 | S38: =+'Field Operations'!$I$5 -> 1.859364435 | T38: =SUM(P38:S38) -> 19.25432899 | U38: _________
B39: Breakeven Price for Selected Yield | F39: Breakeven Yield for Selected Price | L39: Prepare Seedbed | M39: Tractor, 215 hp | N39: Cultimulcher | O39: 20' | P39: =+'Field Operations'!$F$7 -> 8.658524261 | Q39: =+'Field Operations'!$G$7 -> 2.27819658 | R39: =+'Field Operations'!$H$7 -> 4.415245312 | S39: =+'Field Operations'!$I$7 -> 2.578125 | T39: =SUM(P39:S39) -> 17.93009115 | U39: _________
B40: Yield (lb.) | C40: Variable Cost ($/lb.) | D40: Total Specified Cost ($/lb.) | F40: Price ($/lb.) | G40: Variable Cost (lb.) | I40: Total Specified Cost (lb.) | L40: Fertilize | M40: Tractor, 215 hp | N40: Fertilize Spreader | P40: =+'Field Operations'!$F$10 -> 5.383607559 | Q40: =+'Field Operations'!$G$10 -> 1.596529341 | R40: =+'Field Operations'!$H$10 -> 2.88342551 | S40: =+'Field Operations'!$I$10 -> 1.683673469 | T40: =SUM(P40:S40) -> 11.54723588 | U40: _________
B41: =SUM(B42-50) -> 900 | C41: =$H$24/B41 -> 0.6915218391 | D41: =($H$24+$H$35)/B41 -> 1.088324548 | F41: =SUM(F42-0.05) -> 0.57 | G41: =+$H$24/F41 -> 1091.876588 | I41: =+($H$24+$H$35)/F41 -> 1718.407181 | L41: Plant | M41: Tractor, 215 hp | N41: Planter | O41: =+'Field Operations'!E19 -> 12-row | P41: =+'Field Operations'!$F$19 -> 14.10579577 | Q41: =+'Field Operations'!$G$19 -> 5.022235859 | R41: =+'Field Operations'!$H$19 -> 3.622765385 | S41: =+'Field Operations'!$I$19 -> 2.115384615 | T41: 24.86618163 | U41: _________
B42: 950 | C42: 0.6551259528 | D42: 1.031044309 | F42: 0.62 | G42: 1003.822024 | I42: 1579.825957 | L42: Weed Control | M42: SP Boom Sprayer | O42: 90' | P42: =+'Field Operations'!$F$11 -> 10.08349574 | Q42: =+'Field Operations'!$G$11 -> 0.2942877349 | R42: =+'Field Operations'!$H$11 -> 0.4360736111 | S42: =+'Field Operations'!$I$11 -> 0.318287037 | T42: 11.13214413 | U42: _________
B43: 1000 | C43: 0.6223696552 | D43: 0.9794920933 | F43: 0.67 | G43: 928.9099331 | I43: 1461.928497 | L43: Weed Control | M43: SP Boom Sprayer | O43: 90' | P43: =+'Field Operations'!$F$11 -> 10.08349574 | Q43: =+'Field Operations'!$G$11 -> 0.2942877349 | R43: =+'Field Operations'!$H$11 -> 0.4360736111 | S43: =+'Field Operations'!$I$11 -> 0.318287037 | T43: 11.13214413 | U43: _________
B44: 1050 | C44: 0.5927330049 | D44: 0.9328496127 | F44: 0.72 | G44: 864.4022988 | I44: 1360.405685 | L44: Weed Control | M44: Tractor, 215 hp | N44: Hooded Sprayer | P44: =+'Field Operations'!$F$20 -> 2.458073402 | Q44: =+'Field Operations'!$G$20 -> 0.3788848373 | R44: =+'Field Operations'!$H$20 -> 1.006323718 | S44: =+'Field Operations'!$I$20 -> 0.5876068376 | T44: 4.430888795 | U44: _________
B45: =SUM(B46-50) -> 1100 | C45: 0.5657905956 | D45: 0.8904473576 | F45: =SUM(F46-0.05) -> 0.77 | G45: 808.2722794 | I45: 1272.067654 | L45: Weed Control | M45: SP Boom Sprayer | O45: 90' | P45: =+'Field Operations'!$F$11 -> 10.08349574 | Q45: =+'Field Operations'!$G$11 -> 0.2942877349 | R45: =+'Field Operations'!$H$11 -> 0.4360736111 | S45: =+'Field Operations'!$I$11 -> 0.318287037 | T45: 11.13214413 | U45: _________
B46: =+F4 -> 1150 | C46: 0.5411910045 | D46: 0.8517322551 | F46: =+G4 -> 0.82 | G46: 758.9873843 | I46: 1194.502553 | L46: Fertilize | M46: Tractor, 215 hp | N46: Fertilize Spreader | P46: ='Field Operations'!F10 -> 5.383607559 | Q46: ='Field Operations'!G10 -> 1.596529341 | R46: ='Field Operations'!H10 -> 2.88342551 | S46: ='Field Operations'!I10 -> 1.683673469 | T46: ='Field Operations'!J10 -> 11.54723588 | U46: _________
B47: =SUM(B46+50) -> 1200 | C47: 0.5186413793 | D47: 0.8162434111 | F47: =SUM(F46+0.05) -> 0.87 | G47: 715.3674197 | I47: 1125.852981 | L47: Spray | M47: SP Boom Sprayer | O47: 90' | P47: =+'Field Operations'!$F$11 -> 10.08349574 | Q47: =+'Field Operations'!$G$11 -> 0.2942877349 | R47: =+'Field Operations'!$H$11 -> 0.4360736111 | S47: =+'Field Operations'!$I$11 -> 0.318287037 | T47: 11.13214413 | U47: _________
B48: =SUM(B47+50) -> 1250 | C48: 0.4978957241 | D48: 0.7835936746 | F48: =SUM(F47+0.05) -> 0.92 | G48: 676.4887556 | I48: 1064.665319 | L48: Spray | M48: SP Boom Sprayer | O48: 90' | P48: =+'Field Operations'!$F$11 -> 10.08349574 | Q48: =+'Field Operations'!$G$11 -> 0.2942877349 | R48: =+'Field Operations'!$H$11 -> 0.4360736111 | S48: =+'Field Operations'!$I$11 -> 0.318287037 | T48: 11.13214413 | U48: _________
B49: 1300 | C49: 0.4787458886 | D49: 0.7534554564 | F49: 0.97 | G49: 641.6182012 | I49: 1009.785663 | L49: Spray | M49: SP Boom Sprayer | O49: 90' | P49: =+'Field Operations'!$F$11 -> 10.08349574 | Q49: =+'Field Operations'!$G$11 -> 0.2942877349 | R49: =+'Field Operations'!$H$11 -> 0.4360736111 | S49: =+'Field Operations'!$I$11 -> 0.318287037 | T49: 11.13214413 | U49: _________
B50: 1350 | C50: 0.4610145594 | D50: 0.7255496987 | F50: 1.02 | G50: 610.1663286 | I50: 960.286366 | L50: Harvest | M50: Picker/Module Builder (Round) | O50: 6-row | P50: =+'Field Operations'!$F$24 -> 71.14770702 | Q50: =+'Field Operations'!$G$24 -> 16.95163302 | R50: =+'Field Operations'!$H$24 -> 12.62186292 | S50: =+'Field Operations'!$I$24 -> 3.122918055 | T50: 103.844121 | U50: _________
B51: 1400 | C51: 0.4445497537 | D51: 0.6996372095 | F51: 1.07 | G51: 581.6538833 | I51: 915.4131713 | L51: Harvest | M51: Tractor, 215 hp | N51: Module Handler | P51: =+'Field Operations'!$F$25 -> 3.483420739 | Q51: =+'Field Operations'!$G$25 -> 0.8396170809 | R51: =+'Field Operations'!$H$25 -> 2.674123501 | S51: =+'Field Operations'!$I$25 -> 1.561459027 | T51: 8.558620348 | U51: _________
L52: Other | P52: 0 | Q52: 0 | R52: 0 | S52: 0 | T52: 0 | U52: _________
L53: Other | P53: 0 | Q53: 0 | R53: 0 | S53: 0 | T53: =SUM(P53:S53) -> 0 | U53: _________
L54: Total | P54: =SUM(P36:P53) -> 199.1224382 | Q54: =SUM(Q36:Q53) -> 38.69508355 | R54: =SUM(R36:R53) -> 44.07056227 | S54: =SUM(S36:S53) -> 21.86820864 | T54: =SUM(T36:T53) -> 303.7562926 | U54: _________

Sheet Cotton Irr
B1: 2024 Cotton, No-Till, Irrigated Budget | L1: Table 1. Fertilizer & Lime3
E2: Unit | F2: Quantity | G2: Price | H2: Total | J2: Your Farm | L2: Fertilizer | M2: Description | N2: Quantity (lbs.) | O2: Price ($) | P2: Total ($/Acre) | Q2: Your Farm ($/Acre)
B3: Revenue1 | E3: Gross Revenue ($/Acre) | L3: Nitrogen | M3: Urea | N3: 45 | O3: =+Inputs!C44 -> 0.61 | P3: =+N3*O3 -> 27.45 | Q3: _________
C4: Cotton | E4: lb. | F4: 1500 | G4: =+Inputs!C7 -> 0.82 | H4: =F4*G4 -> 1230 | J4: _________ | M4: UAN 32% | N4: 45 | O4: =Inputs!C47 -> 0.64 | P4: =+N4*O4 -> 28.8 | Q4: _________
C5: Government Payments | E5: $/acre | F5: 1 | G5: 0 | H5: =F5*G5 -> 0 | J5: _________ | L5: Phosphorous | M5: P2O5 | N5: 60 | O5: =+Inputs!C48 -> 0.65 | P5: =+N5*O5 -> 39 | Q5: _________
C6: Other Revenue | E6: $/acre | F6: 1 | G6: 0 | H6: 0 | J6: _________ | L6: Potassium | M6: K20 | N6: 90 | O6: =+Inputs!C50 -> 0.43 | P6: =+N6*O6 -> 38.7 | Q6: _________
B7: Total Revenue | H7: =SUM(H4:H6) -> 1230 | J7: _________ | L7: Sulfur | N7: 10 | O7: =Inputs!C53 -> 0.35 | P7: 3.5 | Q7: _________
B8: Variable Expenses | L8: Boron | N8: 0.5 | O8: =+Inputs!$C$52 -> 2.355 | P8: 1.1775 | Q8: _________
C9: Seed2 | E9: Thous. | F9: 60 | G9: =+Inputs!C40 -> 2.65 | H9: =+F9*G9 -> 159 | J9: _________ | L9: Lime | N9: 1000 | O9: =+Inputs!$C$51 -> 30 | P9: =+N9/2000*O9 -> 15 | Q9: _________
C10: Wrap | E10: lb. | F10: =F4 -> 1500 | G10: =+Inputs!C21 -> 0.02 | H10: =+F10*G10 -> 30 | J10: _________ | L10: Other | N10: 0 | O10: 0 | P10: =N10*O10 -> 0 | Q10: _________
C11: Fertilizer & Lime (Table 1) | E11: Acre | F11: 1 | G11: =+P12 -> 153.6275 | H11: 153.6275 | J11: _________ | L11: Other | N11: 0 | O11: 0 | P11: =+N11*O11 -> 0 | Q11: _________
C12: Chemical (Table 2) | E12: Acre | F12: 1 | G12: =S33 -> 191.6109167 | H12: 191.6109167 | J12: _________ | L12: Total | P12: =SUM(P3:P11) -> 153.6275 | Q12: _________
C13: Crop Scout or Consultant | E13: Acre | F13: 1 | G13: =+Inputs!C19 -> 12 | H13: 12 | J13: _________
C14: Repair & Maintenance (Table 3) | E14: Acre | F14: 1 | G14: =+Q53 -> 32.66115153 | H14: 32.66115153 | J14: _________ | L14: Table 2. Chemicals4
C15: Fuel, Oil & Filter (Table 3) | E15: Acre | F15: 1 | G15: =+R53 -> 32.94943736 | H15: 32.94943736 | J15: _________ | L15: Chemical | M15: Function | N15: Description | O15: Unit | P15: Number of Apps. | Q15: Quantity | R15: Price | S15: Total ($/Acre) | T15: Your Farm ($/Acre)
C16: Operator Labor (Table 3) | E16: Acre | F16: 1 | G16: =+S53 -> 15.43808188 | H16: 15.43808188 | J16: _________ | L16: Herbicides | M16: Burndown | N16: Roundup | O16: qt. | P16: 1 | Q16: 1 | R16: =Herbicides!B68 -> 14.5 | S16: =P16*Q16*R16 -> 14.5 | T16: _________
C17: Crop Insurance6 | E17: Acre | F17: 1 | G17: =+Inputs!C28 -> 12.5 | H17: =+F17*G17 -> 12.5 | J17: _________ | N17: Clarity | O17: oz. | P17: 1 | Q17: 8 | R17: =Herbicides!B21 -> 0.734375 | S17: =P17*Q17*R17 -> 5.875 | T17: _________
C18: Machinery Rental | E18: Acre | F18: 1 | G18: 0 | H18: 0 | J18: _________ | M18: Pre-Emerge | N18: Cotoran | O18: pt. | P18: 1 | Q18: 2 | R18: =Herbicides!B25 -> 6.25 | S18: =P18*Q18*R18 -> 12.5 | T18: _________
C19: Custom Work | E19: Acre | F19: 1 | G19: 0 | H19: 0 | J19: _________ | N19: Gramoxone | O19: oz. | P19: 1 | Q19: 32 | R19: =Herbicides!B47 -> 0.33125 | S19: 10.6 | T19: _________
C20: Other Transportation Costs | E20: Acre | F20: 1 | G20: 0 | H20: 0 | J20: _________ | M20: Post-Emerge | N20: Sequence | O20: pt. | P20: 1 | Q20: 2.5 | R20: =Herbicides!B71 -> 9 | S20: 22.5 | T20: _________
C21: Irrigation Energy Cost9 | E21: Ac-In | F21: 6 | G21: =+Inputs!C57 -> 7.5 | H21: =+F21*G21 -> 45 | J21: _________ | N21: Envoke | O21: oz. | P21: 1 | Q21: 0.1 | R21: =Herbicides!B36 -> 126.6666667 | S21: 12.66666667 | T21: _________
C22: Irrigation System R&M9 | E22: Ac-In | F22: 6 | G22: =+Inputs!C58 -> 3.2 | H22: =+F22*G22 -> 19.2 | J22: _________ | N22: Caparol | O22: pt. | P22: 1 | Q22: 1 | R22: =Herbicides!B20 -> 6.25 | S22: 6.25 | T22: _________
C23: Other Irrigation Costs | E23: Acre | F23: 1 | G23: 0 | H23: =+F23*G23 -> 0 | J23: _________ | N23: Other | P23: 0 | Q23: 0 | R23: 0 | S23: 0 | T23: _________
C24: Other | E24: Acre | F24: 0 | G24: 0 | H24: =F24*G24 -> 0 | J24: _________ | L24: Growth Regulator | N24: Mepex (Mepiquat Chloride) | O24: pt. | P24: 1 | Q24: 2 | R24: =+Herbicides!$B$55 -> 1.25 | S24: 2.5 | T24: _________
C25: Other | E25: Acre | F25: 0 | G25: 0 | H25: =F25*G25 -> 0 | J25: _________ | L25: Defoliant | N25: Defoliant | O25: oz. | P25: 1 | Q25: 12 | R25: =+Herbicides!$B$27 -> 1.56 | S25: 18.72 | T25: _________
C26: Operating Interest7 | E26: % | F26: =SUM(H9:H25) -> 703.9870874 | G26: =+Inputs!C14 -> 0.085 | H26: =(F26*G26)/2 -> 29.91945122 | J26: _________ | L26: Boll Opener | N26: Ethephon | O26: oz. | P26: 1 | Q26: 32 | R26: =+Herbicides!$B$16 -> 0.2812265625 | S26: 8.99925 | T26: _________
B27: Total Variable Expenses | H27: =SUM(H9:H26) -> 733.9065386 | J27: _________ | L27: Insecticides | N27: Seed Treatment | O27: acre | P27: 1 | Q27: 1 | R27: =+Insecticides!$B$4 -> 18.5 | S27: 18.5 | T27: _________
B28: Return Above Variable Expenses | H28: =H7-H27 -> 496.0934614 | J28: _________ | N28: In-Season | O28: acre | P28: 1 | Q28: 1 | R28: =+Insecticides!$B$5 -> 48 | S28: 48 | T28: _________
B29: Fixed Expenses | L29: Fungicides | N29: Seed Treatment | O29: acre | P29: 1 | Q29: 1 | R29: =+Fungicides!$B$4 -> 10 | S29: 10 | T29: _________
C30: Machinery | N30: Other | P30: 0 | Q30: 0 | R30: 0 | S30: 0 | T30: _________
C31: Capital Recovery (Table 3) | E31: Acre | F31: 1 | G31: =+P53 -> 181.0155665 | H31: =+F31*G31 -> 181.0155665 | J31: _________ | N31: Other | P31: 0 | Q31: 0 | R31: 0 | S31: 0 | T31: _________
C32: Other Fixed Machinery Costs | E32: Acre | F32: 1 | G32: 0 | H32: =F32*G32 -> 0 | J32: _________ | N32: Other | P32: 0 | Q32: 0 | R32: 0 | S32: =P32*Q32*R32 -> 0 | T32: _________
C33: Capital Recovery (Irrigation Equipment)9 | E33: Acre | F33: 1 | G33: =+Inputs!C59 -> 100 | H33: =+F33*G33 -> 100 | J33: _________ | L33: Total | S33: =SUM(S16:S32) -> 191.6109167 | T33: _________
C34: Other Irrigation Costs | E34: Acre | F34: 1 | G34: 0 | H34: 0 | J34: _________
C35: General Overhead | E35: Acre | F35: 1 | G35: 30 | H35: 30 | J35: _________ | L35: Table 3. Machinery5
C36: Cash Rent8 | E36: Acre | F36: 1 | G36: =Inputs!C22 -> 197 | H36: =+F36*G36 -> 197 | J36: _________ | M36: Power Unit | N36: Implement | O36: Size | P36: Capital Recovery | Q36: Repairs & Maintenance | R36: Fuel, Oil & Filter | S36: Labor | T36: Total | U36: Your Farm ($/Acre)
C37: Insurance (Non-Machinery) | E37: Acre | F37: 1 | G37: =+Inputs!C32 -> 0 | H37: 0 | J37: _________ | L37: Chop Stalks | M37: Tractor, 215 hp | N37: Rotary Mower | O37: 15' | P37: =+'Field Operations'!$F$18 -> 8.468884282 | Q37: =+'Field Operations'!$G$18 -> 4.215707908 | R37: =+'Field Operations'!$H$18 -> 4.204995536 | S37: =+'Field Operations'!$I$18 -> 2.455357143 | T37: =SUM(P37:S37) -> 19.34494487 | U37: _________
C38: Management Labor10 | E38: Acre | F38: 1 | G38: =Inputs!C33 -> 25 | H38: =+F38*G38*2 -> 50 | J38: _________ | L38: Burndown | M38: SP Boom Sprayer | O38: 90' | P38: =+'Field Operations'!$F$11 -> 10.08349574 | Q38: =+'Field Operations'!$G$11 -> 0.2942877349 | R38: =+'Field Operations'!$H$11 -> 0.4360736111 | S38: =+'Field Operations'!$I$11 -> 0.318287037 | T38: =SUM(P38:S38) -> 11.13214413 | U38: _________
C39: Other Fixed Costs | E39: Acre | F39: 1 | G39: 0 | H39: 0 | J39: _________ | L39: Plant | M39: Tractor, 215 hp | N39: Planter | O39: =+'Field Operations'!E19 -> 12-row | P39: =+'Field Operations'!$F$19 -> 14.10579577 | Q39: =+'Field Operations'!$G$19 -> 5.022235859 | R39: =+'Field Operations'!$H$19 -> 3.622765385 | S39: =+'Field Operations'!$I$19 -> 2.115384615 | T39: =SUM(P39:S39) -> 24.86618163 | U39: _________
B40: Total Fixed Expenses | H40: =+SUM(H30:H39) -> 558.0155665 | J40: _________ | L40: Fertilize | M40: Tractor, 215 hp | N40: Fertilize Spreader | P40: =+'Field Operations'!$F$10 -> 5.383607559 | Q40: =+'Field Operations'!$G$10 -> 1.596529341 | R40: =+'Field Operations'!$H$10 -> 2.88342551 | S40: =+'Field Operations'!$I$10 -> 1.683673469 | T40: =SUM(P40:S40) -> 11.54723588 | U40: _________
B41: Total Expenses | H41: =+SUM(H27+H40) -> 1291.922105 | J41: _________ | L41: Weed Control | M41: SP Boom Sprayer | O41: 90' | P41: =+'Field Operations'!$F$11 -> 10.08349574 | Q41: =+'Field Operations'!$G$11 -> 0.2942877349 | R41: =+'Field Operations'!$H$11 -> 0.4360736111 | S41: =+'Field Operations'!$I$11 -> 0.318287037 | T41: =SUM(P41:S41) -> 11.13214413 | U41: _________
B42: Return Above Specified Expenses | H42: =H7-H41 -> -61.92210519 | J42: _________ | L42: Weed Control | M42: SP Boom Sprayer | O42: 90' | P42: =+'Field Operations'!$F$11 -> 10.08349574 | Q42: =+'Field Operations'!$G$11 -> 0.2942877349 | R42: =+'Field Operations'!$H$11 -> 0.4360736111 | S42: =+'Field Operations'!$I$11 -> 0.318287037 | T42: =SUM(P42:S42) -> 11.13214413 | U42: _________
L43: Weed Control | M43: SP Boom Sprayer | O43: 90' | P43: =+'Field Operations'!$F$11 -> 10.08349574 | Q43: =+'Field Operations'!$G$11 -> 0.2942877349 | R43: =+'Field Operations'!$H$11 -> 0.4360736111 | S43: =+'Field Operations'!$I$11 -> 0.318287037 | T43: 11.13214413 | U43: _________
B44: Breakeven Price for Selected Yield | F44: Breakeven Yield for Selected Price | L44: Weed Control | M44: Tractor, 215 hp | N44: Hooded Sprayer | P44: =+'Field Operations'!$F$20 -> 2.458073402 | Q44: =+'Field Operations'!$G$20 -> 0.3788848373 | R44: =+'Field Operations'!$H$20 -> 1.006323718 | S44: =+'Field Operations'!$I$20 -> 0.5876068376 | T44: 4.430888795 | U44: _________
B45: Yield (lb.) | C45: Variable Cost ($/lb.) | D45: Total Specified Cost ($/lb.) | F45: Price ($/lb.) | G45: Variable Cost (lb.) | I45: Total Specified Cost (lb.) | L45: Fertilize | M45: Tractor, 215 hp | N45: Fertilize Spreader | P45: ='Field Operations'!F10 -> 5.383607559 | Q45: ='Field Operations'!G10 -> 1.596529341 | R45: ='Field Operations'!H10 -> 2.88342551 | S45: ='Field Operations'!I10 -> 1.683673469 | T45: 11.54723588 | U45: _________
B46: =SUM(B47-50) -> 1250 | C46: =$H$27/B46 -> 0.5871252309 | D46: =($H$27+$H$40)/B46 -> 1.033537684 | F46: =SUM(F47-0.05) -> 0.57 | G46: =+$H$27/F46 -> 1287.555331 | I46: =+($H$27+$H$40)/F46 -> 2266.530009 | L46: Spray | M46: SP Boom Sprayer | O46: 90' | P46: =+'Field Operations'!$F$11 -> 10.08349574 | Q46: =+'Field Operations'!$G$11 -> 0.2942877349 | R46: =+'Field Operations'!$H$11 -> 0.4360736111 | S46: =+'Field Operations'!$I$11 -> 0.318287037 | T46: 11.13214413 | U46: _________
B47: 1300 | C47: 0.5645434913 | D47: 0.9937862348 | F47: 0.62 | G47: 1183.720224 | I47: 2083.745331 | L47: Spray | M47: SP Boom Sprayer | O47: 90' | P47: =+'Field Operations'!$F$11 -> 10.08349574 | Q47: =+'Field Operations'!$G$11 -> 0.2942877349 | R47: =+'Field Operations'!$H$11 -> 0.4360736111 | S47: =+'Field Operations'!$I$11 -> 0.318287037 | T47: 11.13214413 | U47: _________
B48: 1350 | C48: 0.5436344731 | D48: 0.9569793372 | F48: 0.67 | G48: 1095.382894 | I48: 1928.241948 | L48: Spray | M48: SP Boom Sprayer | O48: 90' | P48: =+'Field Operations'!$F$11 -> 10.08349574 | Q48: =+'Field Operations'!$G$11 -> 0.2942877349 | R48: =+'Field Operations'!$H$11 -> 0.4360736111 | S48: =+'Field Operations'!$I$11 -> 0.318287037 | T48: 11.13214413 | U48: _________
B49: 1400 | C49: 0.5242189562 | D49: 0.9228015037 | F49: 0.72 | G49: 1019.314637 | I49: 1794.336257 | L49: Harvest | M49: Picker/Module Builder (Round) | O49: 6-row | P49: =+'Field Operations'!$F$24 -> 71.14770702 | Q49: =+'Field Operations'!$G$24 -> 16.95163302 | R49: =+'Field Operations'!$H$24 -> 12.62186292 | S49: =+'Field Operations'!$I$24 -> 3.122918055 | T49: 103.844121 | U49: _________
B50: =SUM(B51-50) -> 1450 | C50: 0.5061424404 | D50: 0.8909807622 | F50: =SUM(F51-0.05) -> 0.77 | G50: 953.1253749 | I50: 1677.820916 | L50: Harvest | M50: Tractor, 215 hp | N50: Module Handler | P50: =+'Field Operations'!$F$25 -> 3.483420739 | Q50: =+'Field Operations'!$G$25 -> 0.8396170809 | R50: =+'Field Operations'!$H$25 -> 2.674123501 | S50: =+'Field Operations'!$I$25 -> 1.561459027 | T50: 8.558620348 | U50: _________
B51: =+F4 -> 1500 | C51: 0.4892710258 | D51: 0.8612814035 | F51: =+G4 -> 0.82 | G51: 895.007974 | I51: 1575.514762 | L51: Other | P51: 0 | Q51: 0 | R51: 0 | S51: 0 | T51: 0 | U51: _________
B52: =SUM(B51+50) -> 1550 | C52: 0.4734880895 | D52: 0.8334981324 | F52: =SUM(F51+0.05) -> 0.87 | G52: 843.5707341 | I52: 1484.967937 | L52: Other | P52: 0 | Q52: 0 | R52: 0 | S52: 0 | T52: =SUM(P52:S52) -> 0 | U52: _________
B53: =SUM(B52+50) -> 1600 | C53: 0.4586915867 | D53: 0.8074513157 | F53: =SUM(F52+0.05) -> 0.92 | G53: 797.7244985 | I53: 1404.263158 | L53: Total | P53: =SUM(P37:P52) -> 181.0155665 | Q53: =SUM(Q37:Q52) -> 32.66115153 | R53: =SUM(R37:R52) -> 32.94943736 | S53: =SUM(S37:S52) -> 15.43808188 | T53: =SUM(T37:T52) -> 262.0642373 | U53: _________
B54: 1650 | C54: 0.4447918416 | D54: 0.7829830941 | F54: 0.97 | G54: 756.604679 | I54: 1331.878459
B55: 1700 | C55: 0.4317097286 | D55: 0.7599541795 | F55: 1.02 | G55: 719.5162144 | I55: 1266.590299
B56: 1750 | C56: 0.4193751649 | D56: 0.738241203 | F56: 1.07 | G56: 685.8939614 | I56: 1207.403837

Sheet Canola (hidden)
B1: 2019 Canola, Conventional Tillage, Non-Irrigated Budget | L1: Table 1. Fertilizer & Lime
E2: Unit | F2: Quantity | G2: Price | H2: Total | J2: Your Farm | L2: Fertilizer | M2: Description | N2: Quantity (lbs) | O2: Price ($) | P2: Total ($/Acre) | Q2: Your Farm ($/Acre)
B3: Revenue | E3: Gross Revenue ($/Acre) | L3: Nitrogen | M3: Urea | N3: 160 | O3: =+Inputs!C44 -> 0.61 | P3: =+N3*O3 -> 97.6 | Q3: _________
C4: Canola 1 | E4: Bu | F4: 50 | G4: =Inputs!#REF! ->  | H4: =F4*G4 ->  | J4: _________ | L4: Phosphorous | M4: P2O5 | N4: 80 | O4: =Inputs!C48 -> 0.65 | P4: =+N4*O4 -> 52 | Q4: _________
B5: Total Revenue | H5: =SUM(H4:H4) ->  | J5: _________ | L5: Potassium | M5: K20 | N5: 130 | O5: =+Inputs!C50 -> 0.43 | P5: 55.9 | Q5: _________
B6: Variable Expenses | L6: Lime | M6: Limestone | N6: 1000 | O6: =+Inputs!C51 -> 30 | P6: =+N6/2000*O6 -> 15 | Q6: _________
C7: Seed 2 | E7: Thous. | F7: 220 | G7: =Inputs!#REF! ->  | H7: =+F7*G7 ->  | J7: _________ | L7: Other | M7: Sulfur | N7: 20 | O7: =+Inputs!C54 -> 0.5 | P7: 10 | Q7: _________
C8: Fertilizer & Lime (Table 1) | E8: Acre | F8: 1 | G8: =+P9 -> 231.6775 | H8: =+F8*G8 -> 231.6775 | J8: _________ | L8: Other | M8: Boron | N8: 0.5 | O8: =+Inputs!C52 -> 2.355 | P8: =+N8*O8 -> 1.1775 | Q8: _________
C9: Chemical (Table 2) 3 | E9: Acre | F9: 1 | G9: =+S20 ->  | H9: =F9*G9 ->  | J9: _________ | L9: Total | P9: =SUM(P3:P8) -> 231.6775 | Q9: _________
C10: Crop Scout | E10: Acre | F10: 1 | G10: =+Inputs!C18 -> 10 | H10: =F10*G10 -> 10 | J10: _________ | L10: Table 2. Chemicals 3
C11: Repair & Maintenance (Table 3) 4 | E11: Acre | F11: 1 | G11: =+Q35 -> 37.66871336 | H11: =+F11*G11 -> 37.66871336 | J11: _________ | L11: Chemical | M11: Function | N11: Description | O11: Unit | P11: Number of Apps. | Q11: Quantity | R11: Price | S11: Total ($/Acre) | T11: Your Farm ($/Acre)
C12: Fuel, Oil & Filter (Table 3) 4 | E12: Acre | F12: 1 | G12: =+R35 -> 22.97918864 | H12: 22.97918864 | J12: _________ | L12: Herbicides | M12: Pre-plant | N12: Treflan | O12: pt. | P12: 1 | Q12: 2 | R12: =Herbicides!B76 -> 3.375 | S12: =R12*Q12 -> 6.75 | T12: _________
C13: Operator Labor (Table 3) 4 | E13: Acre | F13: 1 | G13: =+S35 -> 12.3375088 | H13: 12.3375088 | J13: _________ | M13: Post-planting | N13: Roundup | O13: pt. | P13: 2 | Q13: 3 | R13: =Herbicides!B68 -> 14.5 | S13: =R13*Q13 -> 43.5 | T13: _________
C14: Machinery Rental | E14: Acre | F14: 1 | G14: 0 | H14: 0 | J14: _________ | N14: Command | O14: pt. | P14: 1 | Q14: 0.25 | R14: =Herbicides!B24 -> 23.75 | S14: 5.9375 | T14: _________
C15: Custom Work | E15: Acre | F15: 1 | G15: 0 | H15: 0 | J15: _________ | M15: Desiccant | N15: Reglone | O15: pt. | P15: 1 | Q15: 3 | R15: =Herbicides!#REF! ->  | T15: _________
C16: Drying (Fuel/Electric) | E16: Bu | F16: =+F4 -> 50 | G16: 0 | H16: 0 | J16: _________ | N16: Other | R16: 0 | S16: 0 | T16: _________
C17: Cash Rent 5 | E17: Acre | F17: 1 | G17: =+Inputs!C23 -> 113 | H17: =F17*G17 -> 113 | J17: _________ | N17: Other | R17: 0 | S17: 0 | T17: _________
C18: Crop Insurance 6 | E18: Acre | F18: 1 | G18: =+Inputs!#REF! ->  | H18: =F18*G18 ->  | J18: _________ | L18: Insecticides | N18: Seed Treatment | O18: acre | P18: 1 | Q18: 1 | R18: =+Insecticides!#REF! ->  | T18: _________
C19: Operating Interest 7 | E19: % | F19: =SUM(H7:H18,H20) ->  | G19: 0.06 | H19: =(F19*G19)/2 ->  | J19: _________ | L19: Fungicides | N19: Foliar | O19: acre | P19: 1 | Q19: 1 | R19: =+Fungicides!#REF! ->  | T19: _________
C20: Other Variable Costs | E20: Acre | F20: 1 | G20: 0 | H20: =F20*G20 -> 0 | J20: _________ | L20: Total | S20: =SUM(S12:S19) ->  | T20: _________
B21: Total Variable Expenses | H21: =SUM(H7:H20) ->  | J21: _________ | L21: Table 3. Machinery 4
B22: Return Above Variable Expenses | H22: =H5-H21 ->  | J22: _________ | M22: Power Unit | N22: Implement | O22: Size | P22: Capital Recovery | Q22: Repairs & Maintenance | R22: Fuel, Oil & Filter | S22: Labor | T22: Total | U22: Your Farm ($/Acre)
B23: Fixed Expenses | L23: Fall/Winter | M23: ='Field Operations'!C11 -> SP Boom Sprayer | O23: ='Field Operations'!E11 -> 90' | P23: ='Field Operations'!F11 -> 10.08349574 | Q23: ='Field Operations'!G11 -> 0.2942877349 | R23: ='Field Operations'!H11 -> 0.4360736111 | S23: ='Field Operations'!I11 -> 0.318287037 | T23: =SUM(P23:S23) -> 11.13214413 | U23: _________
C24: Machinery 4 | M24: ='Field Operations'!C5 -> Tractor, 215 hp | N24: ='Field Operations'!D5 -> Tandem Disk | O24: ='Field Operations'!E5 -> 29' | P24: ='Field Operations'!F5 -> 12.19552947 | Q24: ='Field Operations'!G5 -> 2.015124735 | R24: ='Field Operations'!H5 -> 3.184310345 | S24: ='Field Operations'!I5 -> 1.859364435 | T24: =SUM(P24:S24) -> 19.25432899 | U24: _________
C25: Capital Recovery (Table 3) | E25: Acre | F25: 1 | G25: =+P35 -> 123.9953255 | H25: =+F25*G25 -> 123.9953255 | J25: _________ | M25: ='Field Operations'!C9 -> Tractor, 215 hp | N25: ='Field Operations'!D9 -> Grain Drill | O25: ='Field Operations'!E9 -> 20' | P25: ='Field Operations'!F9 -> 13.20262413 | Q25: ='Field Operations'!G9 -> 5.294680402 | R25: ='Field Operations'!H9 -> 5.045994643 | S25: ='Field Operations'!I9 -> 2.946428571 | T25: =SUM(P25:S25) -> 26.48972775 | U25: _________
C26: Other Fixed Machinery Costs | E26: Acre | F26: 1 | G26: =+Inputs!C30 -> 0 | H26: =+F26*G26 -> 0 | J26: _________ | M26: ='Field Operations'!C10 -> Tractor, 215 hp | N26: ='Field Operations'!D10 -> Fertilizer Spreader | O26: ='Field Operations'!E10 -> 0 | P26: ='Field Operations'!F10 -> 5.383607559 | Q26: ='Field Operations'!G10 -> 1.596529341 | R26: ='Field Operations'!H10 -> 2.88342551 | S26: ='Field Operations'!I10 -> 1.683673469 | T26: ='Field Operations'!J10 -> 11.54723588 | U26: _________
C27: Property Taxes | E27: Acre | F27: 1 | G27: =+Inputs!C31 -> 0 | H27: =+F27*G27 -> 0 | J27: _________ | L27: Winter/Spring | M27: ='Field Operations'!C11 -> SP Boom Sprayer | O27: ='Field Operations'!E11 -> 90' | P27: ='Field Operations'!F11 -> 10.08349574 | Q27: ='Field Operations'!G11 -> 0.2942877349 | R27: ='Field Operations'!H11 -> 0.4360736111 | S27: ='Field Operations'!I11 -> 0.318287037 | T27: ='Field Operations'!J11 -> 11.13214413 | U27: _________
C28: Insurance (Non-Machinery) | E28: Acre | F28: 1 | G28: =+Inputs!C32 -> 0 | H28: =+F28*G28 -> 0 | J28: _________ | M28: ='Field Operations'!C11 -> SP Boom Sprayer | O28: ='Field Operations'!E11 -> 90' | P28: ='Field Operations'!F11 -> 10.08349574 | Q28: ='Field Operations'!G11 -> 0.2942877349 | R28: ='Field Operations'!H11 -> 0.4360736111 | S28: ='Field Operations'!I11 -> 0.318287037 | T28: ='Field Operations'!J11 -> 11.13214413 | U28: _________
C29: Management Labor 8 | E29: Acre | F29: 2 | G29: =+Inputs!C33 -> 25 | H29: =+F29*G29 -> 50 | J29: _________ | M29: ='Field Operations'!C11 -> SP Boom Sprayer | O29: ='Field Operations'!E11 -> 90' | P29: ='Field Operations'!F11 -> 10.08349574 | Q29: ='Field Operations'!G11 -> 0.2942877349 | R29: ='Field Operations'!H11 -> 0.4360736111 | S29: ='Field Operations'!I11 -> 0.318287037 | T29: =SUM(P29:S29) -> 11.13214413 | U29: _________
C30: Other Fixed Costs 9 | E30: Acre | F30: 1 | G30: 0 | H30: =+F30*G30 -> 0 | J30: _________ | M30: =+'Field Operations'!C11 -> SP Boom Sprayer | O30: =+'Field Operations'!E11 -> 90' | P30: =+'Field Operations'!F11 -> 10.08349574 | Q30: =+'Field Operations'!G11 -> 0.2942877349 | R30: =+'Field Operations'!H11 -> 0.4360736111 | S30: =+'Field Operations'!I11 -> 0.318287037 | T30: =+'Field Operations'!J11 -> 11.13214413 | U30: _________
B31: Total Fixed Expenses | H31: =+SUM(H25:H29) -> 173.9953255 | J31: _________ | L31: ='Field Operations'!B13 -> Harvest | M31: ='Field Operations'!C13 -> Combine | N31: ='Field Operations'!D13 -> Grain Head | O31: ='Field Operations'!E13 -> 30' | P31: ='Field Operations'!F13 -> 29.22887142 | Q31: ='Field Operations'!G13 -> 26.02550332 | R31: ='Field Operations'!H13 -> 7.568991964 | S31: ='Field Operations'!I13 -> 2.455357143 | T31: =SUM(P31:S31) -> 65.27872384 | U31: _________
B32: Return Above All Specified Expenses | H32: =H5-H21-H31 ->  | J32: _________ | M32: ='Field Operations'!C14 -> Tractor, 215 hp | N32: ='Field Operations'!D14 -> Grain Cart | P32: ='Field Operations'!F14 -> 7.397214231 | Q32: ='Field Operations'!G14 -> 0.8354368884 | R32: ='Field Operations'!H14 -> 1.766098125 | S32: ='Field Operations'!I14 -> 1.03125 | T32: =SUM(P32:S32) -> 11.02999924 | U32: _________
M33: ='Field Operations'!C17 -> Semi Tractor/Trailer | O33: ='Field Operations'!E14 -> 800 bu | P33: ='Field Operations'!F17 -> 6.17 | Q33: ='Field Operations'!G17 -> 0.43 | R33: ='Field Operations'!H17 -> 0.35 | S33: ='Field Operations'!I17 -> 0.77 | T33: ='Field Operations'!J17 -> 7.72 | U33: _________
B34: Breakeven Price For Selected Yield | F34: Breakeven Yield for Selected Price | M34: Other | U34: _________
B35: Yield (bu) | C35: Variable Cost ($/bu) | D35: Total Specified Cost ($/bu) | F35: Price ($/bu) | G35: Variable Cost (bu) | I35: Total Specified Cost (bu) | L35: Total | P35: =SUM(P22:P34) -> 123.9953255 | Q35: =SUM(Q22:Q34) -> 37.66871336 | R35: 22.97918864 | S35: 12.3375088 | T35: 196.9807363 | U35: _________
B36: =SUM(B37-5) -> 30 | C36: =$H$21/B36 ->  | D36: =($H$21+$H$31)/B36 ->  | F36: =SUM(F37-0.25) ->  | G36: =+$H$21/F36 ->  | I36: =+($H$21+$H$31)/F36 -> 
B37: 35 | G37: =+$H$21/F37 -> 
B38: 40
B39: =SUM(B40-5) -> 45 | F39: =SUM(F40-0.25) -> 
B40: =+F4 -> 50 | F40: =+G4 -> 
B41: =SUM(B40+5) -> 55 | F41: =SUM(F40+0.25) -> 
B42: =SUM(B41+5) -> 60 | F42: =SUM(F41+0.25) -> 
B43: 65
B44: 70
B46: FOOTNOTES
B47: 1) Canola prices will vary across regions. Additionally, access to markets in Tennessee may be problematic. Should a producer consider adding canola to their rotation, a production contract and/or marketing strategy should be fully explored prior to the planting decision, as limited buyers are available. Counter party risk is a major concern for small acreage crops. Canola yields vary tremendously across the state. Depending on growing conditions and management practices yields may range from 30-80 bu/acre.
B48: 2) Seed cost varies by seed provider, variety, and seeding rate. Check with farm suppliers for rebates, discounts, and incentives for seed and chemicals. Substantial cost savings may be available. Check with market contractor to determine if additional cost savings are available for products and services.
B49: 3) Chemical application will vary by region: Check seed supplier or production specialist for best alternatives. Since only a few herbicides are available for weed control for canola in Tennessee, producers should follow crop production recommendations. Producers should be aware that many chemicals used in the production of other row-crops in Tennessee may have a detrimental impact on canola.
B50: 4) Machinery expenses will vary dramatically by operation, financial resources, and land base. The machinery cost estimates provided in Table 3 are provided as an estimate of cost of ownership and operation for specified pieces of machinery that would be available to a "representative" row-crop farm in Tennessee. To estimate machinery costs for a specific set of equipment, interested parties can utilize the Excel version of the budgets and modify the Machinery Assumptions Table.
B51: 5) Cash rental rates are the 2018 USDA-NASS reported cash rental rates for cropland in Tennessee. Substantial differences may exist in cash rental rates reported by NASS and the prevailing rate in your location.
B52: 6) Crop insurance is an estimate and will vary by policy, county, and coverage election. The estimate provided is the average premium paid per insured acre of canola in Tennessee for the previous production year as reported by USDA RMA's Summary of Business Report.
B53: 7) Operating interest is assumed to be charged on half of all variable expenses.
B54: 8) Management labor is anticipated to be double what it is for conventional Tennessee row-crops.
B55: 9) Additional costs may be incurred due to specialized equipment required in the handling, hauling, and storage of canola.

Sheet G. Sorghum NT
B1: 2024 Grain Sorghum, No-Till, Non-Irrigated Budget | L1: Table 1. Fertilizer & Lime3
E2: Unit | F2: Quantity | G2: Price | H2: Total | J2: Your Farm | L2: Fertilizer | M2: Description | N2: Quantity (lbs.) | O2: Price ($) | P2: Total ($/Acre) | Q2: Your Farm ($/Acre)
B3: Revenue1 | E3: Gross Revenue ($/Acre) | L3: Nitrogen | M3: Urea | N3: 45 | O3: =+Inputs!C44 -> 0.61 | P3: =+N3*O3 -> 27.45 | Q3: _________
C4: Grain Sorghum | E4: Bu | F4: 110 | G4: =+Inputs!C6 -> 5.05 | H4: =F4*G4 -> 555.5 | J4: _________ | L4: Nitrogen | M4: 32% UAN | N4: 45 | O4: =Inputs!C47 -> 0.64 | P4: =+N4*O4 -> 28.8 | Q4: _________
B5: Total Revenue | H5: =SUM(H4:H4) -> 555.5 | J5: _________ | L5: Phosphorous | M5: P2O5 | N5: 30 | O5: =+Inputs!C48 -> 0.65 | P5: =+N5*O5 -> 19.5 | Q5: _________
B6: Variable Expenses | L6: Potassium | M6: K20 | N6: 30 | O6: =+Inputs!C50 -> 0.43 | P6: =+N6*O6 -> 12.9 | Q6: _________
C7: Seed 2 | E7: Thous. | F7: 85 | G7: =+Inputs!C39 -> 0.3 | H7: =+F7*G7 -> 25.5 | J7: _________ | L7: Lime | N7: 1000 | O7: =+Inputs!C51 -> 30 | P7: =+N7/2000*O7 -> 15 | Q7: _________
C8: Fertilizer & Lime (Table 1) | E8: Acre | F8: 1 | G8: =P8 -> 103.65 | H8: =+F8*G8 -> 103.65 | J8: _________ | L8: Total | P8: =SUM(P3:P7) -> 103.65 | Q8: _________
C9: Chemical (Table 2) | E9: Acre | F9: 1 | G9: =S20 -> 99 | H9: =F9*G9 -> 99 | J9: _________ | L9: Table 2. Chemicals 4
C10: Crop Scout | E10: Acre | F10: 1 | G10: =+Inputs!C18 -> 10 | H10: =F10*G10 -> 10 | J10: _________ | L10: Chemical | M10: Function | N10: Description | O10: Unit | P10: Number of Apps. | Q10: Quantity | R10: Price | S10: Total ($/Acre) | T10: Your Farm ($/Acre)
C11: Repair & Maintenance (Table 3) | E11: Acre | F11: 1 | G11: =+Q34 -> 35.65242588 | H11: =+F11*G11 -> 35.65242588 | J11: _________ | L11: Herbicides | M11: Burndown | N11: Gramoxone SL | O11: oz. | P11: 1 | Q11: 32 | R11: =Herbicides!B47 -> 0.33125 | S11: =P11*Q11*R11 -> 10.6 | T11: _________
C12: Fuel, Oil & Filter (Table 3) | E12: Acre | F12: 1 | G12: =+R34 -> 20.7893832 | H12: 20.7893832 | J12: _________ | N12: Other | R12: 0 | S12: =P12*Q12*R12 -> 0 | T12: _________
C13: Operator Labor (Table 3) | E13: Acre | F13: 1 | G13: =+S34 -> 11.79192773 | H13: 11.79192773 | J13: _________ | M13: Pre-Emerge | N13: Bicep II Magnum | O13: qt. | P13: 1 | Q13: 2 | R13: =+Herbicides!B15 -> 14.3 | S13: =P13*Q13*R13 -> 28.6 | T13: _________
C14: Machinery Rental | E14: Acre | F14: 0 | G14: 0 | H14: 0 | J14: _________ | N14: Other | R14: 0 | S14: 0 | T14: _________
C15: Custom Work | E15: Acre | F15: 0 | G15: 0 | H15: 0 | J15: _________ | M15: Post-Emerge | N15: Atrazine | O15: qt. | P15: 1 | Q15: 2 | R15: =+Herbicides!B8 -> 4.9 | S15: 9.8 | T15: _________
C16: Drying (Fuel/Electric) | E16: Bu | F16: =+F4 -> 110 | G16: 0 | H16: 0 | J16: _________ | N16: Other | R16: 0 | S16: 0 | T16: _________
C17: Crop Insurance6 | E17: Acre | F17: 1 | G17: =+Inputs!C27 -> 6.85 | H17: =F17*G17 -> 6.85 | J17: _________ | L17: Insecticides | N17: Seed Treatment | O17: acre | P17: 1 | Q17: 1 | R17: =+Insecticides!B6 -> 10 | S17: 10 | T17: _________
C18: Other | E18: Acre | F18: 1 | G18: 0 | H18: =F18*G18 -> 0 | J18: _________ | N18: Foliar | O18: acre | P18: 1 | Q18: 1 | R18: =+Insecticides!B7 -> 40 | S18: 40 | T18: _________
C19: Other | E19: Acre | F19: 1 | G19: 0 | H19: =(F19*G19)/2 -> 0 | J19: _________ | N19: Other | O19: acre | R19: 0 | S19: =P19*Q19*R19 -> 0 | T19: _________
C20: Operating Interest 7 | E20: % | F20: =SUM(H7:H19) -> 313.2337368 | G20: =+Inputs!C14 -> 0.085 | H20: =(F20*G20)/2 -> 13.31243381 | J20: _________ | L20: Total | S20: =SUM(S11:S19) -> 99 | T20: _________
B21: Total Variable Expenses | H21: =SUM(H7:H20) -> 326.5461706 | J21: _________ | L21: Table 3. Machinery 5
B22: Return Above Variable Expenses | H22: =H5-H21 -> 228.9538294 | J22: _________ | M22: Power Unit | N22: Implement | O22: Size | P22: Capital Recovery | Q22: Repairs & Maintenance | R22: Fuel, Oil & Filter | S22: Labor | T22: Total | U22: Your Farm ($/Acre)
B23: Fixed Expenses | L23: Burndown | M23: SP Boom Sprayer | O23: 90' | P23: =+'Field Operations'!F11 -> 10.08349574 | Q23: =+'Field Operations'!G11 -> 0.2942877349 | R23: =+'Field Operations'!H11 -> 0.4360736111 | S23: =+'Field Operations'!I11 -> 0.318287037 | T23: =SUM(P23:S23) -> 11.13214413 | U23: _________
C24: Machinery | L24: Plant | M24: Tractor, 215 hp | N24: Planter | O24: 16-row | P24: =+'Field Operations'!F8 -> 16.94395286 | Q24: =+'Field Operations'!G8 -> 2.876988318 | R24: =+'Field Operations'!H8 -> 2.717074038 | S24: =+'Field Operations'!I8 -> 1.586538462 | T24: =SUM(P24:S24) -> 24.12455368 | U24: _________
C25: Capital Recovery (Table 3) | E25: Acre | F25: 1 | G25: =+P34 -> 122.4347324 | H25: =+F25*G25 -> 122.4347324 | J25: _________ | L25: Fertilize | M25: Tractor, 215 hp | N25: Fertilize Spreader | P25: ='Field Operations'!F10 -> 5.383607559 | Q25: ='Field Operations'!G10 -> 1.596529341 | R25: ='Field Operations'!H10 -> 2.88342551 | S25: ='Field Operations'!I10 -> 1.683673469 | T25: ='Field Operations'!J10 -> 11.54723588 | U25: _________
C26: Other Fixed Machinery Costs | E26: Acre | F26: 1 | G26: 0 | H26: =+F26*G26 -> 0 | J26: _________ | L26: Weed Control | M26: SP Boom Sprayer | O26: 90' | P26: =+'Field Operations'!F11 -> 10.08349574 | Q26: =+'Field Operations'!G11 -> 0.2942877349 | R26: =+'Field Operations'!H11 -> 0.4360736111 | S26: =+'Field Operations'!I11 -> 0.318287037 | T26: =SUM(P26:S26) -> 11.13214413 | U26: _________
C27: General Overhead | E27: Acre | F27: 1 | G27: 20 | H27: =+F27*G27 -> 20 | J27: _________ | L27: Fertilize | M27: Tractor, 215 hp | N27: Fertilize Spreader | P27: =+'Field Operations'!F10 -> 5.383607559 | Q27: =+'Field Operations'!G10 -> 1.596529341 | R27: =+'Field Operations'!H10 -> 2.88342551 | S27: =+'Field Operations'!I10 -> 1.683673469 | T27: =SUM(P27:S27) -> 11.54723588 | U27: _________
C28: Cash Rent8 | E28: Acre | F28: 1 | G28: =Inputs!C23 -> 113 | H28: =+F28*G28 -> 113 | J28: _________ | L28: Weed Control | M28: SP Boom Sprayer | O28: 90' | P28: =+'Field Operations'!F11 -> 10.08349574 | Q28: =+'Field Operations'!G11 -> 0.2942877349 | R28: =+'Field Operations'!H11 -> 0.4360736111 | S28: =+'Field Operations'!I11 -> 0.318287037 | T28: =SUM(P28:S28) -> 11.13214413 | U28: _________
C29: Management Labor | E29: Acre | F29: 1 | G29: =+Inputs!C13 -> 25 | H29: =+F29*G29 -> 25 | J29: _________ | L29: Insecticide | M29: SP Boom Sprayer | O29: 90' | P29: =+'Field Operations'!F11 -> 10.08349574 | Q29: =+'Field Operations'!G11 -> 0.2942877349 | R29: =+'Field Operations'!H11 -> 0.4360736111 | S29: =+'Field Operations'!I11 -> 0.318287037 | T29: =SUM(P29:S29) -> 11.13214413 | U29: _________
C30: Other Fixed Costs | E30: Acre | F30: 1 | G30: 0 | H30: =+F30*G30 -> 0 | J30: _________ | L30: Insecticide | M30: SP Boom Sprayer | O30: 90' | P30: =+'Field Operations'!F11 -> 10.08349574 | Q30: =+'Field Operations'!G11 -> 0.2942877349 | R30: =+'Field Operations'!H11 -> 0.4360736111 | S30: =+'Field Operations'!I11 -> 0.318287037 | T30: =SUM(P30:S30) -> 11.13214413 | U30: _________
B31: Total Fixed Expenses | H31: =+SUM(H25:H30) -> 280.4347324 | J31: _________ | L31: Harvest | M31: Combine | N31: Grain Head | O31: 30' | P31: =+'Field Operations'!F13 -> 29.22887142 | Q31: =+'Field Operations'!G13 -> 26.02550332 | R31: =+'Field Operations'!H13 -> 7.568991964 | S31: =+'Field Operations'!I13 -> 2.455357143 | T31: 36.77389921 | U31: _________
B32: Return Above All Specified Expenses | H32: =H5-H21-H31 -> -51.48090298 | J32: _________ | L32: Haul | M32: Tractor, 215 hp | N32: Grain Cart | P32: =+'Field Operations'!F14 -> 7.397214231 | Q32: =+'Field Operations'!G14 -> 0.8354368884 | R32: =+'Field Operations'!H14 -> 1.766098125 | S32: =+'Field Operations'!I14 -> 1.03125 | T32: =SUM(P32:S32) -> 11.02999924 | U32: _________
L33: Haul | M33: Semi Tractor/Trailer | P33: =+'Field Operations'!F16 -> 7.68 | Q33: =+'Field Operations'!G16 -> 1.25 | R33: =+'Field Operations'!H16 -> 0.79 | S33: =+'Field Operations'!I16 -> 1.76 | T33: 9.93 | U33: _________
B34: Breakeven Price for Selected Yield | F34: Breakeven Yield for Selected Price | L34: Total | P34: =SUM(P23:P33) -> 122.4347324 | Q34: =SUM(Q23:Q33) -> 35.65242588 | R34: =SUM(R23:R33) -> 20.7893832 | S34: =SUM(S23:S33) -> 11.79192773 | T34: =SUM(T23:T33) -> 160.6136445 | U34: _________
B35: Yield (bu) | C35: Variable Cost ($/bu) | D35: Total Specified Cost ($/bu) | F35: Price ($/bu) | G35: Variable Cost (bu) | I35: Total Specified Cost (bu)
B36: =SUM(B37-5) -> 90 | C36: =$H$21/B36 -> 3.628290785 | D36: =($H$21+$H$31)/B36 -> 6.744232255 | F36: =SUM(F37-0.05) -> 4.85 | G36: =+$H$21/F36 -> 67.32910735 | I36: =+($H$21+$H$31)/F36 -> 125.1507016
B37: 95 | C37: 3.437328112 | D37: 6.389272663 | F37: 4.9 | G37: =+$H$21/F37 -> 66.64207564 | I37: 123.8736537
B38: 100 | C38: 3.265461706 | D38: 6.06980903 | F38: 4.95 | G38: 65.96892336 | I38: 122.6224046
B39: =SUM(B40-5) -> 105 | C39: 3.10996353 | D39: 5.780770505 | F39: =SUM(F40-0.05) -> 5 | G39: 65.30923413 | I39: 121.3961806
B40: =+F4 -> 110 | C40: 2.968601551 | D40: 5.518008209 | F40: =+G4 -> 5.05 | G40: 64.66260804 | I40: 120.1942382
B41: =SUM(B40+5) -> 115 | C41: 2.839531918 | D41: 5.278094809 | F41: =SUM(F40+0.05) -> 5.1 | G41: 64.02866091 | I41: 119.0158633
B42: =SUM(B41+5) -> 120 | C42: 2.721218089 | D42: 5.058174191 | F42: =SUM(F41+0.05) -> 5.15 | G42: 63.40702342 | I42: 117.8603695
B43: 125 | C43: 2.612369365 | D43: 4.855847224 | F43: 5.2 | G43: 62.7973405 | I43: 116.7270967
B44: 130 | C44: 2.51189362 | D44: 4.669083869 | F44: 5.25 | G44: 62.1992706 | I44: 115.6154101

Sheet Footnotes
A1: FOOTNOTES
A2: 1 Revenue
A3: Corn price was estimated using weighted average futures prices from September 2024 to July 2025, adjusted by average monthly basis in Tennessee. Corn yield is the predicted 2024 linear trend line yield for corn in Tennessee, using state average USDA-NASS yields from 2003-2023. Irrigated corn yield was estimated at 240 bu/acre.
A4: Soybean price was estimated using weighted average futures prices from November 2024 to August 2025, adjusted by average monthly basis in Tennessee. Soybean yield is the predicted 2024 linear trend line yield for soybeans in Tennessee, using state average USDA-NASS yields from 2003-2023. Irrigated soybean yield was estimated at 65 bu/acre.
A5: Wheat/Soybean. Soybean yield is the predicted 2024 linear trend line yield for soybeans in Tennessee, adjusted for double cropping system. Wheat price was estimated using weighted average futures prices from July 2024 to May 2025, adjusted by average monthly basis in Tennessee. Wheat yield is the predicted 2024 linear trend line yield for wheat in Tennessee, using state average yields from 2003-2023. If a market for wheat straw is available, add an appropriate amount to other revenue ($/acre) based on the expected yield and price of the straw, being sure to account for additional harvest and marketing costs.
A6: Cotton price was estimated using weighted average futures prices from December 2024 to July 2025, adjusted by average monthly basis in Tennessee. Cotton yield is the predicted 2024 linear trend line yield for cotton in Tennessee, using state average yields from 2003-2023. Most ginning arrangements provide producers cottonseed revenue net ginning costs, which should be included as additional revenue.
A7: Sorghum price is estimated 10 cents above the price of corn, based on expected market conditions. Due to low acres and limited market access, prices may swing dramatically. Recently, in Tennessee, sorghum has been 10-25 cents above the price of corn.
A9: 2 Seed Costs | F9: =0.45*140 -> 63
A10: Corn: Assumes a bag of seed costs $288 and contains 80,000 seeds ($3.60/thousand seeds). Seeding rate of 32,000 seeds/acre (36,500 for irrigated). Seed treatment is included in the price. Seed cost varies by variety.
A11: Soybeans: Assumes a bag of seed costs $63 and contains 140,000 seeds ($0.45/thousand seeds). Seeding rate of 140,000 seeds/acre (150,000 for irrigated). Seed treatment is included in the price. Seed cost varies by variety.
A12: Wheat: Assumes seeding rate of 2.5 bu/acre at $18.00 per bushel. Seed treatment is included in the price. Seed cost varies by variety.
A13: Cotton: Assumes $2.65/thousand seeds. Seeding rate of 50,000 seeds/acre (60,000 for irrigated). Seed treatment is included in the price. Seed cost varies by variety.
A14: Check with farm suppliers for rebates, discounts and incentives for seed and chemicals. Substantial cost savings may be available.
A16: 3 Fertilizer and Lime
A17: Lime is assumed to be applied once every four years at a rate of 2 tons per acre (includes the cost of application). N, P and K quantities and prices are shown in elemental lb. Check with farm suppliers for rebates, discounts and incentives for fertilizers, seed and chemicals. Substantial cost savings may be available. Substantial variation in prices for fertilizer exist based on quantity purchased, product purchased and location of purchase.
A19: 4 Chemicals
A20: Assumes a normal crop rotation with minimal weed infestation. A continuous monocrop system may require additional expenses for chemicals and/or land preparation. Weed control chemicals should be selected for specific weed or grass problems that are present. Generic chemicals may be a cost-effective option; contact your chemical supplier, qualified consultant or weed control specialist. Alternative weed control options are available in the University of Tennessee Weed Control Manual for Tennessee. Follow all labels, state and national regulations when using all chemicals. Check with farm suppliers for rebates, discounts and incentives for seed and chemicals. Substantial cost savings may be available. Seed treatments, such as some nematicide treatments, are optional and costs vary depending on product used.
A22: 5 Machinery
A23: Machinery expenses will vary dramatically by operation, financial resources and land base. The machinery cost estimates provided in Table 3 are provided as an estimate of cost of ownership and operation for specified pieces of machinery that would be available to a "representative" row-crop farm in Tennessee. To estimate machinery costs for a specific set of equipment, interested parties can utilize the Excel version of the budgets and modify the Machinery Assumptions Table.
A25: 6 Crop Insurance
A26: Crop insurance is an estimate and will vary by policy, county and coverage election. The estimate provided is the average premium paid per insured acre for each commodity in Tennessee for the previous production year, as reported by USDA RMA's Summary of Business Report.
A28: 7 Operating Interest
A29: Operating interest is assumed to be charged on half of all variable expenses.
A31: 8 Cash Rental Rates
A32: Cash rental rates are the 2023 USDA-NASS reported cash rental rates for cropland in Tennessee. Substantial differences may exist in cash rental rates reported by NASS and the prevailing rate in your location.
A34: 9 Irrigation
A35: Center-pivot irrigation costs are estimated using the following assumptions: purchase price and installation cost of $95,000; useful life of 20 years; and an irrigated acreage of 125 acres. Well depth and energy source will dramatically impact irrigation costs. Irrigation rates should be adjusted to meet commodity- and farm-specific applications. Irrigation costs are site and energy-source specific.
A37: 10 Management Labor
A38: Management labor for irrigated acreage is assumed to be double that of dryland acres.

Sheet Field Operations
A1: Field Operations | S1: Machinery Assumptions
W2: Current Price | AA2: Efficiency Factor | AB2: Field Capacity | AC2: Repair Factors | AF2: Accumulated hours | AH2: Depreciation Factors | AQ2: R&M | AT2: Depreciation | AW2: Interest | AZ2: Taxes, Insurance, & Housing | BC2: Total Capital Recovery
A3: Commodity | B3: Process | C3: Power Unit | D3: Implement | E3: Size | F3: Capital Recovery | G3: Repair & Maintenance | H3: Fuel | I3: Labor | J3: Total | T3: Power | U3: Implement | V3: Size | W3: Power | X3: Implement | Y3: Speed | Z3: Width | AC3: RF1 | AD3: RF2 | AE3: Use (hrs) | AG3: Age | AH3: DF1 | AI3: DF2 | AJ3: DF3 | AK3: RVn | AL3: RVn-1 | AM3: Fuel | AN3: Oil and Filter | AO3: Total Fuel | AP3: Labor | AQ3: Tractor | AR3: Implement | AS3: Total | AT3: Implement | AU3: Tractor | AV3: Total | AW3: Implement | AX3: Tractor | AY3: Total | AZ3: Implement | BA3: Tractor | BB3: Total
A4: All | B4: Chisel | C4: Tractor, 215 hp | D4: Chisel Plow | E4: 21' | F4: =BC4 -> 7.336313628 | G4: =AS4 -> 2.034898445 | H4: =AO4 -> 3.957642857 | I4: 2.31092437 | J4: =SUM(F4:I4) -> 15.6397793 | S4: Chisel | T4: Tractor, 215 hp | U4: Chisel Plow | V4: 21' | W4: 300000 | X4: 35000 | Y4: 5 | Z4: 21 | AA4: 85 | AB4: =(Y4*Z4*(AA4/100))/8.25 -> 10.81818182 | AC4: 0.28 | AD4: 1.4 | AE4: =$AB$32/AB4 -> 92.43697479 | AF4: =AE4*5 -> 462.1848739 | AG4: =AF4/AE4 -> 5 | AH4: 0.7382 | AI4: 0.051 | AJ4: 0 | AK4: =X4*(AH4-AI4*(AG4^0.5)-AJ4*(AE4^0.5))^2 -> 13635.17299 | AL4: =X4*(AH4-AI4*((AG4-1)^0.5)-AJ4*(AE4^0.5))^2 -> 14166.2654 | AM4: =Inputs!$C$10*0.73*(0.06*250)*(1/AB4) -> 3.441428571 | AN4: =AM4*0.15 -> 0.5162142857 | AO4: =+AM4+AN4 -> 3.957642857 | AP4: =Inputs!$C$12*1.25*(1/AB4) -> 2.31092437 | AQ4: =((W4*$AC$27*(($AF$27+$AE$27)/1000)^$AD$27)-(W4*$AC$27*($AF$27/1000)^$AD$27))/$AE$27*(1/AB4) -> 1.067647059 | AR4: =((X4*AC4*((AF4+AE4)/1000)^AD4)-(X4*AC4*(AF4/1000)^AD4))/AE4*(1/AB4) -> 0.9672513858 | AS4: =AQ4+AR4 -> 2.034898445 | AT4: =((AL4-AK4)/AE4)*(1/AB4) -> 0.5310924101 | AU4: =(($AL$27-$AK$27)/$AE$27)*(1/AB4) -> 2.118900959 | AV4: =+AT4+AU4 -> 2.649993369 | AW4: =((Inputs!$C$15*AK4)/AE4)*(1/AB4) -> 1.022637974 | AX4: =((Inputs!$C$15*$AK$27)/$AE$27)*(1/AB4) -> 1.854438588 | AY4: =AW4+AX4 -> 2.877076562 | AZ4: =(X4*0.02/AE4)*(1/AB4) -> 0.7 | BA4: =(W4*0.02/$AE$27)*(1/AB4) -> 1.109243697 | BB4: =+AZ4+BA4 -> 1.809243697 | BC4: =+AV4+AY4+BB4 -> 7.336313628
B5: Disk | C5: Tractor, 215 hp | D5: Tandem Disk | E5: 29' | F5: 12.19552947 | G5: 2.015124735 | H5: 3.184310345 | I5: 1.859364435 | J5: 19.25432899 | S5: Disk | T5: Tractor, 215 hp | U5: Tandem Disk | V5: 29' | W5: 300000 | X5: 95000 | Y5: 4.5 | Z5: 29 | AA5: 85 | AB5: 13.44545455 | AC5: 0.18 | AD5: 1.7 | AE5: =$AB$32/AB5 -> 74.37457742 | AF5: =AE5*5 -> 371.8728871 | AG5: =AF5/AE5 -> 5 | AH5: 0.8906 | AI5: 0.1095 | AJ5: 0 | AK5: =X5*(AH5-AI5*(AG5^0.5)-AJ5*(AE5^0.5))^2 -> 39614.40921 | AL5: =X5*(AH5-AI5*((AG5-1)^0.5)-AJ5*(AE5^0.5))^2 -> 42849.4232 | AM5: =Inputs!$C$10*0.73*(0.06*250)*(1/AB5) -> 2.768965517 | AN5: 0.4153448276 | AO5: 3.184310345 | AP5: =Inputs!$C$12*1.25*(1/AB5) -> 1.859364435 | AQ5: 0.8590263692 | AR5: =((X5*AC5*((AF5+AE5)/1000)^AD5)-(X5*AC5*(AF5/1000)^AD5))/AE5*(1/AB5) -> 1.156098365 | AS5: 2.015124735 | AT5: =((AL5-AK5)/AE5)*(1/AB5) -> 3.235013989 | AU5: 1.70486284 | AV5: =+AT5+AU5 -> 4.939876829 | AW5: =((Inputs!$C$15*AK5)/AE5)*(1/AB5) -> 2.971080691 | AX5: =((Inputs!$C$15*$AK$27)/$AE$27)*(1/AB5) -> 1.492077025 | AY5: =AW5+AX5 -> 4.463157715 | AZ5: 1.9 | BA5: 0.892494929 | BB5: =+AZ5+BA5 -> 2.792494929 | BC5: =+AV5+AY5+BB5 -> 12.19552947
B6: Prepare Seedbed | C6: Tractor, 215 hp | D6: Do-All | E6: 26.5' | F6: 7.694601856 | G6: 1.736777239 | H6: 3.332260613 | I6: 1.945754717 | J6: 14.70939443 | S6: Prepare Seedbed | T6: Tractor, 215 hp | U6: Do-All | V6: 26.5' | W6: 300000 | X6: 40000 | Y6: 5 | Z6: 26.5 | AA6: 80 | AB6: 12.84848485 | AC6: 0.27 | AD6: 1.4 | AE6: 77.83018868 | AF6: 389.1509434 | AG6: 5 | AH6: 0.891 | AI6: 0.11 | AJ6: 0 | AK6: 16642.6782 | AL6: 18009.64 | AM6: =Inputs!$C$10*0.73*(0.06*250)*(1/AB6) -> 2.897617925 | AN6: 0.4346426887 | AO6: 3.332260613 | AP6: =Inputs!$C$12*1.25*(1/AB6) -> 1.945754717 | AQ6: 0.8989386792 | AR6: 0.8378385593 | AS6: 1.736777239 | AT6: 1.366961798 | AU6: 1.784074628 | AV6: 3.151036426 | AW6: =((Inputs!$C$15*AK6)/AE6)*(1/AB6) -> 1.248200865 | AX6: =((Inputs!$C$15*$AK$27)/$AE$27)*(1/AB6) -> 1.561402301 | AY6: 2.809603167 | AZ6: 0.8 | BA6: 0.9339622642 | BB6: 1.733962264 | BC6: 7.694601856
B7: Prepare Seedbed | C7: Tractor, 215 hp | D7: Cultimulcher | E7: 20' | F7: 8.658524261 | G7: 2.27819658 | H7: 4.415245312 | I7: 2.578125 | J7: 17.93009115 | S7: Prepare Seedbed | T7: Tractor, 215 hp | U7: Cultimulcher | V7: 20' | W7: 300000 | X7: 35000 | Y7: 5 | Z7: 20 | AA7: 80 | AB7: 9.696969697 | AC7: 0.27 | AD7: 1.4 | AE7: 103.125 | AF7: 515.625 | AG7: 5 | AH7: 0.891 | AI7: 0.11 | AJ7: 0 | AK7: 14562.34343 | AL7: 15758.435 | AM7: =Inputs!$C$10*0.73*(0.06*250)*(1/AB7) -> 3.83934375 | AN7: 0.5759015625 | AO7: =+AM7+AN7 -> 4.415245312 | AP7: =Inputs!$C$12*1.25*(1/AB7) -> 2.578125 | AQ7: 1.19109375 | AR7: 1.08710283 | AS7: 2.27819658 | AT7: 1.196091573 | AU7: 2.363898882 | AV7: 3.559990455 | AW7: =((Inputs!$C$15*AK7)/AE7)*(1/AB7) -> 1.092175757 | AX7: =((Inputs!$C$15*$AK$27)/$AE$27)*(1/AB7) -> 2.068858049 | AY7: 3.161033806 | AZ7: 0.7 | BA7: 1.2375 | BB7: 1.9375 | BC7: 8.658524261
B8: Plant | C8: Tractor, 215 hp | D8: Planter | E8: 16-row | F8: =BC8 -> 16.94395286 | G8: =AS8 -> 2.876988318 | H8: =AO8 -> 2.717074038 | I8: =AP8 -> 1.586538462 | J8: 24.12455368 | S8: Plant | T8: Tractor, 215 hp | U8: Planter | V8: 16-row | W8: 300000 | X8: 160000 | Y8: 5 | Z8: 40 | AA8: 65 | AB8: 15.75757576 | AC8: 0.32 | AD8: 2.1 | AE8: 63.46153846 | AF8: 317.3076923 | AG8: 5 | AH8: 0.883 | AI8: 0.078 | AJ8: 0 | AK8: 80335.21732 | AL8: 84564.64 | AM8: =Inputs!$C$10*0.73*(0.06*250)*(1/AB8) -> 2.362673077 | AN8: 0.3544009615 | AO8: 2.717074038 | AP8: =Inputs!$C$12*1.25*(1/AB8) -> 1.586538462 | AQ8: 0.7329807692 | AR8: 2.144007549 | AS8: 2.876988318 | AT8: 4.229422682 | AU8: 1.454707004 | AV8: 5.684129687 | AW8: =((Inputs!$C$15*AK8)/AE8)*(1/AB8) -> 6.025141299 | AX8: =((Inputs!$C$15*$AK$27)/$AE$27)*(1/AB8) -> 1.273143415 | AY8: 7.298284714 | AZ8: 3.2 | BA8: 0.7615384615 | BB8: 3.961538462 | BC8: 16.94395286
B9: Plant | C9: Tractor, 215 hp | D9: Grain Drill | E9: 20' | F9: 13.20262413 | G9: 5.294680402 | H9: 5.045994643 | I9: 2.946428571 | J9: 26.48972775 | S9: Plant | T9: Tractor, 215 hp | U9: Grain Drill | V9: 20 ft | W9: 300000 | X9: 80000 | Y9: 5 | Z9: 20 | AA9: 70 | AB9: 8.484848485 | AC9: 0.32 | AD9: 2.1 | AE9: 117.8571429 | AF9: 589.2857143 | AG9: 5 | AH9: 0.8826 | AI9: 0.0778 | AJ9: 0 | AK9: 40172.96163 | AL9: 42282.32 | AM9: =Inputs!$C$10*0.73*(0.06*250)*(1/AB9) -> 4.387821429 | AN9: 0.6581732143 | AO9: 5.045994643 | AP9: =Inputs!$C$12*1.25*(1/AB9) -> 2.946428571 | AQ9: 1.36125 | AR9: 3.933430402 | AS9: 5.294680402 | AT9: 2.109358375 | AU9: 2.701598722 | AV9: 4.810957097 | AW9: =((Inputs!$C$15*AK9)/AE9)*(1/AB9) -> 3.012972122 | AX9: =((Inputs!$C$15*$AK$27)/$AE$27)*(1/AB9) -> 2.364409199 | AY9: 5.377381321 | AZ9: 1.6 | BA9: 1.414285714 | BB9: 3.014285714 | BC9: 13.20262413
B10: Fertilize | C10: Tractor, 215 hp | D10: Fertilizer Spreader | F10: 5.383607559 | G10: 1.596529341 | H10: 2.88342551 | I10: 1.683673469 | J10: 11.54723588 | S10: Fertilize | T10: Tractor, 215 hp | U10: Fertilizer Spreader | V10: 900# | W10: 300000 | X10: 20000 | Y10: 7 | Z10: 25 | AA10: 70 | AB10: 14.84848485 | AC10: 0.63 | AD10: 1.3 | AE10: 67.34693878 | AF10: 336.7346939 | AG10: 5 | AH10: 0.8826 | AI10: 0.0778 | AJ10: 0 | AK10: 10043.24041 | AL10: 10570.58 | AM10: =Inputs!$C$10*0.73*(0.06*250)*(1/AB10) -> 2.507326531 | AN10: 0.3760989796 | AO10: 2.88342551 | AP10: =Inputs!$C$12*1.25*(1/AB10) -> 1.683673469 | AQ10: 0.7778571429 | AR10: 0.8186721986 | AS10: 1.596529341 | AT10: 0.5273395937 | AU10: 1.543770698 | AV10: 2.071110292 | AW10: =((Inputs!$C$15*AK10)/AE10)*(1/AB10) -> 0.7532430305 | AX10: =((Inputs!$C$15*$AK$27)/$AE$27)*(1/AB10) -> 1.351090971 | AY10: 2.104334001 | AZ10: 0.4 | BA10: 0.8081632653 | BB10: 1.208163265 | BC10: 5.383607559
B11: Spray | C11: SP Boom Sprayer | E11: 90' | F11: 10.08349574 | G11: 0.2942877349 | H11: 0.4360736111 | I11: 0.318287037 | J11: 11.13214413 | S11: Weed Control | T11: SP Boom Sprayer | V11: 90' | X11: 300000 | Y11: 12 | Z11: 90 | AA11: 60 | AB11: =(Y11*Z11*(AA11/100))/8.25 -> 78.54545455 | AC11: 0.1 | AD11: 1.3 | AE11: =$AB$32*2.5/AB11 -> 31.8287037 | AF11: 159.1435185 | AG11: 5 | AH11: 0.8826 | AI11: 0.0778 | AJ11: 0 | AK11: 150648.6061 | AL11: 158558.7 | AM11: =Inputs!$C$10*0.73*(0.06*200)*(1/AB11) -> 0.3791944444 | AN11: 0.05687916667 | AO11: 0.4360736111 | AP11: =Inputs!$C$12*1.25*(1/AB11) -> 0.318287037 | AQ11: 0 | AR11: 0.2942877349 | AS11: 0.2942877349 | AT11: 3.164037562 | AU11: 0 | AV11: 3.164037562 | AW11: =((Inputs!$C$15*AK11)/AE11)*(1/AB11) -> 4.519458183 | AX11: 0 | AY11: 4.519458183 | AZ11: =(X11*0.02/AE11)*(1/AB11) -> 2.4 | BA11: 0 | BB11: 2.4 | BC11: =+AV11+AY11+BB11 -> 10.08349574
B12: Harvest | C12: Combine | D12: Corn Head | E12: 8-row | F12: 39.38721502 | G12: 35.05079519 | H12: 10.09198929 | I12: 3.273809524 | J12: 87.80380901 | S12: Harvest | T12: Combine | U12: Corn Head | V12: 8-row | W12: 450000 | X12: 70000 | Y12: 4.5 | Z12: 20 | AA12: 70 | AB12: 7.636363636 | AC12: 0.05 | AD12: 2.3 | AE12: 130.952381 | AF12: 654.7619048 | AG12: 5 | AH12: 1.1318 | AI12: 0.1645 | AJ12: 0 | AK12: 40855.1709 | AL12: 45114.1488 | AM12: =Inputs!$C$10*0.73*(0.06*450)*(1/AB12) -> 8.775642857 | AN12: 1.316346429 | AO12: 10.09198929 | AP12: =Inputs!$C$12*1.25*(1/AB12) -> 3.273809524 | AQ12: =((W12*$AC$28*(($AF$28+$AE$28)/1000)^$AD$28)-(W12*$AC$28*($AF$28/1000)^$AD$28))/$AE$28*(1/AB12) -> 34.3623624 | AR12: =((X12*AC12*((AF12+AE12)/1000)^AD12)-(X12*AC12*(AF12/1000)^AD12))/AE12*(1/AB12) -> 0.6884327868 | AS12: 35.05079519 | AT12: =((AL12-AK12)/AE12)*(1/AB12) -> 4.258977902 | AU12: =(($AL$28-$AK$28)/$AE$28)*(1/AB12) -> 15.37017198 | AV12: 19.62914988 | AW12: =((Inputs!$C$15*AK12)/AE12)*(1/AB12) -> 3.064137817 | AX12: =((Inputs!$C$15*$AK$28)/$AE$28)*(1/AB12) -> 9.401070174 | AY12: 12.46520799 | AZ12: =(X12*0.02/AE12)*(1/AB12) -> 1.4 | BA12: =(W12*0.02/$AE$28)*(1/AB12) -> 5.892857143 | BB12: =+AZ12+BA12 -> 7.292857143 | BC12: 39.38721502
B13: Harvest | C13: Combine | D13: Grain Head | E13: 30' | F13: 29.22887142 | G13: 26.02550332 | H13: 7.568991964 | I13: 2.455357143 | J13: 65.27872384 | S13: Harvest | T13: Combine | U13: Grain Head | V13: 30 ft | W13: 450000 | X13: 50000 | Y13: 4 | Z13: 30 | AA13: 70 | AB13: 10.18181818 | AC13: 0.05 | AD13: 2.3 | AE13: =$AB$32/AB13 -> 98.21428571 | AF13: 491.0714286 | AG13: 5 | AH13: 1.1318 | AI13: 0.1645 | AJ13: 0 | AK13: 29182.26493 | AL13: 32224.392 | AM13: =Inputs!$C$10*0.73*(0.06*450)*(1/AB13) -> 6.581732143 | AN13: 0.9872598214 | AO13: 7.568991964 | AP13: =Inputs!$C$12*1.25*(1/AB13) -> 2.455357143 | AQ13: =((W13*$AC$28*(($AF$28+$AE$28)/1000)^$AD$28)-(W13*$AC$28*($AF$28/1000)^$AD$28))/$AE$28*(1/AB13) -> 25.7717718 | AR13: =((X13*AC13*((AF13+AE13)/1000)^AD13)-(X13*AC13*(AF13/1000)^AD13))/AE13*(1/AB13) -> 0.2537315168 | AS13: 26.02550332 | AT13: =((AL13-AK13)/AE13)*(1/AB13) -> 3.042127073 | AU13: =(($AL$28-$AK$28)/$AE$28)*(1/AB13) -> 11.52762899 | AV13: 14.56975606 | AW13: =((Inputs!$C$15*AK13)/AE13)*(1/AB13) -> 2.18866987 | AX13: =((Inputs!$C$15*$AK$28)/$AE$28)*(1/AB13) -> 7.050802631 | AY13: 9.2394725 | AZ13: =(X13*0.02/AE13)*(1/AB13) -> 1 | BA13: =(W13*0.02/$AE$28)*(1/AB13) -> 4.419642857 | BB13: =+AZ13+BA13 -> 5.419642857 | BC13: 29.22887142
B14: Haul | C14: Tractor, 215 hp | D14: Grain Cart | E14: 800 bu | F14: 7.397214231 | G14: 0.8354368884 | H14: 1.766098125 | I14: 1.03125 | J14: 11.02999924 | S14: Haul | T14: Tractor, 215 hp | U14: Grain Cart | W14: 300000 | X14: 55000 | Y14: 8 | Z14: 25 | AA14: 100 | AB14: 24.24242424 | AC14: 0.19 | AD14: 1.3 | AE14: 41.25 | AF14: 206.25 | AG14: 5 | AH14: 0.9427 | AI14: 0.1111 | AJ14: 0 | AK14: 26510.81329 | AL14: 28551.61375 | AM14: =Inputs!$C$10*0.73*(0.06*250)*(1/AB14) -> 1.5357375 | AN14: 0.230360625 | AO14: 1.766098125 | AP14: =Inputs!$C$12*1.25*(1/AB14) -> 1.03125 | AQ14: =((W14*$AC$27*(($AF$27+$AE$27)/1000)^$AD$27)-(W14*$AC$27*($AF$27/1000)^$AD$27))/$AE$27*(1/AB14) -> 0.4764375 | AR14: =((X14*AC14*((AF14+AE14)/1000)^AD14)-(X14*AC14*(AF14/1000)^AD14))/AE14*(1/AB14) -> 0.3589993884 | AS14: 0.8354368884 | AT14: =((AL14-AK14)/AE14)*(1/AB14) -> 2.040800462 | AU14: =(($AL$27-$AK$27)/$AE$27)*(1/AB14) -> 0.9455595527 | AV14: 2.986360015 | AW14: =((Inputs!$C$15*AK14)/AE14)*(1/AB14) -> 1.988310997 | AX14: =((Inputs!$C$15*$AK$27)/$AE$27)*(1/AB14) -> 0.8275432197 | AY14: =AW14+AX14 -> 2.815854216 | AZ14: =(X14*0.02/AE14)*(1/AB14) -> 1.1 | BA14: =(W14*0.02/$AE$27)*(1/AB14) -> 0.495 | BB14: =+AZ14+BA14 -> 1.595 | BC14: 7.397214231
B15: Haul (soybean) | C15: Semi Tractor/Trailer | F15: 5.91 | G15: 0.32 | H15: 0.25 | I15: 0.55 | J15: 7.03
B16: Haul (corn) | C16: Semi Tractor/Trailer | F16: 7.68 | G16: 1.25 | H16: 0.79 | I16: 1.76 | J16: 11.48
B17: Haul (wheat) | C17: Semi Tractor/Trailer | F17: 6.17 | G17: 0.43 | H17: 0.35 | I17: 0.77 | J17: 7.72
A18: Cotton | B18: Chop Stalks | C18: Tractor, 215 hp | D18: Rotary Mower | E18: 15' | F18: 8.468884282 | G18: 4.215707908 | H18: 4.204995536 | I18: 2.455357143 | J18: 19.34494487 | S18: Chop Stalks | T18: Tractor, 215 hp | U18: Rotary Mower | V18: 15' | W18: 300000 | X18: 55000 | Y18: 7 | Z18: 15 | AA18: 80 | AB18: 10.18181818 | AC18: 0.44 | AD18: 2 | AE18: =$AB$33/AB18 -> 117.8571429 | AF18: 589.2857143 | AG18: 5 | AH18: 0.7557 | AI18: 0.0672 | AJ18: 0 | AK18: 20160.4167 | AL18: 21230.75295 | AM18: =Inputs!$C$10*0.73*(0.06*250)*(1/AB18) -> 3.656517857 | AN18: 0.5484776786 | AO18: 4.204995536 | AP18: =Inputs!$C$12*1.25*(1/AB18) -> 2.455357143 | AQ18: =((W18*$AC$27*(($AF$27+$AE$27)/1000)^$AD$27)-(W18*$AC$27*($AF$27/1000)^$AD$27))/$AE$27*(1/AB18) -> 1.134375 | AR18: =((X18*AC18*((AF18+AE18)/1000)^AD18)-(X18*AC18*(AF18/1000)^AD18))/AE18*(1/AB18) -> 3.081332908 | AS18: 4.215707908 | AT18: =((AL18-AK18)/AE18)*(1/AB18) -> 0.8919468749 | AU18: =(($AL$27-$AK$27)/$AE$27)*(1/AB18) -> 2.251332268 | AV18: 3.143279143 | AW18: =((Inputs!$C$15*AK18)/AE18)*(1/AB18) -> 1.260026044 | AX18: =((Inputs!$C$15*$AK$27)/$AE$27)*(1/AB18) -> 1.970340999 | AY18: =AW18+AX18 -> 3.230367043 | AZ18: =(X18*0.02/AE18)*(1/AB18) -> 0.9166666667 | BA18: =(W18*0.02/$AE$27)*(1/AB18) -> 1.178571429 | BB18: =+AZ18+BA18 -> 2.095238095 | BC18: =+AV18+AY18+BB18 -> 8.468884282
B19: Plant | C19: Tractor, 215 hp | D19: Planter | E19: 12-row | F19: 14.10579577 | G19: 5.022235859 | H19: 3.622765385 | I19: 2.115384615 | J19: 24.86618163 | S19: Plant | T19: Tractor, 215 hp | U19: Planter | V19: 12-row | W19: 300000 | X19: 135000 | Y19: 5 | Z19: 30 | AA19: 65 | AB19: 11.81818182 | AC19: 0.32 | AD19: 2.1 | AE19: =$AB$33/AB19 -> 101.5384615 | AF19: 507.6923077 | AG19: 5 | AH19: 0.8826 | AI19: 0.0778 | AJ19: 0 | AK19: 67791.87274 | AL19: 71351.415 | AM19: =Inputs!$C$10*0.73*(0.06*250)*(1/AB19) -> 3.150230769 | AN19: 0.4725346154 | AO19: 3.622765385 | AP19: =Inputs!$C$12*1.25*(1/AB19) -> 2.115384615 | AQ19: =((W19*$AC$27*(($AF$27+$AE$27)/1000)^$AD$27)-(W19*$AC$27*($AF$27/1000)^$AD$27))/$AE$27*(1/AB19) -> 0.9773076923 | AR19: 4.044928167 | AS19: 5.022235859 | AT19: 2.966285214 | AU19: =(($AL$27-$AK$27)/$AE$27)*(1/AB19) -> 1.939609339 | AV19: 4.905894553 | AW19: =((Inputs!$C$15*AK19)/AE19)*(1/AB19) -> 4.236992046 | AX19: =((Inputs!$C$15*$AK$27)/$AE$27)*(1/AB19) -> 1.697524553 | AY19: 5.9345166 | AZ19: 2.25 | BA19: =(W19*0.02/$AE$27)*(1/AB19) -> 1.015384615 | BB19: 3.265384615 | BC19: 14.10579577
B20: Weed Control | C20: Tractor, 215 hp | D20: Hooded Sprayer | E20: 90 | F20: 2.458073402 | G20: 0.3788848373 | H20: 1.006323718 | I20: 0.5876068376 | J20: 4.430888795 | S20: Spray | T20: Tractor, 215 hp | U20: Hooded Sprayer | W20: 300000 | X20: 15000 | Y20: 6 | Z20: 90 | AA20: 65 | AB20: 42.54545455 | AC20: 0.41 | AD20: 1.3 | AE20: 28.20512821 | AF20: 141.025641 | AG20: 5 | AH20: 0.9427 | AI20: 0.1111 | AJ20: 0 | AK20: 7230.221806 | AL20: 7786.80375 | AM20: =Inputs!$C$10*0.73*(0.06*250)*(1/AB20) -> 0.8750641026 | AN20: 0.1312596154 | AO20: 1.006323718 | AP20: =Inputs!$C$12*1.25*(1/AB20) -> 0.5876068376 | AQ20: =((W20*$AC$27*(($AF$27+$AE$27)/1000)^$AD$27)-(W20*$AC$27*($AF$27/1000)^$AD$27))/$AE$27*(1/AB20) -> 0.271474359 | AR20: 0.1074104784 | AS20: 0.3788848373 | AT20: 0.4638182868 | AU20: =(($AL$27-$AK$27)/$AE$27)*(1/AB20) -> 0.5387803719 | AV20: 1.002598659 | AW20: =((Inputs!$C$15*AK20)/AE20)*(1/AB20) -> 0.4518888629 | AX20: =((Inputs!$C$15*$AK$27)/$AE$27)*(1/AB20) -> 0.4715345981 | AY20: 0.923423461 | AZ20: 0.25 | BA20: =(W20*0.02/$AE$27)*(1/AB20) -> 0.2820512821 | BB20: =+AZ20+BA20 -> 0.5320512821 | BC20: 2.458073402
B21: Harvest | C21: SP Cotton Picker | E21: 6-row | F21: 30.6974734 | G21: 9.980475073 | H21: 11.35348795 | I21: 3.683035714 | J21: 55.71447213 | S21: Harvest | T21: SP Cotton Picker | X21: 350000 | Y21: 4 | Z21: 20 | AA21: 70 | AB21: =(Y21*Z21*(AA21/100))/8.25 -> 6.787878788 | AC21: 0.11 | AD21: 1.8 | AE21: =$AB$33/AB21 -> 176.7857143 | AF21: 883.9285714 | AG21: 5 | AH21: 1.1318 | AI21: 0.1645 | AJ21: 0.0079 | AK21: 151965.0434 | AL21: =X21*(AH21-AI21*((AG21-1)^0.5)-AJ21*(AE21^0.5))^2 -> 170404.6332 | AM21: =Inputs!$C$10*0.73*(0.06*450)*(1/AB21) -> 9.872598214 | AN21: 1.480889732 | AO21: 11.35348795 | AP21: =Inputs!$C$12*1.25*(1/AB21) -> 3.683035714 | AR21: 9.980475073 | AS21: 9.980475073 | AT21: 15.36632486 | AV21: 15.36632486 | AW21: =((Inputs!$C$15*AK21)/AE21)*(1/AB21) -> 9.49781521 | AY21: 9.49781521 | AZ21: 5.833333333 | BB21: 5.833333333 | BC21: 30.6974734
B22: Harvest | C22: Tractor, 215 hp | D22: Boll Buggy | F22: 8.11550338 | G22: 1.199650371 | H22: 4.415245312 | I22: 2.578125 | J22: 16.30852406 | S22: Haul-Boll Buggy | T22: Tractor, 215 hp | U22: Boll Buggy | W22: 300000 | X22: 45000 | Y22: 4 | Z22: 20 | AA22: 100 | AB22: 9.696969697 | AC22: 0.19 | AD22: 1.3 | AE22: 123.75 | AF22: 618.75 | AG22: 5 | AH22: 0.9427 | AI22: 0.1111 | AJ22: 0 | AK22: =X22*(AH22-AI22*(AG22^0.5)-AJ22*(AE22^0.5))^2 -> 21690.66542 | AL22: =X22*(AH22-AI22*((AG22-1)^0.5)-AJ22*(AE22^0.5))^2 -> 23360.41125 | AM22: =Inputs!$C$10*0.73*(0.06*250)*(1/AB22) -> 3.83934375 | AN22: =AM22*0.15 -> 0.5759015625 | AO22: 4.415245312 | AP22: =Inputs!$C$12*1.25*(1/AB22) -> 2.578125 | AQ22: =((X22*$AC$27*(($AF$27+$AE$27)/1000)^$AD$27)-(X22*$AC$27*($AF$27/1000)^$AD$27))/$AE$27*(1/AB22) -> 0.1786640625 | AR22: =((X22*AC22*((AF22+AE22)/1000)^AD22)-(X22*AC22*(AF22/1000)^AD22))/AE22*(1/AB22) -> 1.020986308 | AS22: 1.199650371 | AT22: =((AL22-AK22)/AE22)*(1/AB22) -> 1.391454861 | AU22: =(($AL$27-$AK$27)/$AE$27)*(1/AB22) -> 2.363898882 | AV22: 3.755353742 | AW22: =((Inputs!$C$15*AK22)/AE22)*(1/AB22) -> 1.355666589 | AX22: =((Inputs!$C$15*$AK$27)/$AE$27)*(1/AB22) -> 2.068858049 | AY22: =AW22+AX22 -> 3.424524638 | AZ22: =(X22*0.02/AE22)*(1/AB22) -> 0.75 | BA22: =(X22*0.02/$AE$27)*(1/AB22) -> 0.185625 | BB22: 0.935625 | BC22: 8.11550338
B23: Harvest | C23: Tractor, 215 hp | D23: Module Builder | E23: 32' | F23: 8.434645202 | G23: 1.271898692 | H23: 3.942183315 | I23: 2.301897321 | J23: 15.95062453 | S23: Module Builder | T23: Tractor, 215 hp | U23: Module Builder | V23: 32' | W23: 300000 | X23: 55000 | Y23: 4 | Z23: 32 | AA23: 70 | AB23: 10.86060606 | AC23: 0.19 | AD23: 1.3 | AE23: 110.4910714 | AF23: 552.4553571 | AG23: 5 | AH23: 0.9427 | AI23: 0.1111 | AJ23: 0 | AK23: 26510.81329 | AL23: =X23*(AH23-AI23*((AG23-1)^0.5)-AJ23*(AE23^0.5))^2 -> 28551.61375 | AM23: =Inputs!$C$10*0.73*(0.06*250)*(1/AB23) -> 3.427985491 | AN23: =AM23*0.15 -> 0.5141978237 | AO23: 3.942183315 | AP23: =Inputs!$C$12*1.25*(1/AB23) -> 2.301897321 | AQ23: =((X23*$AC$27*(($AF$27+$AE$27)/1000)^$AD$27)-(X23*$AC$27*($AF$27/1000)^$AD$27))/$AE$27*(1/AB23) -> 0.1949707031 | AR23: 1.076927989 | AS23: 1.271898692 | AT23: =((AL23-AK23)/AE23)*(1/AB23) -> 1.700667052 | AU23: =(($AL$27-$AK$27)/$AE$27)*(1/AB23) -> 2.110624002 | AV23: 3.811291053 | AW23: =((Inputs!$C$15*AK23)/AE23)*(1/AB23) -> 1.65692583 | AX23: =((Inputs!$C$15*$AK$27)/$AE$27)*(1/AB23) -> 1.847194687 | AY23: 3.504120517 | AZ23: 0.9166666667 | BA23: =(X23*0.02/$AE$27)*(1/AB23) -> 0.2025669643 | BB23: 1.119233631 | BC23: =+AV23+AY23+BB23 -> 8.434645202
B24: Harvest | C24: Picker/Module Builder (Round) | E24: 6-row | F24: =BC24 -> 71.14770702 | G24: =AS24 -> 16.95163302 | H24: =AO24 -> 12.62186292 | I24: =AP24 -> 3.122918055 | J24: 103.844121 | S24: Harvest | T24: Picker/Module Builder (Round) | W24: 800000 | Y24: 4.4 | Z24: =38/12*6 -> 19 | AA24: 79 | AB24: =(Y24*Z24*(AA24/100))/8.25 -> 8.005333333 | AC24: 0.11 | AD24: 1.8 | AE24: =$AB$33/AB24 -> 149.9000666 | AF24: 749.5003331 | AG24: 5 | AH24: 1.1318 | AI24: 0.1645 | AJ24: 0.0079 | AK24: =W24*(AH24-AI24*(AG24^0.5)-AJ24*(AE24^0.5))^2 -> 356171.8669 | AL24: =W24*(AH24-AI24*((AG24-1)^0.5)-AJ24*(AE24^0.5))^2 -> 398836.2253 | AM24: =Inputs!$C$10*0.73*(0.06*590)*(1/AB24) -> 10.97553298 | AN24: =AM24*0.15 -> 1.646329947 | AO24: 12.62186292 | AP24: =Inputs!$C$12*1.25*(1/AB24) -> 3.122918055 | AQ24: =((W24*$AC$24*(($AF$24+$AE$24)/1000)^$AD$24)-(W24*$AC$24*($AF$24/1000)^$AD$24))/$AE$24*(1/AB24) -> 16.95163302 | AS24: 16.95163302 | AT24: =((AL24-AK24)/AE24)*(1/AB24) -> 35.55363201 | AV24: 35.55363201 | AW24: =((Inputs!$C$15*AK24)/AE24)*(1/AB24) -> 22.26074168 | AY24: 22.26074168 | AZ24: =(W24*0.02/AE24)*(1/AB24) -> 13.33333333 | BB24: 13.33333333 | BC24: 71.14770702
B25: Harvest | C25: Tractor, 215 hp | D25: Module Handler | F25: =BC25 -> 3.483420739 | G25: =AS25 -> 0.8396170809 | H25: =AO25 -> 2.674123501 | I25: =AP25 -> 1.561459027 | J25: =SUM(F25:I25) -> 8.558620348 | S25: Harvest | T25: Tractor, 215 hp | U25: Round Module Mover | W25: 300000 | X25: 10000 | AB25: =AB24*2 -> 16.01066667 | AC25: 0.19 | AD25: 1.3 | AE25: =AE24/2 -> 74.95003331 | AF25: =AF24/2 -> 374.7501666 | AG25: 5 | AH25: 0.94 | AI25: 0.11 | AJ25: 0 | AK25: =X25*(AH25-AI25*(AG25^0.5)-AJ25*(AE25^0.5))^2 -> 4816.811423 | AL25: =X25*(AH25-AI25*((AG25-1)^0.5)-AJ25*(AE25^0.5))^2 -> 5184 | AM25: =Inputs!$C$10*0.73*(0.06*250)*(1/AB25) -> 2.325324783 | AN25: =AM25*0.15 -> 0.3487987175 | AO25: 2.674123501 | AP25: =Inputs!$C$12*1.25*(1/AB25) -> 1.561459027 | AQ25: =((W25*$AC$27*(($AF$27+$AE$27)/1000)^$AD$27)-(W25*$AC$27*($AF$27/1000)^$AD$27))/$AE$27*(1/AB25) -> 0.7213940706 | AR25: =((X25*AC25*((AF25+AE25)/1000)^AD25)-(X25*AC25*(AF25/1000)^AD25))/AE25*(1/AB25) -> 0.1182230103 | AS25: =AQ25+AR25 -> 0.8396170809 | AT25: =((AL25-AK25)/AE25)*(1/AB25) -> 0.3059904812 | AU25: =(($AL$27-$AK$27)/$AE$27)*(1/AB25) -> 1.431711515 | AV25: 1.737701996 | AW25: =((Inputs!$C$15*AK25)/AE25)*(1/AB25) -> 0.3010507139 | AX25: =((Inputs!$C$15*$AK$27)/$AE$27)*(1/AB25) -> 1.253018018 | AY25: =AW25+AX25 -> 1.554068732 | AZ25: =(X25*0.02/AE25)*(1/AB25) -> 0.1666666667 | BA25: =(X25*0.02/$AE$27)*(1/AB25) -> 0.02498334444 | BB25: 0.1916500111 | BC25: =+AV25+AY25+BB25 -> 3.483420739
AB27: Tractor | AC27: 0.007 | AD27: 2 | AE27: 500 | AF27: =+AE27*5 -> 2500 | AG27: =+AF27/AE27 -> 5 | AH27: 0.9756 | AI27: 0.1187 | AJ27: 0.0019 | AK27: =W4*(AH27-AI27*(AG27^0.5)-AJ27*(AE27^0.5))^2 -> 133744.3587 | AL27: =W4*(AH27-AI27*((AG27-1)^0.5)-AJ27*(AE27^0.5))^2 -> 145205.6867
AB28: Combine | AC28: 0.25 | AD28: 2.1 | AE28: 200 | AF28: =+AE28*5 -> 1000 | AG28: =+AF28/AE28 -> 5 | AH28: 1.1318 | AI28: 0.1645 | AJ28: 0.0079 | AK28: =W12*(AH28-AI28*(AG28^0.5)-AJ28*(AE28^0.5))^2 -> 191439.9745 | AL28: =W12*(AH28-AI28*((AG28-1)^0.5)-AJ28*(AE28^0.5))^2 -> 214914.4189
Z32: Acres | AA32: Corn | AB32: 1000
AA33: Cotton | AB33: 1200

Sheet Budget Summary
B1: Summary of Revenue, Variable and Fixed Expenses, and Profit or Loss for Each Commodity and Production Method
B3: Commodity & Production Process | C3: Revenue ($/Acre) | D3: Variable Expenses ($/Acre) | E3: Fixed Expenses ($/Acre) | F3: Returns Over Specified Costs
B4: Corn No-Till, Non-Irrigated | C4: ='Corn NT Non-Irr'!H7 -> 866.25 | D4: ='Corn NT Non-Irr'!H23 -> 539.0668028 | E4: ='Corn NT Non-Irr'!H34 -> 285.8931878 | F4: ='Corn NT Non-Irr'!H36 -> 41.29000943
B5: Corn Conventional Tillage, Non-Irrigated | C5: ='Corn CT Non-Irr'!H7 -> 866.25 | D5: ='Corn CT Non-Irr'!H23 -> 547.4885446 | E5: ='Corn CT Non-Irr'!H34 -> 303.036137 | F5: ='Corn CT Non-Irr'!H36 -> 15.72531845
B6: Corn No-Till, Irrigated | C6: ='Corn Irr'!H7 -> 1188 | D6: ='Corn Irr'!H26 -> 719.8473106 | E6: ='Corn Irr'!H39 -> 502.946107 | F6: ='Corn Irr'!H41 -> -34.79341759
B7: Soybeans No-Till, Non-Irrigated | C7: ='Soybeans NT Non-Irr'!H7 -> 625 | D7: ='Soybeans NT Non-Irr'!H23 -> 305.8852506 | E7: ='Soybeans NT Non-Irr'!H34 -> 273.2811248 | F7: ='Soybeans NT Non-Irr'!H36 -> 45.83362461
B8: Soybeans No-Till, Irrigated | C8: ='Soybeans Irr'!H7 -> 812.5 | D8: ='Soybeans Irr'!H26 -> 376.9968952 | E8: ='Soybeans Irr'!H39 -> 484.7222118 | F8: ='Soybeans Irr'!H41 -> -49.21910692
B9: SRW Wheat | C9: ='SRW Wheat'!H7 -> 520 | D9: ='SRW Wheat'!H24 -> 355.1339751 | E9: ='SRW Wheat'!H35 -> 265.0999079 | F9: ='SRW Wheat'!H37 -> -100.233883
B10: Wheat & Soybean, Double Cropped | C10: ='Wheat & Soybean DC'!H8 -> 1082.5 | D10: ='Wheat & Soybean DC'!H26 -> 588.258617 | E10: ='Wheat & Soybean DC'!H37 -> 392.4930664 | F10: ='Wheat & Soybean DC'!H39 -> 101.7483166
B11: Cotton No-Till, Non-Irrigated | C11: ='Cotton NT'!H7 -> 943 | D11: ='Cotton NT'!H24 -> 619.0230386 | E11: ='Cotton NT'!H35 -> 339.0155665 | F11: ='Cotton NT'!H37 -> -15.03860519
B12: Cotton Conventional Tillage, Non-Irrigated | C12: ='Cotton CT'!H7 -> 943 | D12: ='Cotton CT'!H24 -> 622.3696552 | E12: ='Cotton CT'!H35 -> 357.1224382 | F12: ='Cotton CT'!H37 -> -36.49209331
B13: Cotton No-Till, Irrigated | C13: ='Cotton Irr'!H7 -> 1230 | D13: ='Cotton Irr'!H27 -> 733.9065386 | E13: ='Cotton Irr'!H40 -> 558.0155665 | F13: ='Cotton Irr'!H42 -> -61.92210519
B14: Grain Sorghum, No-Till, Non-Irrigated | C14: =+'G. Sorghum NT'!H5 -> 555.5 | D14: =+'G. Sorghum NT'!H21 -> 326.5461706 | E14: =+'G. Sorghum NT'!H31 -> 280.4347324 | F14: =+'G. Sorghum NT'!H32 -> -51.48090298

Sheet Enterprise Summary
B1: Enterprise Summary
B3: Commodity & Production Process | C3: Acres | D3: Total Revenue ($) | E3: Variable Expenses ($/Acre) | F3: Fixed Expenses ($/Acre) | G3: Profit (Loss)
B4: ='Budget Summary'!B4 -> Corn No-Till, Non-Irrigated | C4: 200 | D4: =C4*'Budget Summary'!C4 -> 173250 | E4: ='Budget Summary'!D4*C4 -> 107813.3606 | F4: ='Budget Summary'!E4*C4 -> 57178.63755 | G4: =D4-E4-F4 -> 8258.001886
B5: ='Budget Summary'!B5 -> Corn Conventional Tillage, Non-Irrigated | C5: 0 | D5: =C5*'Budget Summary'!C5 -> 0 | E5: ='Budget Summary'!D5*C5 -> 0 | F5: ='Budget Summary'!E5*C5 -> 0 | G5: =D5-E5-F5 -> 0
B6: ='Budget Summary'!B6 -> Corn No-Till, Irrigated | C6: 250 | D6: =C6*'Budget Summary'!C6 -> 297000 | E6: ='Budget Summary'!D6*C6 -> 179961.8276 | F6: ='Budget Summary'!E6*C6 -> 125736.5268 | G6: -8698.354397
B7: ='Budget Summary'!B7 -> Soybeans No-Till, Non-Irrigated | C7: 200 | D7: =C7*'Budget Summary'!C7 -> 125000 | E7: ='Budget Summary'!D7*C7 -> 61177.05012 | F7: ='Budget Summary'!E7*C7 -> 54656.22496 | G7: 9166.724921
B8: ='Budget Summary'!B8 -> Soybeans No-Till, Irrigated | C8: 0 | D8: =C8*'Budget Summary'!C8 -> 0 | E8: ='Budget Summary'!D8*C8 -> 0 | F8: ='Budget Summary'!E8*C8 -> 0 | G8: 0
B9: Wheat | C9: 0 | D9: =C9*'Budget Summary'!C9 -> 0 | E9: =C9*'Budget Summary'!D9 -> 0 | F9: =C9*'Budget Summary'!E9 -> 0 | G9: =D9-E9-F9 -> 0
B10: ='Budget Summary'!B10 -> Wheat & Soybean, Double Cropped | C10: 100 | D10: =C10*'Budget Summary'!C10 -> 108250 | E10: ='Budget Summary'!D10*C10 -> 58825.8617 | F10: ='Budget Summary'!E10*C10 -> 39249.30664 | G10: 10174.83166
B11: ='Budget Summary'!B11 -> Cotton No-Till, Non-Irrigated | C11: 0 | D11: =C11*'Budget Summary'!C11 -> 0 | E11: ='Budget Summary'!D11*C11 -> 0 | F11: ='Budget Summary'!E11*C11 -> 0 | G11: 0
B12: ='Budget Summary'!B12 -> Cotton Conventional Tillage, Non-Irrigated | C12: 250 | D12: =C12*'Budget Summary'!C12 -> 235750 | E12: ='Budget Summary'!D12*C12 -> 155592.4138 | F12: ='Budget Summary'!E12*C12 -> 89280.60954 | G12: -9123.023328
B13: ='Budget Summary'!B14 -> Grain Sorghum, No-Till, Non-Irrigated | C13: 0 | D13: =C13*'Budget Summary'!C14 -> 0 | E13: ='Budget Summary'!D14*C13 -> 0 | F13: ='Budget Summary'!E14*C13 -> 0 | G13: 0
B14: Total | C14: =SUM(C4:C13) -> 1000 | D14: =SUM(D4:D13) -> 939250 | E14: =SUM(E4:E13) -> 563370.5138 | F14: =SUM(F4:F13) -> 366101.3054 | G14: =SUM(G4:G13) -> 9778.180742
B16: This worksheet allows the user to enter acreage for different commodities and production processes in order to obtain an estimated profit and loss statement for the entire enterprise. This worksheet will automatically update the information contained in individual budgets, As such users should only adjust acreage for each commodity/production process on this worksheet.
